Workbook

Sheet BlueSheet
A1: votes | B1: #states | C1: x | D1: S1 | E1: S2 | F1: S3 | G1: S4 | H1: S5 | I1: S6 | J1: S7 | K1: S8 | L1: S9 | M1: S10 | N1: S11 | O1: S12 | P1: S13 | Q1: S14 | R1: S15 | S1: S16 | T1: S17 | U1: S18 | V1: S19 | W1: S20 | X1: S21 | Y1: S22
A2: 55 | B2: 1 | C2: 57.75285493 | D2: 1 | E2: 1 | F2: 1 | G2: 0 | H2: 0 | I2: 1 | J2: 0 | K2: 1 | L2: 1 | M2: 0 | N2: 0 | O2: 0 | P2: 0 | Q2: 0 | R2: 0 | S2: 1 | T2: 0 | U2: 1 | V2: 1
A3: 38 | B3: 1 | C3: 45.25802951 | D3: 0 | E3: 0 | F3: 1 | G3: 0 | H3: 1 | I3: 1 | J3: 1 | K3: 0 | L3: 1 | M3: 0 | N3: 1 | O3: 0 | P3: 1 | Q3: 0 | R3: 1 | S3: 0 | T3: 0 | U3: 1 | V3: 0
A4: 29 | B4: 2 | C4: 31.79846694 | D4: 2 | E4: 0 | F4: 0 | G4: 0 | H4: 2 | I4: 0 | J4: 2 | K4: 2 | L4: 0 | M4: 2 | N4: 0 | O4: 0 | P4: 2 | Q4: 2 | R4: 1 | S4: 0 | T4: 0 | U4: 0 | V4: 2
A5: 20 | B5: 2 | C5: 20.11846322 | D5: 0 | E5: 2 | F5: 2 | G5: 0 | H5: 2 | I5: 0 | J5: 2 | K5: 2 | L5: 2 | M5: 2 | N5: 0 | O5: 2 | P5: 0 | Q5: 2 | R5: 2 | S5: 0 | T5: 2 | U5: 0 | V5: 1
A6: 18 | B6: 1 | C6: 56.86299944 | D6: 1 | E6: 1 | F6: 1 | G6: 1 | H6: 1 | I6: 1 | J6: 1 | K6: 1 | L6: 1 | M6: 0 | N6: 0 | O6: 1 | P6: 0 | Q6: 1 | R6: 0 | S6: 0 | T6: 1 | U6: 0 | V6: 0
A7: 16 | B7: 2 | C7: 0.3189886503 | D7: 2 | E7: 0 | F7: 2 | G7: 2 | H7: 2 | I7: 0 | J7: 2 | K7: 0 | L7: 2 | M7: 2 | N7: 0 | O7: 2 | P7: 2 | Q7: 0 | R7: 0 | S7: 0 | T7: 0 | U7: 2 | V7: 2
A8: 15 | B8: 1 | C8: 0.1087805183 | D8: 0 | E8: 1 | F8: 1 | G8: 1 | H8: 1 | I8: 1 | J8: 0 | K8: 1 | L8: 0 | M8: 0 | N8: 0 | O8: 1 | P8: 1 | Q8: 1 | R8: 0 | S8: 0 | T8: 0 | U8: 1 | V8: 0
A9: 14 | B9: 1 | C9: 47.88463568 | D9: 1 | E9: 0 | F9: 1 | G9: 0 | H9: 1 | I9: 1 | J9: 0 | K9: 0 | L9: 0 | M9: 1 | N9: 1 | O9: 1 | P9: 0 | Q9: 0 | R9: 0 | S9: 1 | T9: 1 | U9: 1 | V9: 0
A10: 13 | B10: 1 | C10: 0.6234779445 | D10: 1 | E10: 0 | F10: 1 | G10: 1 | H10: 1 | I10: 0 | J10: 1 | K10: 1 | L10: 0 | M10: 1 | N10: 0 | O10: 0 | P10: 0 | Q10: 0 | R10: 0 | S10: 1 | T10: 1 | U10: 1 | V10: 0
A11: 12 | B11: 1 | C11: 0 | D11: 1 | E11: 1 | F11: 1 | G11: 1 | H11: 1 | I11: 0 | J11: 0 | K11: 0 | L11: 0 | M11: 0 | N11: 1 | O11: 0 | P11: 0 | Q11: 1 | R11: 0 | S11: 1 | T11: 1 | U11: 0 | V11: 1
A12: 11 | B12: 4 | C12: 7.398927596 | D12: 0 | E12: 0 | F12: 3 | G12: 4 | H12: 2 | I12: 4 | J12: 0 | K12: 4 | L12: 0 | M12: 4 | N12: 4 | O12: 4 | P12: 0 | Q12: 0 | R12: 4 | S12: 2 | T12: 1 | U12: 0 | V12: 4
A13: 10 | B13: 4 | C13: 3.902718325 | D13: 2 | E13: 0 | F13: 0 | G13: 1 | H13: 0 | I13: 0 | J13: 0 | K13: 2 | L13: 4 | M13: 0 | N13: 4 | O13: 4 | P13: 0 | Q13: 4 | R13: 0 | S13: 4 | T13: 4 | U13: 4 | V13: 0
A14: 9 | B14: 3 | C14: 12.13271624 | D14: 3 | E14: 2.000000001 | F14: 0 | G14: 3 | H14: 0 | I14: 3 | J14: 0 | K14: 0 | L14: 3 | M14: 3 | N14: 0 | O14: 0 | P14: 3 | Q14: 3 | R14: 3 | S14: 3 | T14: 3 | U14: 0 | V14: 0
A15: 8 | B15: 2 | C15: 3.825310532 | D15: 0 | E15: 2 | F15: 0 | G15: 2 | H15: 0.9999999999 | I15: 0 | J15: 0 | K15: 0 | L15: 1 | M15: 2 | N15: 2 | O15: 0 | P15: 0 | Q15: 2 | R15: 2 | S15: 2 | T15: 0 | U15: 2 | V15: 0.9999999997
A16: 7 | B16: 3 | C16: 14.97934438 | D16: 0 | E16: 3 | F16: 0 | G16: 3 | H16: 0 | I16: 0 | J16: 0 | K16: 0.9999999993 | L16: 1 | M16: 3 | N16: 3 | O16: 0 | P16: 3 | Q16: 0 | R16: 0 | S16: 0 | T16: 3 | U16: 3 | V16: 3
A17: 6 | B17: 6 | C17: 6.624469424 | D17: 0 | E17: 6 | F17: 0 | G17: 6 | H17: 0 | I17: 0 | J17: 2 | K17: 0 | L17: 0 | M17: 0 | N17: 6 | O17: 6 | P17: 6 | Q17: 0 | R17: 6 | S17: 6 | T17: 6 | U17: 0 | V17: 0
A18: 5 | B18: 3 | C18: 0 | D18: 0 | E18: 3 | F18: 0 | G18: 0 | H18: 0 | I18: 3 | J18: 3 | K18: 0 | L18: 0.9999999999 | M18: 0.9999999997 | N18: 3 | O18: 0 | P18: 3 | Q18: 3 | R18: 0 | S18: 3 | T18: 0 | U18: 0 | V18: 0
A19: 4 | B19: 5 | C19: 10.21943624 | D19: 0 | E19: 0 | F19: 0 | G19: 5 | H19: 0 | I19: 5 | J19: 5 | K19: 0 | L19: 0 | M19: 0 | N19: 4 | O19: 4 | P19: 4 | Q19: 5 | R19: 4 | S19: 5 | T19: 5 | U19: 5 | V19: 5
A20: 3 | B20: 8 | C20: 0 | D20: 7 | E20: 8 | F20: 0 | G20: 2.000000001 | H20: 0 | I20: 8 | J20: 8 | K20: 0 | L20: 0 | M20: 0 | N20: 6 | O20: 5 | P20: 3.999999999 | Q20: 3 | R20: 7.999999999 | S20: 0 | T20: 6.000000001 | U20: 1.999999999 | V20: 0
B23: =SUM(B2:B22) -> 51 | C23: =SUMPRODUCT(B2:B22,C2:C22) -> 538 | D23: =SUMPRODUCT(D2:D22,$C$2:$C$22) -> 271.5624646 | E23: 271.5624646 | F23: 271.5624646 | G23: 271.5624646 | H23: 273.8329265 | I23: 324.9583404 | J23: 271.5624646 | K23: 271.5624646 | L23: 271.5624646 | M23: 271.5624646 | N23: 271.5624646 | O23: 271.5624646 | P23: 271.5624646 | Q23: 271.5624646 | R23: 271.5624646 | S23: 271.5624646 | T23: 340.79802 | U23: 271.5624646 | V23: 271.5624646 | W23: 0 | X23: =SUMPRODUCT(X2:X22,$C$2:$C$22) -> 0 | Y23: 0
B24: b | C24: =SUMPRODUCT(A2:A22,B2:B22) -> 538
B25: r | C25: 271.5624646

Sheet RedSheet
A2: x | B2: votes | C2: #states | D2: S
A3: 57.75285493 | B3: 55 | C3: 1
A4: 45.25802951 | B4: 38 | C4: 1
A5: 31.79846694 | B5: 29 | C5: 2
A6: 20.11846322 | B6: 20 | C6: 2
A7: 56.86299944 | B7: 18 | C7: 1
A8: 0.3189886501 | B8: 16 | C8: 2
A9: 0.1087805184 | B9: 15 | C9: 1
A10: 47.88463569 | B10: 14 | C10: 1
A11: 0.6234779444 | B11: 13 | C11: 1
A12: 0 | B12: 12 | C12: 1
A13: 7.398927596 | B13: 11 | C13: 4
A14: 3.902718325 | B14: 10 | C14: 4
A15: 12.13271624 | B15: 9 | C15: 3
A16: 3.825310532 | B16: 8 | C16: 2
A17: 14.97934438 | B17: 7 | C17: 3
A18: 6.624469424 | B18: 6 | C18: 6
A19: 0 | B19: 5 | C19: 3
A20: 10.21943624 | B20: 4 | C20: 5
A21: 0 | B21: 3 | C21: 8
A22: =SUMPRODUCT(A3:A21,D3:D21) -> 0 | C22: =SUMPRODUCT(B3:B21,C3:C21) -> 538 | D22: =SUMPRODUCT(B3:B21,D3:D21) -> 0
C23: =SUM(C3:C21) -> 51

Sheet Bias
A1: state | B1: z | C1: 2008 | D1: 2004 | E1: 2000 | F1: 1996 | G1: 1992 | H1: 1988 | I1: Smooth | J1: votes08 | K1: dems08 | L1: reps08 | N1: factor
A2: AL | B2: =(1-0.002*I2)*J2/100000 -> -3.706096136 | C2: =ROUND(1000*L2/(L2+K2),0) -> 609 | D2: 629 | E2: 576 | F2: 540 | G2: 538 | H2: 597 | I2: =(C2+0.8*D2+0.64*E2+0.8^3*F2+0.8^4*G2+0.8^5*H2)/$N$2 -> 589.0877786 | J2: =L2+K2 -> 2080025 | K2: 813479 | L2: 1266546 | N2: =1+0.8+0.64+0.8^3+0.8^4+0.8^5 -> 3.68928
A3: AK | B3: -0.7789737607 | C3: =ROUND(1000*L3/(L3+K3),0) -> 611 | D3: 632 | E3: 679 | F3: 605 | G3: 567 | H3: 623 | I3: =(C3+0.8*D3+0.64*E3+0.8^3*F3+0.8^4*G3+0.8^5*H3)/$N$2 -> 622.6981525 | J3: =L3+K3 -> 317435 | K3: 123594 | L3: 193841
A4: AZ | B4: -1.709400312 | C4: 543 | D4: 553 | E4: 533 | F4: 485 | G4: 513 | H4: 607 | I4: 537.7381386 | J4: 2264818 | K4: 1034707 | L4: 1230111
A5: AR | B5: -0.544056552 | C5: 602 | D5: 549 | E5: 528 | F5: 408 | G5: 400 | H5: 572 | I5: 525.6551305 | J5: 1060327 | K5: 422310 | L5: 638017
A6: CA | B6: 19.4838092 | C6: 377 | D6: 450 | E6: 438 | F6: 424 | G6: 415 | H6: 518 | I6: 426.676815 | J6: 13286254 | K6: 8274473 | L6: 5011781
A7: CO | B7: -0.09249068148 | C7: 454 | D7: 524 | E7: 545 | F7: 507 | G7: 472 | H7: 540 | I7: 501.957672 | J7: 2362262 | K7: 1288633 | L7: 1073629
A8: CT | B8: 2.4069434 | C8: 387 | D8: 447 | E8: 407 | F8: 403 | G8: 459 | H8: 526 | I8: 426.0403331 | J8: 1627200 | K8: 997772 | L8: 629428
A9: DE | B9: 0.542434516 | C9: 374 | D9: 462 | E9: 432 | F9: 414 | G9: 447 | H9: 562 | I9: 433.4979617 | J9: 407833 | K9: 255459 | L9: 152374
A10: DC | B10: 2.146154391 | C10: 66 | D10: 94 | E10: 94 | F10: 97 | G10: 98 | H10: 150 | I10: 92.24477405 | J10: 263167 | K10: 245800 | L10: 17367
A11: FL | B11: -1.42474496 | C11: 486 | D11: 525 | E11: 500 | F11: 468 | G11: 512 | H11: 613 | I11: 508.5542545 | J11: 8327698 | K11: 4282074 | L11: 4045624
A12: GA | B12: -3.321831429 | C12: 526 | D12: 584 | E12: 560 | F12: 508 | G12: 497 | H12: 570 | I12: 542.6654523 | J12: 3892882 | K12: 1844123 | L12: 2048759
A13: HI | B13: 1.079027658 | C13: 270 | D13: 455 | E13: 402 | F13: 357 | G13: 432 | H13: 451 | I13: 379.151184 | J13: 446437 | K13: 325871 | L13: 120566
A14: ID | B14: -1.926422779 | C14: 630 | D14: 693 | E14: 708 | F14: 608 | G14: 596 | H14: 633 | I14: 650.6307572 | J14: 639452 | K14: 236440 | L14: 403012
A15: IL | B15: 8.495532058 | C15: 373 | D15: 448 | E15: 438 | F15: 407 | G15: 414 | H15: 511 | I15: 422.0668748 | J15: 5450527 | K15: 3419348 | L15: 2031179
A16: IN | B16: -2.86683648 | C16: 495 | D16: 604 | E16: 580 | F16: 532 | G16: 538 | H16: 601 | I16: 552.705265 | J16: 2719687 | K16: 1374039 | L16: 1345648
A17: IA | B17: 0.8983755201 | C17: 452 | D17: 503 | E17: 498 | F17: 443 | G17: 462 | H17: 445 | I17: 470.2784283 | J17: 1511319 | K17: 828940 | L17: 682379
A18: KS | B18: -2.194597774 | C18: 576 | D18: 629 | E18: 603 | F18: 600 | G18: 536 | H18: 568 | I18: 590.3557984 | J18: 1214420 | K18: 514765 | L18: 699655
A19: KY | B19: -2.14493846 | C19: 582 | D19: 600 | E19: 577 | F19: 494 | G19: 481 | H19: 559 | I19: 559.5668315 | J19: 1800447 | K19: 751985 | L19: 1048462
A20: LA | B20: -1.631123228 | C20: 595 | D20: 573 | E20: 540 | F20: 443 | G20: 473 | H20: 552 | I20: 542.2294215 | J20: 1931264 | K20: 782989 | L20: 1148275
A21: ME | B21: 0.8398179158 | C21: 412 | D21: 454 | E21: 471 | F21: 369 | G21: 440 | H21: 558 | I21: 441.4512967 | J21: 717196 | K21: 421923 | L21: 295273
A22: MD | B22: 4.170708514 | C22: 371 | D22: 435 | E22: 416 | F22: 435 | G22: 417 | H22: 515 | I22: 419.4635268 | J22: 2589329 | K22: 1629467 | L22: 959862
A23: MA | B23: 7.958434748 | C23: 368 | D23: 373 | E23: 352 | F23: 312 | G23: 379 | H23: 460 | I23: 367.9295689 | J23: 3012951 | K23: 1904097 | L23: 1108854
A24: MI | B24: 4.225187289 | C24: 416 | D24: 483 | E24: 474 | F24: 425 | G24: 454 | H24: 540 | I24: 457.0717322 | J24: 4921218 | K24: 2872579 | L24: 2048639
A25: MN | B25: 2.553483983 | C25: 448 | D25: 482 | E25: 487 | F25: 407 | G25: 423 | H25: 465 | I25: 455.1825831 | J25: 2848763 | K25: 1573354 | L25: 1275409
A26: MS | B26: -2.085317555 | C26: 566 | D26: 599 | E26: 574 | F26: 604 | G26: 550 | H26: 605 | I26: 581.5049007 | J26: 1279259 | K26: 554662 | L26: 724597
A27: MO | B27: -0.04210482891 | C27: 501 | D27: 536 | E27: 517 | F27: 465 | G27: 435 | H27: 520 | I27: 500.7290311 | J27: 2887725 | K27: 1441911 | L27: 1445814
A28: MT | B28: -0.5002777727 | C28: 512 | D28: 605 | E28: 637 | F28: 517 | G28: 482 | H28: 529 | I28: 552.7240871 | J28: 474430 | K28: 231667 | L28: 242763
A29: NE | B29: -1.892167586 | C29: 576 | D29: 669 | E29: 653 | F29: 605 | G29: 613 | H29: 606 | I29: 620.3212768 | J29: 786298 | K29: 333319 | L29: 452979
A30: NV | B30: 0.08201739739 | C30: 436 | D30: 513 | E30: 519 | F30: 495 | G30: 482 | H30: 608 | I30: 495.6676208 | J30: 946563 | K30: 533736 | L30: 412827
A31: NH | B31: 0.1489238709 | C31: 451 | D31: 493 | E31: 506 | F31: 446 | G31: 491 | H31: 631 | I31: 489.3832076 | J31: 701360 | K31: 384826 | L31: 316534
A32: NJ | B32: 3.97400997 | C32: 421 | D32: 466 | E32: 418 | F32: 403 | G32: 486 | H32: 569 | I32: 448.1013965 | J32: 3828629 | K32: 2215422 | L32: 1613207
A33: NM | B33: 0.486031016 | C33: 423 | D33: 504 | E33: 500 | F33: 456 | G33: 448 | H33: 525 | I33: 470.3369763 | J33: 819254 | K33: 472422 | L33: 346832
A34: NY | B34: =(1-0.002*I34)*J34/100000 -> 17.16207906 | C34: 364 | D34: 407 | E34: 369 | F34: 346 | G34: 405 | H34: 479 | I34: 386.4598838 | J34: 7557716 | K34: 4804945 | L34: 2752771
A35: NC | B35: -3.019447164 | C35: 498 | D35: 562 | E35: 565 | F35: 524 | G35: 505 | H35: 582 | I35: 535.3472114 | J35: 4271125 | K35: 2142651 | L35: 2128474
A36: ND | B36: -0.5476856654 | C36: 544 | D36: 640 | E36: 648 | F36: 541 | G36: 579 | H36: 567 | I36: 588.3708908 | J36: 309879 | K36: 141278 | L36: 168601
A37: OH | B37: 0.2126007514 | C37: 477 | D37: 511 | E37: 518 | F37: 466 | G37: 488 | H37: 555 | I37: 498.1078151 | J37: 5617864 | K37: 2940044 | L37: 2677820
A38: OK | B38: -3.36858859 | C38: 656 | D38: 656 | E38: 611 | F38: 544 | G38: 556 | H38: 584 | I38: 615.1527453 | J38: 1462661 | K38: 502496 | L38: 960165
A39: OR | B39: 1.614365213 | C39: 416 | D39: 479 | E39: 498 | F39: 440 | G39: 434 | H39: 476 | I39: 454.5445399 | J39: 1775766 | K39: 1037291 | L39: 738475
A40: PA | B40: 3.913791485 | C40: 448 | D40: 487 | E40: 478 | F40: 448 | G40: 445 | H40: 512 | I40: 467.012577 | J40: 5932248 | K40: 3276363 | L40: 2655885
A41: RI | B41: 1.233422913 | C41: 358 | D41: 394 | E41: 343 | F41: 308 | G41: 383 | H41: 442 | I41: 366.5016914 | J41: 461962 | K41: 296571 | L41: 165391
A42: SC | B42: -2.48571779 | C42: 545 | D42: 586 | E42: 582 | F42: 533 | G42: 546 | H42: 621 | I42: 565.5051609 | J42: 1897345 | K42: 862449 | L42: 1034896
A43: SD | B43: -0.4969395271 | C43: 543 | D43: 610 | E43: 616 | F43: 539 | G43: 523 | H43: 532 | I43: 566.4396739 | J43: 373978 | K43: 170924 | L43: 203054
A44: TN | B44: -2.170070868 | C44: 576 | D44: 572 | E44: 520 | F44: 487 | G44: 474 | H44: 582 | I44: 542.2749588 | J44: 2566615 | K44: 1087437 | L44: 1479178
A45: TX | B45: -11.498943 | C45: 559 | D45: 615 | E45: 610 | F45: 527 | G45: 522 | H45: 563 | I45: 571.7969468 | J45: 8007961 | K45: 3528633 | L45: 4479328
A46: UT | B46: -3.23513887 | C46: 645 | D46: 734 | E46: 717 | F46: 620 | G46: 638 | H46: 674 | I46: 675.1184838 | J46: 923700 | K46: 327670 | L46: 596030
A47: VT | B47: 0.7077856816 | C47: 311 | D47: 397 | E47: 446 | F47: 367 | G47: 398 | H47: 517 | I47: 388.7954723 | J47: 318236 | K47: 219262 | L47: 98974
A48: VA | B48: -1.546016257 | C48: 468 | D48: 541 | E48: 541 | F48: 511 | G48: 526 | H48: 604 | I48: 520.9797901 | J48: 3684537 | K48: 1959532 | L48: 1725005
A49: WA | B49: 3.426838379 | C49: 412 | D49: 464 | E49: 471 | F49: 416 | G49: 424 | H49: 492 | I49: 442.5039466 | J49: 2980064 | K49: 1750848 | L49: 1229216
A50: WV | B50: -0.2173608567 | C50: 567 | D50: 565 | E50: 532 | F50: 417 | G50: 422 | H50: 476 | I50: 515.4964871 | J50: 701323 | K50: 303857 | L50: 397466
A51: WI | B51: 1.925299109 | C51: 429 | D51: 498 | E51: 499 | F51: 441 | G51: 472 | H51: 482 | I51: 467.252407 | J51: 2939604 | K51: 1677211 | L51: 1262393
A52: WY | B52: -0.7434229705 | C52: 666 | D52: 702 | E52: 712 | F52: 574 | G52: 537 | H52: 613 | I52: 649.9888976 | J52: 247826 | K52: 82868 | L52: 164958
B54: =SUM(B2:B52) -> 33.49636219 | C54: =SUM(C2:C52) -> 24391 | D54: 26986 | E54: 26438 | F54: 23731 | G54: 24227 | H54: 27682 | I54: 25491.31781

Sheet NetBias
E1: 10
C2: Dbias | D2: Dbias($M) | E2: Cost per vote($) ^ ^ ^ ^ | F2: electoral votes | G2: Setpairs | I2: P set | J2: P prime set
C3: 19.4838092 | D3: =C3*$E$1/10 -> 19.4838092 | E3: California | F3: 55 | G3: s1 | I3: =IF(C3>0,1,0) -> 1 | J3: 1
C4: -11.498943 | D4: =C4*$E$1/10 -> -11.498943 | E4: Texas | F4: 38 | G4: s2 | I4: =IF(C4>0,1,0) -> 0 | J4: 0
C5: 17.16207906 | D5: 17.16207906 | E5: New York | F5: 29 | G5: s2 | I5: 1 | J5: 1
C6: -1.42474496 | D6: -1.42474496 | E6: Florida | F6: 29 | G6: t1 | I6: 0 | J6: 0
C7: 3.913791485 | D7: =C7*$E$1/10 -> 3.913791485 | E7: Pennsylvania | F7: 20 | G7: t2 | I7: 1 | J7: 1
C8: 8.495532058 | D8: =C8*$E$1/10 -> 8.495532058 | E8: Illinois | F8: 20 | G8: u1 | I8: 1 | J8: 1
C9: 0.2126007514 | D9: 0.2126007514 | E9: Ohio | F9: 18 | G9: v1 | I9: 1 | J9: 0
C10: 4.225187289 | D10: 4.225187289 | E10: Michigan | F10: 16 | G10: u2 | I10: 1 | J10: 1
C11: -3.321831429 | D11: -3.321831429 | E11: Georgia | F11: 16 | G11: w1 | I11: 0 | J11: 0
C12: -3.019447164 | D12: =C12*$E$1/10 -> -3.019447164 | E12: North Carolina | F12: 15 | G12: x1 | I12: 0 | J12: 0
C13: 3.97400997 | D13: 3.97400997 | E13: New Jersey | F13: 14 | G13: y1 | I13: 1 | J13: 1
C14: -1.546016257 | D14: -1.546016257 | E14: Virginia | F14: 13 | G14: z1 | I14: 0 | J14: 0
C15: 3.426838379 | D15: =C15*$E$1/10 -> 3.426838379 | E15: Washington | F15: 12 | G15: s1 | I15: 1 | J15: 1
C16: 7.958434748 | D16: 7.958434748 | E16: Massachusetts | F16: 11 | G16: v2 | I16: 1 | J16: 1
C17: -2.86683648 | D17: -2.86683648 | E17: Indiana | F17: 11 | G17: w2 | I17: 0 | J17: 0
C18: -2.170070868 | D18: =C18*$E$1/10 -> -2.170070868 | E18: Tennessee | F18: 11 | G18: x2 | I18: 0 | J18: 0
C19: =Bias!B4 -> -1.709400312 | D19: -1.709400312 | E19: Arizona | F19: 11 | G19: y2 | I19: 0 | J19: 0
C20: =Bias!B27 -> -0.04210482891 | D20: -0.04210482891 | E20: Missouri | F20: 10 | G20: z2 | I20: 0 | J20: 0
C21: 4.170708514 | D21: 4.170708514 | E21: Maryland | F21: 10 | I21: 1 | J21: 1
C22: 2.553483983 | D22: 2.553483983 | E22: Minnesota | F22: 10 | I22: 1 | J22: 1
C23: 1.925299109 | D23: 1.925299109 | E23: Wisconsin | F23: 10 | I23: 1 | J23: 1
C24: -3.706096136 | D24: -3.706096136 | E24: Alabama | F24: 9 | G24: t2 | I24: 0 | J24: 0
C25: -0.09249068148 | D25: -0.09249068148 | E25: Colorado | F25: 9 | I25: 0 | J25: 0
C26: -2.48571779 | D26: =C26*$E$1/10 -> -2.48571779 | E26: South Carolina | F26: 9 | I26: 0 | J26: 0
C27: -1.631123228 | D27: -1.631123228 | E27: Louisiana | F27: 8 | I27: 0 | J27: 0
C28: -2.14493846 | D28: -2.14493846 | E28: Kentucky | F28: 8 | I28: 0 | J28: 0
C29: 2.4069434 | D29: 2.4069434 | E29: Connecticut | F29: 7 | G29: v2 | I29: 1 | J29: 1
C30: -3.36858859 | D30: -3.36858859 | E30: Oklahoma | F30: 7 | I30: 0 | J30: 0
C31: 1.614365213 | D31: 1.614365213 | E31: Oregon | F31: 7 | I31: 1 | J31: 1
C32: =Bias!B30 -> 0.08201739739 | D32: 0.08201739739 | E32: Nevada | F32: 6 | I32: 1 | J32: 1
C33: -0.544056552 | D33: -0.544056552 | E33: Arkansas | F33: 6 | I33: 0 | J33: 0
C34: -2.194597774 | D34: -2.194597774 | E34: Kansas | F34: 6 | I34: 0 | J34: 0
C35: -2.085317555 | D35: -2.085317555 | E35: Mississippi | F35: 6 | I35: 0 | J35: 0
C36: -3.23513887 | D36: -3.23513887 | E36: Utah | F36: 6 | I36: 0 | J36: 0
C37: =Bias!B17 -> 0.8983755201 | D37: 0.8983755201 | E37: Iowa | F37: 6 | I37: 1 | J37: 1
C38: =Bias!B29 -> -1.892167586 | D38: -1.892167586 | E38: Nebraska | F38: 5 | G38: w2 | I38: 0 | J38: 0
C39: 0.486031016 | D39: 0.486031016 | E39: New Mexico | F39: 5 | I39: 1 | J39: 1
C40: -0.2173608567 | D40: -0.2173608567 | E40: West Virginia | F40: 5 | I40: 0 | J40: 0
C41: 1.079027658 | D41: 1.079027658 | E41: Hawaii | F41: 4 | G41: u2 | I41: 1 | J41: 1
C42: -1.926422779 | D42: -1.926422779 | E42: Idaho | F42: 4 | G42: x2 | I42: 0 | J42: 0
C43: 0.8398179158 | D43: 0.8398179158 | E43: Maine | F43: 4 | I43: 1 | J43: 1
C44: 0.1489238709 | D44: 0.1489238709 | E44: New Hampshire | F44: 4 | I44: 1 | J44: 1
C45: 1.233422913 | D45: 1.233422913 | E45: Rhode Island | F45: 4 | I45: 1 | J45: 1
C46: -0.7789737607 | D46: -0.7789737607 | E46: Alaska | F46: 3 | G46: y2 | I46: 0 | J46: 0
C47: 0.542434516 | D47: 0.542434516 | E47: Delaware | F47: 3 | G47: z2 | I47: 1 | J47: 1
C48: 2.146154391 | D48: 2.146154391 | E48: District of Columbia | F48: 3 | I48: 1 | J48: 1
C49: -0.5002777727 | D49: -0.5002777727 | E49: Montana | F49: 3 | I49: 0 | J49: 0
C50: -0.5476856654 | D50: -0.5476856654 | E50: North Dakota | F50: 3 | I50: 0 | J50: 0
C51: -0.4969395271 | D51: -0.4969395271 | E51: South Dakota | F51: 3 | I51: 0 | J51: 0
C52: 0.7077856816 | D52: 0.7077856816 | E52: Vermont | F52: 3 | I52: 1 | J52: 1
C53: -0.7434229705 | D53: -0.7434229705 | E53: Wyoming | F53: 3 | I53: 0 | J53: 0
C54: =SUM(C3:C53) -> 33.49636219 | D54: 33.49636219 | E54: Totals | F54: =SUM(F3:F53) -> 538 | I54: =SUMPRODUCT(F3:F53,I3:I53) -> 281 | J54: =SUMPRODUCT(F3:F53,J3:J53) -> 263
I55: =SUMPRODUCT(I3:I53,D3:D53) -> 89.68707404 | J55: =SUMPRODUCT(J3:J53,D3:D53) -> 89.47447329 | K55: =I55-J55 -> 0.2126007514 | L55: <<<B

Sheet LamMu
F1: Dvotes | G1: xavg(D) | H1: yavg(R) | I1: P(Dwin) | J1: variance | M1: lam | N1: mu
C2: Dbias($M) | E2: electoral votes | G2: $M | H2: $M | M2: 0.1956928786 | N2: 0.2
C3: 19.4838092 | D3: California | E3: 55 | F3: =vk($E3,$C3,$M$2,$N$2) -> 28.22729956 | G3: =xavg($E3,$C3,$M$2,$N$2) -> 118.7064068 | H3: =yavg($E3,$C3,$M$2,$N$2) -> 133.8635022 | I3: =F3/E3 -> 0.5132236283 | J3: =E3^2*I3*(1-I3) -> 755.7210354
C4: -11.498943 | D4: Texas | E4: 38 | F4: =vk($E4,$C4,$M$2,$N$2) -> 19.35008859 | G4: =xavg($E4,$C4,$M$2,$N$2) -> 98.87988122 | H4: =yavg($E4,$C4,$M$2,$N$2) -> 85.93243748 | I4: =F4/E4 -> 0.5092128577 | J4: =E4^2*I4*(1-I4) -> 360.877438
C5: 17.16207906 | D5: New York | E5: 29 | F5: 15.01102073 | G5: 56.35356562 | H5: 69.94489634 | I5: 0.5176214046 | J5: 209.9888578
C6: -1.42474496 | D6: Florida | E6: 29 | F6: 14.8122663 | G6: 73.92474496 | H6: 70.93866849 | I6: 0.5107678035 | J6: 210.1524898
C7: 3.913791485 | D7: Pennsylvania | E7: 20 | F7: 10.23034396 | G7: 46.16279733 | H7: 48.84828022 | I7: 0.5115171978 | J7: 99.94694166
C8: 8.495532058 | D8: Illinois | E8: 20 | F8: 10.28597582 | G8: 41.86533827 | H8: 48.57012089 | I8: 0.5142987911 | J8: 99.91821783
C9: 0.2126007514 | D9: Ohio | E9: 18 | F9: 9.193869603 | G9: 44.78765035 | H9: 44.03065199 | I9: 0.5107705335 | J9: 80.96241458
C10: 4.225187289 | D10: Michigan | E10: 16 | F10: 8.194119543 | G10: 35.88638901 | H10: 39.02940229 | I10: 0.5121324714 | J10: 63.9623176
C11: -3.321831429 | D11: Georgia | E11: 16 | F11: 8.162580616 | G11: 41.71117863 | H11: 37.62603325 | I11: 0.5101612885 | J11: 63.97356754
C12: -3.019447164 | D12: North Carolina | E12: 15 | F12: 7.653177685 | G12: 39.10810521 | H12: 35.36538419 | I12: 0.5102118456 | J12: 56.2265366
C13: 3.97400997 | D13: New Jersey | E13: 14 | F13: 7.172824461 | G13: 31.13879542 | H13: 34.13587769 | I13: 0.5123446044 | J13: 48.97013171
C14: -1.546016257 | D14: Virginia | E14: 13 | F14: 6.639464392 | G14: 33.92798164 | H14: 31.68728559 | I14: 0.5107280302 | J14: 42.23054968
C15: 3.426838379 | D15: Washington | E15: 12 | F15: 6.148364182 | G15: 26.6710218 | H15: 29.25817909 | I15: 0.5123636818 | J15: 35.97798807
C16: 7.958434748 | D16: Massachusetts | E16: 11 | F16: 5.731123456 | G16: 20.11735328 | H16: 26.34438272 | I16: 0.5210112233 | J16: 30.19658195 | O16: =-O17 -> -1.049306775e-08
C17: -2.86683648 | D17: Indiana | E17: 11 | F17: 5.60643141 | G17: 28.64913353 | H17: 25.31153431 | I17: 0.5096755827 | J17: 30.23867236 | O17: =H54-G54 -> 1.049306775e-08
C18: -2.170070868 | D18: Tennessee | E18: 11 | F18: 5.61267498 | G18: 28.68103847 | H18: 25.97708207 | I18: 0.51024318 | J18: 30.23730435 | O18: 0
C19: =Bias!B4 -> -1.709400312 | D19: Arizona | E19: 11 | F19: 5.615854381 | G19: 28.69728537 | H19: 26.42185562 | I19: 0.5105322165 | J19: 30.23657776
C20: =Bias!B27 -> -0.04210482891 | D20: Missouri | E20: 10 | F20: 5.107678035 | G20: 25.04210483 | H20: 24.46160983 | I20: 0.5107678035 | J20: 24.98840544
C21: 4.170708514 | D21: Maryland | E21: 10 | F21: 5.141718438 | G21: 21.00323958 | H21: 24.29140781 | I21: 0.5141718438 | J21: 24.97991588
C22: 2.553483983 | D22: Minnesota | E22: 10 | F22: 5.120437759 | G22: 22.51171882 | H22: 24.3978112 | I22: 0.5120437759 | J22: 24.98549475
C23: 1.925299109 | D23: Wisconsin | E23: 10 | F23: 5.114931933 | G23: 23.11176866 | H23: 24.42534034 | I23: 0.5114931933 | J23: 24.98679065
C24: -3.706096136 | D24: Alabama | E24: 9 | F24: 4.569177956 | G24: 23.34871861 | H24: 19.43844595 | I24: 0.5076864395 | J24: 20.24521441
C25: -0.09249068148 | D25: Colorado | E25: 9 | F25: 4.596910231 | G25: 22.59249068 | H25: 22.01544884 | I25: 0.5107678035 | J25: 20.24060841
C26: -2.48571779 | D26: South Carolina | E26: 9 | F26: 4.585608234 | G26: 23.43267811 | H26: 20.57667291 | I26: 0.5095120259 | J26: 20.24267123
C27: -1.631123228 | D27: Louisiana | E27: 8 | F27: 4.081530223 | G27: 20.85681529 | H27: 18.84160954 | I27: 0.5101912778 | J27: 15.99335282
C28: -2.14493846 | D28: Kentucky | E28: 8 | F28: 4.076784186 | G28: 20.83256282 | H28: 18.35152449 | I28: 0.5095980233 | J28: 15.99410419
C29: 2.4069434 | D29: Connecticut | E29: 7 | F29: 3.591570661 | G29: 15.17581912 | H29: 17.0421467 | I29: 0.5130815229 | J29: 12.24161481
C30: -3.36858859 | D30: Oklahoma | E30: 7 | F30: 3.545310686 | G30: 18.11670773 | H30: 14.67519387 | I30: 0.5064729552 | J30: 12.24794694
C31: 1.614365213 | D31: Oregon | E31: 7 | F31: 3.58266048 | G31: 15.92286586 | H31: 17.0866976 | I31: 0.51180864 | J31: 12.24316725
C32: =Bias!B30 -> 0.08201739739 | D32: Nevada | E32: 6 | F32: 3.064628761 | G32: 14.91809472 | H32: 14.6768562 | I32: 0.5107714602 | J32: 8.995823123
C33: -0.544056552 | D33: Arkansas | E33: 6 | F33: 3.064606821 | G33: 15.54405655 | H33: 14.6769659 | I33: 0.5107678035 | J33: 8.995825959
C34: -2.194597774 | D34: Kansas | E34: 6 | F34: 3.05032033 | G34: 15.58728326 | H34: 13.21408849 | I34: 0.5083867217 | J34: 8.997467864
C35: -2.085317555 | D35: Mississippi | E35: 6 | F35: 3.051845789 | G35: 15.59507842 | H35: 13.31574141 | I35: 0.5086409648 | J35: 8.997312014
C36: -3.23513887 | D36: Utah | E36: 6 | F36: 3.031893027 | G36: 15.49311885 | H36: 12.2656839 | I36: 0.5053155045 | J36: 8.998982835
C37: =Bias!B17 -> 0.8983755201 | D37: Iowa | E37: 6 | F37: 3.067239146 | G37: 14.11507579 | H37: 14.66380427 | I37: 0.5112065244 | J37: 8.995478897
C38: =Bias!B29 -> -1.892167586 | D38: Nebraska | E38: 5 | F38: 2.541011215 | G38: 12.98468924 | H38: 10.95301626 | I38: 0.5082022431 | J38: 6.24831808
C39: 0.486031016 | D39: New Mexico | E39: 5 | F39: 2.554763573 | G39: 12.01869351 | H39: 12.22618214 | I39: 0.5109527146 | J39: 6.247000951
C40: -0.2173608567 | D40: West Virginia | E40: 5 | F40: 2.553839017 | G40: 12.71736086 | H40: 12.23080491 | I40: 0.5107678035 | J40: 6.24710136
C41: 1.079027658 | D41: Hawaii | E41: 4 | F41: 2.048767348 | G41: 8.95007986 | H41: 9.756163261 | I41: 0.5121918369 | J41: 3.997621746
C42: -1.926422779 | D42: Idaho | E42: 4 | F42: 2.025863275 | G42: 10.35225855 | H42: 8.384452787 | I42: 0.5064658187 | J42: 3.999331091
C43: 0.8398179158 | D43: Maine | E43: 4 | F43: 2.04652174 | G43: 9.177814437 | H43: 9.7673913 | I43: 0.511630435 | J43: 3.997835728
C44: 0.1489238709 | D44: New Hampshire | E44: 4 | F44: 2.043179717 | G44: 9.851630587 | H44: 9.784101413 | I44: 0.5107949294 | J44: 3.998135512
C45: 1.233422913 | D45: Rhode Island | E45: 4 | F45: 2.05051406 | G45: 8.804610389 | H45: 9.747429698 | I45: 0.5126285151 | J45: 3.99744833
C46: -0.7789737607 | D46: Alaska | E46: 3 | F46: 1.52905618 | G46: 7.813550452 | H46: 6.905889294 | I46: 0.5096853934 | J46: 2.249155738
C47: 0.542434516 | D47: Delaware | E47: 3 | F47: 1.534222735 | G47: 6.967373324 | H47: 7.328886325 | I47: 0.5114075783 | J47: 2.248828804
C48: 2.146154391 | D48: District of Columbia | E48: 3 | F48: 1.562348651 | G48: 5.507378231 | H48: 7.188256743 | I48: 0.5207828838 | J48: 2.246112646
C49: -0.5002777727 | D49: Montana | E49: 3 | F49: 1.531381809 | G49: 7.825434528 | H49: 7.172957137 | I49: 0.510460603 | J49: 2.249015182
C50: -0.5476856654 | D50: North Dakota | E50: 3 | F50: 1.53105773 | G50: 7.82377847 | H50: 7.127169638 | I50: 0.5103525768 | J50: 2.249035417
C51: -0.4969395271 | D51: South Dakota | E51: 3 | F51: 1.531403524 | G51: 7.825545493 | H51: 7.176186807 | I51: 0.5104678414 | J51: 2.249013819
C52: 0.7077856816 | D52: Vermont | E52: 3 | F52: 1.535571224 | G52: 6.808913004 | H52: 7.322143878 | I52: 0.5118570748 | J52: 2.248734688
C53: -0.7434229705 | D53: Wyoming | E53: 3 | F53: 1.529409226 | G53: 7.815354533 | H53: 6.939674856 | I53: 0.5098030753 | J53: 2.249135097
C54: =SUM(C3:C53) -> 33.49636219 | D54: <<totals>> | E54: =SUM(E3:E53) -> 538 | F54: =SUM(F3:F53) -> 275.2412434 | G54: =SUM(G3:G53) -> 1281.71333 | H54: =SUM(H3:H53) -> 1281.71333 | J54: =SUM(J3:J53) -> 2589.909624 | K54: =NORMSDIST((F54-269)/SQRT(J54)) -> 0.5488035389 | L54: <<P(Dwin)

Sheet Pwin
B1: votes | D1: win prob | E1: b/r | F1: num | G1: denom | H1: P(Blue)
A2: Alabama | B2: 9 | D2: 0.3 | E2: =IF(D2<0.5,2*D2,0.5/(1-D2)) -> 0.6 | F2: =(D2-0.5)*$B$53 -> -107.6 | G2: =SQRT(D2*(1-D2)*$B$54) -> 46.43123948 | H2: =NORMSDIST(F2/G2) -> 0.01024083223
A3: Alaska | B3: 3 | D3: 0.305 | E3: 0.61 | F3: =(D3-0.5)*$B$53 -> -104.91 | G3: =SQRT(D3*(1-D3)*$B$54) -> 46.64906591 | H3: =NORMSDIST(F3/G3) -> 0.01225880495
A4: Arizona | B4: 10 | D4: 0.31 | E4: 0.62 | F4: -102.22 | G4: 46.86040333 | H4: 0.01457793415
A5: Arkansas | B5: 6 | D5: 0.315 | E5: 0.63 | F5: -99.53 | G5: 47.06533916 | H5: 0.01722692207
A6: California | B6: 55 | D6: 0.32 | E6: 0.64 | F6: -96.84 | G6: 47.26395667 | H6: 0.02023503754
A7: Colorado | B7: 9 | D7: 0.325 | E7: 0.65 | F7: -94.15 | G7: 47.45633519 | H7: 0.02363187731
A8: Connecticut | B8: 7 | D8: 0.33 | E8: 0.66 | F8: -91.46 | G8: 47.64255031 | H8: 0.02744711138
A9: Delaware | B9: 3 | D9: 0.335 | E9: 0.67 | F9: -88.77 | G9: 47.82267402 | H9: 0.03171021537
A10: District of Columbia | B10: 3 | D10: 0.34 | E10: 0.68 | F10: -86.08 | G10: 47.99677489 | H10: 0.03645019302
A11: Florida | B11: 27 | D11: 0.345 | E11: 0.69 | F11: -83.39 | G11: 48.16491825 | H11: 0.0416952922
A12: Georgia | B12: 15 | D12: 0.35 | E12: 0.7 | F12: -80.7 | G12: 48.32716627 | H12: 0.04747271784
A13: Hawaii | B13: 4 | D13: 0.355 | E13: 0.71 | F13: -78.01 | G13: 48.48357815 | H13: 0.05380834499
A14: Idaho | B14: 4 | D14: 0.36 | E14: 0.72 | F14: -75.32 | G14: 48.63421018 | H14: 0.06072643567
A15: Illinois | B15: 21 | D15: 0.365 | E15: 0.73 | F15: -72.63 | G15: 48.77911592 | H15: 0.06824936259
A16: Indiana | B16: 11 | D16: 0.37 | E16: 0.74 | F16: -69.94 | G16: 48.91834625 | H16: 0.07639734303
A17: Iowa | B17: 7 | D17: 0.375 | E17: 0.75 | F17: -67.25 | G17: 49.0519495 | H17: 0.08518818588
A18: Kansas | B18: 6 | D18: 0.38 | E18: 0.76 | F18: -64.56 | G18: 49.17997153 | H18: 0.0946370548
A19: Kentucky | B19: 8 | D19: 0.385 | E19: 0.77 | F19: -61.87 | G19: 49.30245582 | H19: 0.10475625
A20: Louisiana | B20: 9 | D20: 0.39 | E20: 0.78 | F20: -59.18 | G20: 49.41944354 | H20: 0.1155550111
A21: Maine | B21: 4 | D21: 0.395 | E21: =IF(D21<0.5,2*D21,0.5/(1-D21)) -> 0.79 | F21: -56.49 | G21: 49.53097364 | H21: 0.1270393434
A22: Maryland | B22: 10 | D22: 0.4 | E22: 0.8 | F22: =(D22-0.5)*$B$53 -> -53.8 | G22: 49.63708291 | H22: =NORMSDIST(F22/G22) -> 0.1392118694
A23: Massachusetts | B23: 12 | D23: 0.405 | E23: 0.81 | F23: =(D23-0.5)*$B$53 -> -51.11 | G23: 49.73780604 | H23: =NORMSDIST(F23/G23) -> 0.1520717062
A24: Michigan | B24: 17 | D24: 0.41 | E24: 0.82 | F24: -48.42 | G24: 49.8331757 | H24: 0.1656143726
A25: Minnesota | B25: 10 | D25: 0.415 | E25: 0.83 | F25: -45.73 | G25: 49.92322255 | H25: 0.1798317237
A26: Mississippi | B26: 6 | D26: 0.42 | E26: 0.84 | F26: -43.04 | G26: 50.00797536 | H26: 0.1947119161
A27: Missouri | B27: 11 | D27: 0.425 | E27: 0.85 | F27: -40.35 | G27: 50.08746101 | H27: 0.2102394033
A28: Montana | B28: 3 | D28: 0.43 | E28: 0.86 | F28: -37.66 | G28: 50.16170452 | H28: 0.2263949609
A29: Nebraska | B29: 5 | D29: 0.435 | E29: 0.87 | F29: -34.97 | G29: 50.23072914 | H29: 0.2431557432
A30: Nevada | B30: 5 | D30: 0.44 | E30: 0.88 | F30: -32.28 | G30: 50.29455637 | H30: 0.2604953679
A31: New Hampshire | B31: 4 | D31: 0.445 | E31: 0.89 | F31: -29.59 | G31: 50.35320596 | H31: 0.2783840313
A32: New Jersey | B32: 15 | D32: 0.45 | E32: 0.9 | F32: -26.9 | G32: 50.40669598 | H32: 0.2967886507
A33: New Mexico | B33: 5 | D33: 0.455 | E33: 0.91 | F33: -24.21 | G33: 50.45504286 | H33: 0.3156730346
A34: New York | B34: 31 | D34: 0.46 | E34: 0.92 | F34: -21.52 | G34: 50.49826136 | H34: 0.3349980772
A35: North Carolina | B35: 15 | D35: 0.465 | E35: 0.93 | F35: -18.83 | G35: 50.53636463 | H35: 0.3547219777
A36: North Dakota | B36: 3 | D36: 0.47 | E36: 0.94 | F36: -16.14 | G36: 50.56936424 | H36: 0.3748004816
A37: Ohio | B37: 20 | D37: 0.475 | E37: 0.95 | F37: -13.45 | G37: 50.59727018 | H37: 0.3951871415
A38: Oklahoma | B38: 7 | D38: 0.48 | E38: 0.96 | F38: -10.76 | G38: 50.62009087 | H38: 0.4158335961
A39: Oregon | B39: 7 | D39: 0.485 | E39: 0.97 | F39: -8.07 | G39: 50.63783319 | H39: 0.436689865
A40: Pennsylvania | B40: 21 | D40: 0.49 | E40: 0.98 | F40: -5.38 | G40: 50.65050247 | H40: 0.4577046563
A41: Rhode Island | B41: 4 | D41: 0.495 | E41: 0.99 | F41: =(D41-0.5)*$B$53 -> -2.69 | G41: 50.65810251 | H41: =NORMSDIST(F41/G41) -> 0.4788256851
A42: South Carolina | B42: 8 | D42: 0.5 | E42: 1 | F42: =(D42-0.5)*$B$53 -> 0 | G42: 50.66063561 | H42: =NORMSDIST(F42/G42) -> 0.5
A43: South Dakota | B43: 3 | D43: 0.505 | E43: 1.01010101 | F43: =(D43-0.5)*$B$53 -> 2.69 | G43: 50.65810251 | H43: =NORMSDIST(F43/G43) -> 0.5211743149
A44: Tennessee | B44: 11 | D44: 0.51 | E44: 1.020408163 | F44: 5.38 | G44: 50.65050247 | H44: 0.5422953437
A45: Texas | B45: 34 | D45: 0.515 | E45: 1.030927835 | F45: 8.07 | G45: 50.63783319 | H45: 0.563310135
A46: Utah | B46: 5 | D46: 0.52 | E46: 1.041666667 | F46: 10.76 | G46: 50.62009087 | H46: 0.5841664039
A47: Vermont | B47: 3 | D47: 0.525 | E47: 1.052631579 | F47: 13.45 | G47: 50.59727018 | H47: 0.6048128585
A48: Virginia | B48: 13 | D48: 0.53 | E48: 1.063829787 | F48: 16.14 | G48: 50.56936424 | H48: 0.6251995184
A49: Washington | B49: 11 | D49: 0.535 | E49: 1.075268817 | F49: 18.83 | G49: 50.53636463 | H49: 0.6452780223
A50: West Virginia | B50: 5 | D50: 0.54 | E50: 1.086956522 | F50: 21.52 | G50: 50.49826136 | H50: 0.6650019228
A51: Wisconsin | B51: 10 | D51: 0.545 | E51: 1.098901099 | F51: 24.21 | G51: 50.45504286 | H51: 0.6843269654
A52: Wyoming | B52: 3 | D52: 0.55 | E52: 1.111111111 | F52: 26.9 | G52: 50.40669598 | H52: 0.7032113493
B53: =SUM(B2:B52) -> 538 | D53: 0.555 | E53: 1.123595506 | F53: 29.59 | G53: 50.35320596 | H53: 0.7216159687
B54: =SUMPRODUCT(B2:B52,B2:B52) -> 10266 | D54: 0.56 | E54: 1.136363636 | F54: 32.28 | G54: 50.29455637 | H54: 0.7395046321
D55: 0.565 | E55: 1.149425287 | F55: 34.97 | G55: 50.23072914 | H55: 0.7568442568
D56: 0.57 | E56: 1.162790698 | F56: 37.66 | G56: 50.16170452 | H56: 0.7736050391
D57: 0.575 | E57: 1.176470588 | F57: 40.35 | G57: 50.08746101 | H57: 0.7897605967
D58: 0.58 | E58: 1.19047619 | F58: 43.04 | G58: 50.00797536 | H58: 0.8052880839
D59: 0.585 | E59: 1.204819277 | F59: 45.73 | G59: 49.92322255 | H59: 0.8201682763
D60: 0.59 | E60: 1.219512195 | F60: 48.42 | G60: 49.8331757 | H60: 0.8343856274
D61: 0.595 | E61: 1.234567901 | F61: 51.11 | G61: 49.73780604 | H61: 0.8479282938
D62: 0.6 | E62: 1.25 | F62: 53.8 | G62: 49.63708291 | H62: 0.8607881306
D63: 0.605 | E63: 1.265822785 | F63: 56.49 | G63: 49.53097364 | H63: 0.8729606566
D64: 0.61 | E64: 1.282051282 | F64: 59.18 | G64: 49.41944354 | H64: 0.8844449889
D65: 0.615 | E65: 1.298701299 | F65: 61.87 | G65: 49.30245582 | H65: 0.89524375
D66: 0.62 | E66: =IF(D66<0.5,2*D66,0.5/(1-D66)) -> 1.315789474 | F66: 64.56 | G66: 49.17997153 | H66: 0.9053629452
D67: 0.625 | E67: 1.333333333 | F67: 67.25 | G67: =SQRT(D67*(1-D67)*$B$54) -> 49.0519495 | H67: 0.9148118141
D68: 0.63 | E68: 1.351351351 | F68: 69.94 | G68: 48.91834625 | H68: 0.923602657
D69: 0.635 | E69: 1.369863014 | F69: 72.63 | G69: 48.77911592 | H69: 0.9317506374
D70: 0.64 | E70: 1.388888889 | F70: 75.32 | G70: 48.63421018 | H70: 0.9392735643
D71: 0.645 | E71: 1.408450704 | F71: 78.01 | G71: 48.48357815 | H71: 0.946191655
D72: 0.65 | E72: 1.428571429 | F72: 80.7 | G72: 48.32716627 | H72: 0.9525272822
D73: 0.655 | E73: 1.449275362 | F73: 83.39 | G73: 48.16491825 | H73: 0.9583047078
D74: 0.66 | E74: 1.470588235 | F74: 86.08 | G74: 47.99677489 | H74: 0.963549807
D75: 0.665 | E75: 1.492537313 | F75: 88.77 | G75: 47.82267402 | H75: 0.9682897846
D76: 0.67 | E76: 1.515151515 | F76: 91.46 | G76: 47.64255031 | H76: 0.9725528886
D77: 0.675 | E77: 1.538461538 | F77: 94.15 | G77: 47.45633519 | H77: 0.9763681227
D78: 0.68 | E78: 1.5625 | F78: 96.84 | G78: 47.26395667 | H78: 0.9797649625
D79: 0.685 | E79: 1.587301587 | F79: 99.53 | G79: 47.06533916 | H79: 0.9827730779
D80: 0.69 | E80: 1.612903226 | F80: 102.22 | G80: 46.86040333 | H80: 0.9854220658
D81: 0.695 | E81: 1.639344262 | F81: 104.91 | G81: 46.64906591 | H81: 0.987741195
D82: 0.7 | E82: 1.666666667 | F82: 107.6 | G82: 46.43123948 | H82: 0.9897591678

Sheet Example6
A1: votes | B1: bias | C1: votes won | D1: x_avg | E1: y_avg
A2: 4 | B2: 3 | C2: =vk($A2,$B2,$M$2,$M$3) -> 2.25 | D2: =xavg($A2,$B2,$M$2,$M$3) -> 0.125 | E2: =yavg($A2,$B2,$M$2,$M$3) -> 1.75 | L2: lam | M2: 2
A3: 2 | B3: 0 | C3: =vk($A3,$B3,$M$2,$M$3) -> 0.5 | D3: =xavg($A3,$B3,$M$2,$M$3) -> 0.25 | E3: =yavg($A3,$B3,$M$2,$M$3) -> 0.5 | L3: mu | M3: 1
A4: 1 | B4: 0 | C4: =vk($A4,$B4,$M$2,$M$3) -> 0.25 | D4: =xavg($A4,$B4,$M$2,$M$3) -> 0.125 | E4: =yavg($A4,$B4,$M$2,$M$3) -> 0.25
C5: =SUM(C2:C4) -> 3 | D5: =SUM(D2:D4) -> 0.5 | E5: =SUM(E2:E4) -> 2.5

Sheet G55
B1: 5000 | C1: 4001 | D1: 3011 | E1: 3002 | F1: 2111 | G1: 2012 | H1: 2003 | I1: 1112 | J1: 1022 | K1: 1013 | L1: 1004 | M1: 122 | N1: 113 | O1: 14 | P1: 5 | Q1: 23 | R1: x()
A2: 5000 | B2: =probwin($A2,B$1) -> 0.5 | C2: =probwin($A2,C$1) -> 0.75 | D2: 0.5 | E2: 0.75 | F2: 0 | G2: 0.5 | H2: 0.75 | I2: 0 | J2: 0.5 | K2: 0.5 | L2: 0.75 | M2: 0 | N2: 0 | O2: 0.5 | P2: 0.75 | Q2: 0.5 | R2: 0
A3: 4001 | B3: =probwin($A3,B$1) -> 0.25 | C3: 0.5 | D3: 0.8333333333 | E3: 0.9166666667 | F3: 0.5 | G3: 0.75 | H3: 0.9166666667 | I3: 0.3333333333 | J3: 0.6666666667 | K3: 0.75 | L3: 0.9166666667 | M3: 0.1666666667 | N3: 0.3333333333 | O3: 0.75 | P3: 0.9166666667 | Q3: 0.6666666667 | R3: 0.3896103847
A4: 3011 | B4: 0.5 | C4: 0.1666666667 | D4: 0.5 | E4: 0.5 | F4: 0.75 | G4: 0.9166666667 | H4: 1 | I4: 0.5833333333 | J4: 0.8333333333 | K4: 0.9166666667 | L4: 1 | M4: 0.3333333333 | N4: 0.5833333333 | O4: 0.9166666667 | P4: 1 | Q4: 0.8333333333 | R4: 0
A5: 3002 | B5: 0.25 | C5: 0.08333333333 | D5: 0.5 | E5: 0.5 | F5: 1 | G5: 0.9166666667 | H5: 0.9166666667 | I5: 0.8333333333 | J5: 0.8333333333 | K5: 0.8333333333 | L5: 0.9166666667 | M5: 0.6666666667 | N5: 0.6666666667 | O5: 0.8333333333 | P5: 0.9166666667 | Q5: 0.75 | R5: 0.1558441548
A6: 2111 | B6: 1 | C6: 0.5 | D6: 0.25 | E6: 0 | F6: 0.5 | G6: 0.5 | H6: 0.5 | I6: 0.75 | J6: 1 | K6: 1 | L6: 1 | M6: 0.5 | N6: 0.75 | O6: 1 | P6: 1 | Q6: 1 | R6: 0.1038961082
A7: 2012 | B7: 0.5 | C7: 0.25 | D7: 0.08333333333 | E7: 0.08333333333 | F7: 0.5 | G7: 0.5 | H7: 0.5 | I7: 0.9166666667 | J7: 0.9166666667 | K7: 0.9583333333 | L7: 1 | M7: 0.75 | N7: 0.8333333333 | O7: 0.9583333333 | P7: 1 | Q7: 0.875 | R7: 0
A8: 2003 | B8: 0.25 | C8: 0.08333333333 | D8: 0 | E8: 0.08333333333 | F8: 0.5 | G8: 0.5 | H8: 0.5 | I8: 1 | J8: 1 | K8: 0.9166666667 | L8: 0.9166666667 | M8: 1 | N8: 0.8333333333 | O8: 0.8333333333 | P8: 0.9166666667 | Q8: 0.9166666667 | R8: 0
A9: 1112 | B9: 1 | C9: 0.6666666667 | D9: 0.4166666667 | E9: 0.1666666667 | F9: 0.25 | G9: 0.08333333333 | H9: 0 | I9: 0.5 | J9: 0.5 | K9: 0.5 | L9: 0.5 | M9: 0.8333333333 | N9: 0.9166666667 | O9: 1 | P9: 1 | Q9: 1 | R9: 0.3116882981
A10: 1022 | B10: 0.5 | C10: 0.3333333333 | D10: 0.1666666667 | E10: 0.1666666667 | F10: 0 | G10: 0.08333333333 | H10: 0 | I10: 0.5 | J10: 0.5 | K10: 0.5 | L10: 0.5 | M10: 0.9166666667 | N10: 1 | O10: 1 | P10: 1 | Q10: 0.9166666667 | R10: 0
A11: 1013 | B11: 0.5 | C11: 0.25 | D11: 0.08333333333 | E11: 0.1666666667 | F11: 0 | G11: 0.04166666667 | H11: 0.08333333333 | I11: 0.5 | J11: 0.5 | K11: 0.5 | L11: 0.5 | M11: 1 | N11: 0.9166666667 | O11: 0.9583333333 | P11: 1 | Q11: 0.9583333333 | R11: 0
A12: 1004 | B12: 0.25 | C12: 0.08333333333 | D12: 0 | E12: 0.08333333333 | F12: 0 | G12: 0 | H12: 0.08333333333 | I12: 0.5 | J12: 0.5 | K12: 0.5 | L12: 0.5 | M12: 1 | N12: 1 | O12: 0.9166666667 | P12: 0.9166666667 | Q12: 1 | R12: 0
A13: 122 | B13: 1 | C13: 0.8333333333 | D13: 0.6666666667 | E13: 0.3333333333 | F13: 0.5 | G13: 0.25 | H13: 0 | I13: 0.1666666667 | J13: 0.08333333333 | K13: 0 | L13: 0 | M13: 0.5 | N13: 0.5 | O13: 0.5 | P13: 0.5 | Q13: 0.5 | R13: 0.03896105408
A14: 113 | B14: 1 | C14: 0.6666666667 | D14: 0.4166666667 | E14: 0.3333333333 | F14: 0.25 | G14: 0.1666666667 | H14: 0.1666666667 | I14: 0.08333333333 | J14: 0 | K14: 0.08333333333 | L14: 0 | M14: 0.5 | N14: 0.5 | O14: 0.5 | P14: 0.5 | Q14: 0.5 | R14: 0
A15: 14 | B15: 0.5 | C15: 0.25 | D15: 0.08333333333 | E15: 0.1666666667 | F15: 0 | G15: 0.04166666667 | H15: 0.1666666667 | I15: 0 | J15: 0 | K15: 0.04166666667 | L15: 0.08333333333 | M15: 0.5 | N15: 0.5 | O15: 0.5 | P15: 0.5 | Q15: 0.5 | R15: 0
A16: 5 | B16: 0.25 | C16: 0.08333333333 | D16: 0 | E16: 0.08333333333 | F16: 0 | G16: 0 | H16: 0.08333333333 | I16: 0 | J16: 0 | K16: 0 | L16: 0.08333333333 | M16: 0.5 | N16: 0.5 | O16: 0.5 | P16: 0.5 | Q16: 0.5 | R16: 0
A17: 23 | B17: 0.5 | C17: 0.3333333333 | D17: 0.1666666667 | E17: 0.25 | F17: 0 | G17: 0.125 | H17: 0.08333333333 | I17: 0 | J17: 0.08333333333 | K17: 0.04166666667 | L17: 0 | M17: 0.5 | N17: 0.5 | O17: 0.5 | P17: 0.5 | Q17: 0.5 | R17: 0
B18: =SUMPRODUCT(B2:B17,$R$2:$R$17) -> 0.5909090953 | C18: =SUMPRODUCT(C2:C17,$R$2:$R$17) -> 0.5000000032 | D18: 0.5844155854 | E18: 0.4999999978 | F18: 0.5000000029 | G18: 0.522727273 | H18: 0.5519480487 | I18: 0.4999999965 | J18: 0.6525973973 | K18: 0.6818181749 | L18: 0.7597402519 | M18: 0.4999999969 | N18: 0.616883113 | O18: 0.857142851 | P18: 0.935064928 | Q18: 0.811688306 | R18: =SUM(R2:R17) -> 1 | S18: 0.5000000029
R19: 1
H24: #big | I24: prob
H25: 0 | I25: =SUM(R13:R17) -> 0.03896105408
H26: 1 | I26: =SUM(R9:R12) -> 0.3116882981
H27: 2 | I27: =SUM(R6:R8) -> 0.1038961082
H28: 3 | I28: =SUM(R4:R5) -> 0.1558441548
H29: 4 | I29: =R3 -> 0.3896103847
H30: 5 | I30: =R2 -> 0
I31: =SUM(I25:I30) -> 1 | J31: =SUMPRODUCT(H25:H30,I25:I30) -> 2.545454518

Sheet G66
B1: 6000 | C1: 5001 | D1: 4011 | E1: 4002 | F1: 3111 | G1: 3012 | H1: 3003 | I1: 2112 | J1: 2022 | K1: 2013 | L1: 2004 | M1: 1122 | N1: 1113 | O1: 1014 | P1: 1005 | Q1: 1023 | R1: 6 | S1: 15 | T1: 24 | U1: 33 | V1: 114 | W1: 123 | X1: 222 | Y1: x()
A2: 6000 | B2: =probwin($A2,B$1) -> 0.5 | C2: =probwin($A2,C$1) -> 0.75 | D2: 0.5 | E2: 0.75 | F2: 0 | G2: 0.5 | H2: 0.75 | I2: 0 | J2: 0.5 | K2: 0.5 | L2: 0.75 | M2: 0 | N2: 0 | O2: 0.5 | P2: 0.75 | Q2: 0.5 | R2: 0.75 | S2: 0.5 | T2: 0.5 | U2: 0.5 | V2: 0 | W2: 0 | X2: 0 | Y2: 0
A3: 5001 | B3: 0.25 | C3: =probwin($A3,C$1) -> 0.5 | D3: 0.8333333333 | E3: 0.9166666667 | F3: 0.5 | G3: 0.75 | H3: 0.9166666667 | I3: 0.3333333333 | J3: 0.6666666667 | K3: 0.75 | L3: 0.9166666667 | M3: 0.1666666667 | N3: 0.3333333333 | O3: 0.75 | P3: 0.9166666667 | Q3: 0.6666666667 | R3: 0.9166666667 | S3: 0.75 | T3: 0.6666666667 | U3: 0.6666666667 | V3: 0.3333333333 | W3: 0.1666666667 | X3: 0 | Y3: 0.3809524477
A4: 4011 | B4: 0.5 | C4: 0.1666666667 | D4: 0.5 | E4: 0.5 | F4: 0.75 | G4: 0.9166666667 | H4: 1 | I4: 0.5833333333 | J4: 0.8333333333 | K4: 0.9166666667 | L4: 1 | M4: 0.3333333333 | N4: 0.5833333333 | O4: 0.9166666667 | P4: 1 | Q4: 0.8333333333 | R4: 1 | S4: 0.9166666667 | T4: 0.8333333333 | U4: 0.8333333333 | V4: 0.5833333333 | W4: 0.3333333333 | X4: 0 | Y4: 0
A5: 4002 | B5: 0.25 | C5: 0.08333333333 | D5: 0.5 | E5: 0.5 | F5: 1 | G5: 0.9166666667 | H5: 0.9166666667 | I5: 0.8333333333 | J5: 0.8333333333 | K5: 0.8333333333 | L5: 0.9166666667 | M5: 0.6666666667 | N5: 0.6666666667 | O5: 0.8333333333 | P5: 0.9166666667 | Q5: 0.75 | R5: 0.9166666667 | S5: 0.8333333333 | T5: 0.75 | U5: 0.6666666667 | V5: 0.6666666667 | W5: 0.5 | X5: 0.5 | Y5: 0.01904749891
A6: 3111 | B6: 1 | C6: 0.5 | D6: 0.25 | E6: 0 | F6: 0.5 | G6: 0.5 | H6: 0.5 | I6: 0.75 | J6: 1 | K6: 1 | L6: 1 | M6: 0.5 | N6: 0.75 | O6: 1 | P6: 1 | Q6: 1 | R6: 1 | S6: 1 | T6: 1 | U6: 1 | V6: 0.75 | W6: 0.5 | X6: 0 | Y6: 0
A7: 3012 | B7: 0.5 | C7: 0.25 | D7: 0.08333333333 | E7: 0.08333333333 | F7: 0.5 | G7: 0.5 | H7: 0.5 | I7: 0.9166666667 | J7: 0.9166666667 | K7: 0.9583333333 | L7: 1 | M7: 0.75 | N7: 0.8333333333 | O7: 0.9583333333 | P7: 1 | Q7: 0.875 | R7: 1 | S7: 0.9583333333 | T7: 0.875 | U7: 0.8333333333 | V7: 0.8333333333 | W7: 0.625 | X7: 0.5 | Y7: 0
A8: 3003 | B8: 0.25 | C8: 0.08333333333 | D8: 0 | E8: 0.08333333333 | F8: 0.5 | G8: 0.5 | H8: 0.5 | I8: 1 | J8: 1 | K8: 0.9166666667 | L8: 0.9166666667 | M8: 1 | N8: 0.8333333333 | O8: 0.8333333333 | P8: 0.9166666667 | Q8: 0.9166666667 | R8: 0.9166666667 | S8: 0.8333333333 | T8: 0.8333333333 | U8: 0.8333333333 | V8: 0.6666666667 | W8: 0.8333333333 | X8: 1 | Y8: 0.2666667205
A9: 2112 | B9: 1 | C9: 0.6666666667 | D9: 0.4166666667 | E9: 0.1666666667 | F9: 0.25 | G9: 0.08333333333 | H9: 0 | I9: 0.5 | J9: 0.5 | K9: 0.5 | L9: 0.5 | M9: 0.8333333333 | N9: 0.9166666667 | O9: 1 | P9: 1 | Q9: 1 | R9: 1 | S9: 1 | T9: 1 | U9: 1 | V9: 0.9166666667 | W9: 0.75 | X9: 0.5 | Y9: 0.02857149838
A10: 2022 | B10: 0.5 | C10: 0.3333333333 | D10: 0.1666666667 | E10: 0.1666666667 | F10: 0 | G10: 0.08333333333 | H10: 0 | I10: 0.5 | J10: 0.5 | K10: 0.5 | L10: 0.5 | M10: 0.9166666667 | N10: 1 | O10: 1 | P10: 1 | Q10: 0.9166666667 | R10: 1 | S10: 1 | T10: 0.9166666667 | U10: 0.8333333333 | V10: 1 | W10: 0.8333333333 | X10: 0.75 | Y10: 0
A11: 2013 | B11: 0.5 | C11: 0.25 | D11: 0.08333333333 | E11: 0.1666666667 | F11: 0 | G11: 0.04166666667 | H11: 0.08333333333 | I11: 0.5 | J11: 0.5 | K11: 0.5 | L11: 0.5 | M11: 1 | N11: 0.9166666667 | O11: 0.9583333333 | P11: 1 | Q11: 0.9583333333 | R11: 1 | S11: 0.9583333333 | T11: 0.9166666667 | U11: 0.9166666667 | V11: 0.8333333333 | W11: 0.875 | X11: 1 | Y11: 0
A12: 2004 | B12: 0.25 | C12: 0.08333333333 | D12: 0 | E12: 0.08333333333 | F12: 0 | G12: 0 | H12: 0.08333333333 | I12: 0.5 | J12: 0.5 | K12: 0.5 | L12: 0.5 | M12: 1 | N12: 1 | O12: 0.9166666667 | P12: 0.9166666667 | Q12: 1 | R12: 0.9166666667 | S12: 0.8333333333 | T12: 0.9166666667 | U12: 1 | V12: 0.8333333333 | W12: 1 | X12: 1 | Y12: 0
A13: 1122 | B13: 1 | C13: 0.8333333333 | D13: 0.6666666667 | E13: 0.3333333333 | F13: 0.5 | G13: 0.25 | H13: 0 | I13: 0.1666666667 | J13: 0.08333333333 | K13: 0 | L13: 0 | M13: 0.5 | N13: 0.5 | O13: 0.5 | P13: 0.5 | Q13: 0.5 | R13: 1 | S13: 1 | T13: 1 | U13: 1 | V13: 1 | W13: 0.9166666667 | X13: 0.75 | Y13: 0.228571194
A14: 1113 | B14: 1 | C14: 0.6666666667 | D14: 0.4166666667 | E14: 0.3333333333 | F14: 0.25 | G14: 0.1666666667 | H14: 0.1666666667 | I14: =probwin($A14,I$1) -> 0.08333333333 | J14: 0 | K14: 0.08333333333 | L14: 0 | M14: 0.5 | N14: 0.5 | O14: 0.5 | P14: 0.5 | Q14: 0.5 | R14: 1 | S14: 1 | T14: 1 | U14: 1 | V14: 0.9166666667 | W14: 0.9166666667 | X14: 1 | Y14: 0
A15: 1014 | B15: 0.5 | C15: 0.25 | D15: 0.08333333333 | E15: 0.1666666667 | F15: 0 | G15: 0.04166666667 | H15: 0.1666666667 | I15: 0 | J15: 0 | K15: 0.04166666667 | L15: 0.08333333333 | M15: 0.5 | N15: 0.5 | O15: 0.5 | P15: 0.5 | Q15: 0.5 | R15: 1 | S15: 0.9583333333 | T15: 0.9583333333 | U15: 1 | V15: 0.9166666667 | W15: 1 | X15: 1 | Y15: 0
A16: 1005 | B16: 0.25 | C16: 0.08333333333 | D16: 0 | E16: 0.08333333333 | F16: 0 | G16: 0 | H16: 0.08333333333 | I16: 0 | J16: 0 | K16: 0 | L16: 0.08333333333 | M16: 0.5 | N16: 0.5 | O16: 0.5 | P16: 0.5 | Q16: 0.5 | R16: 0.9166666667 | S16: 0.9166666667 | T16: 1 | U16: 1 | V16: 1 | W16: 1 | X16: 1 | Y16: 0
A17: 1023 | B17: 0.5 | C17: 0.3333333333 | D17: 0.1666666667 | E17: 0.25 | F17: 0 | G17: 0.125 | H17: 0.08333333333 | I17: 0 | J17: 0.08333333333 | K17: 0.04166666667 | L17: 0 | M17: 0.5 | N17: 0.5 | O17: 0.5 | P17: 0.5 | Q17: 0.5 | R17: 1 | S17: 1 | T17: 0.9583333333 | U17: 0.9166666667 | V17: 1 | W17: 0.9583333333 | X17: 1 | Y17: 0
A18: 6 | B18: 0.25 | C18: 0.08333333333 | D18: 0 | E18: 0.08333333333 | F18: 0 | G18: 0 | H18: 0.08333333333 | I18: 0 | J18: 0 | K18: 0 | L18: 0.08333333333 | M18: 0 | N18: 0 | O18: 0 | P18: 0.08333333333 | Q18: 0 | R18: 0.5 | S18: 0.5 | T18: 0.5 | U18: 0.5 | V18: 0.5 | W18: 0.5 | X18: 0.5 | Y18: 0
A19: 15 | B19: 0.5 | C19: 0.25 | D19: 0.08333333333 | E19: 0.1666666667 | F19: 0 | G19: 0.04166666667 | H19: 0.1666666667 | I19: 0 | J19: 0 | K19: 0.04166666667 | L19: 0.1666666667 | M19: 0 | N19: 0 | O19: 0.04166666667 | P19: 0.08333333333 | Q19: 0 | R19: 0.5 | S19: 0.5 | T19: 0.5 | U19: 0.5 | V19: 0.5 | W19: 0.5 | X19: 0.5 | Y19: 0
A20: 24 | B20: 0.5 | C20: 0.3333333333 | D20: 0.1666666667 | E20: 0.25 | F20: 0 | G20: 0.125 | H20: 0.1666666667 | I20: 0 | J20: 0.08333333333 | K20: 0.08333333333 | L20: 0.08333333333 | M20: 0 | N20: 0 | O20: 0.04166666667 | P20: 0 | Q20: 0.04166666667 | R20: 0.5 | S20: 0.5 | T20: 0.5 | U20: 0.5 | V20: 0.5 | W20: 0.5 | X20: 0.5 | Y20: 0
A21: 33 | B21: 0.5 | C21: 0.3333333333 | D21: 0.1666666667 | E21: 0.3333333333 | F21: 0 | G21: 0.1666666667 | H21: 0.1666666667 | I21: 0 | J21: 0.1666666667 | K21: 0.08333333333 | L21: 0 | M21: 0 | N21: 0 | O21: 0 | P21: 0 | Q21: 0.08333333333 | R21: 0.5 | S21: 0.5 | T21: 0.5 | U21: 0.5 | V21: 0.5 | W21: 0.5 | X21: 0.5 | Y21: 0
A22: 114 | B22: 1 | C22: 0.6666666667 | D22: 0.4166666667 | E22: 0.3333333333 | F22: 0.25 | G22: 0.1666666667 | H22: 0.3333333333 | I22: 0.08333333333 | J22: 0 | K22: 0.1666666667 | L22: 0.1666666667 | M22: 0 | N22: 0.08333333333 | O22: 0.08333333333 | P22: 0 | Q22: 0 | R22: 0.5 | S22: 0.5 | T22: 0.5 | U22: 0.5 | V22: 0.5 | W22: 0.5 | X22: 0.5 | Y22: 0
A23: 123 | B23: 1 | C23: 0.8333333333 | D23: 0.6666666667 | E23: 0.5 | F23: 0.5 | G23: 0.375 | H23: 0.1666666667 | I23: 0.25 | J23: 0.1666666667 | K23: 0.125 | L23: 0 | M23: 0.08333333333 | N23: 0.08333333333 | O23: 0 | P23: 0 | Q23: 0.04166666667 | R23: 0.5 | S23: 0.5 | T23: 0.5 | U23: 0.5 | V23: 0.5 | W23: 0.5 | X23: 0.5 | Y23: 0
A24: 222 | B24: 1 | C24: 1 | D24: 1 | E24: 0.5 | F24: 1 | G24: 0.5 | H24: 0 | I24: 0.5 | J24: 0.25 | K24: 0 | L24: 0 | M24: 0.25 | N24: 0 | O24: 0 | P24: 0 | Q24: 0 | R24: 0.5 | S24: 0.5 | T24: 0.5 | U24: 0.5 | V24: 0.5 | W24: 0.5 | X24: 0.5 | Y24: 0.07619051098
B25: =SUMPRODUCT(B2:B24,$Y$2:$Y$24) -> 0.4999998701 | C25: =SUMPRODUCT(C2:C24,$Y$2:$Y$24) -> 0.4999999137 | D25: 0.5674602205 | E25: 0.4999999564 | F25: 0.5404760656 | G25: 0.5341269155 | H25: 0.499999978 | I25: 0.4999999892 | J25: 0.5888889112 | K25: 0.5603174945 | L25: 0.6253968607 | M25: 0.4999999344 | N25: 0.5023808861 | O25: 0.666666614 | P25: 0.7539682069 | Q25: 0.6555555118 | R25: 0.9063490594 | S25: 0.8190474665 | T25: 0.7857141376 | U25: 0.784126846 | V25: 0.6103172851 | W25: 0.5642855649 | X25: 0.4999998701 | Y25: =SUM(Y2:Y24) -> 0.9999998704 | Z25: 0.4999999997
Y26: 1
I31: 0 | J31: =SUM(Y18:Y24) -> 0.07619051098
I32: 1 | J32: =SUM(Y13:Y17) -> 0.228571194
I33: 2 | J33: =SUM(Y9:Y12) -> 0.02857149838
I34: 3 | J34: =SUM(Y6:Y8) -> 0.2666667205
I35: 4 | J35: =SUM(Y4:Y5) -> 0.01904749891
I36: 5 | J36: =Y3 -> 0.3809524477
I37: 6 | J37: =Y2 -> 0
J38: =SUM(J31:J37) -> 0.9999998704

Sheet G77
B1: 7000 | C1: 6001 | D1: 5011 | E1: 5002 | F1: 4111 | G1: 4012 | H1: 4003 | I1: 3112 | J1: 3022 | K1: 3013 | L1: 3004 | M1: 2122 | N1: 2113 | O1: 2014 | P1: 2005 | Q1: 2023 | R1: 1006 | S1: 1015 | T1: 1024 | U1: 1033 | V1: 1114 | W1: 1123 | X1: 1222 | Y1: 7 | Z1: 16 | AA1: 25 | AB1: 115 | AC1: 34 | AD1: 124 | AE1: 133 | AF1: 223 | AG1: x()
A2: 7000 | B2: =probwin($A2,B$1) -> 0.5 | C2: =probwin($A2,C$1) -> 0.75 | D2: 0.5 | E2: 0.75 | F2: 0 | G2: 0.5 | H2: 0.75 | I2: 0 | J2: 0.5 | K2: 0.5 | L2: 0.75 | M2: 0 | N2: 0 | O2: 0.5 | P2: 0.75 | Q2: 0.5 | R2: 0.75 | S2: 0.5 | T2: 0.5 | U2: 0.5 | V2: 0 | W2: 0 | X2: 0 | Y2: 0.75 | Z2: 0.5 | AA2: 0.5 | AB2: 0 | AC2: 0.5 | AD2: 0 | AE2: 0 | AF2: 0 | AG2: 0
A3: 6001 | B3: 0.25 | C3: =probwin($A3,C$1) -> 0.5 | D3: 0.8333333333 | E3: 0.9166666667 | F3: 0.5 | G3: 0.75 | H3: 0.9166666667 | I3: 0.3333333333 | J3: 0.6666666667 | K3: 0.75 | L3: 0.9166666667 | M3: 0.1666666667 | N3: 0.3333333333 | O3: 0.75 | P3: 0.9166666667 | Q3: 0.6666666667 | R3: 0.9166666667 | S3: 0.75 | T3: 0.6666666667 | U3: 0.6666666667 | V3: 0.3333333333 | W3: 0.1666666667 | X3: 0 | Y3: 0.9166666667 | Z3: 0.75 | AA3: 0.6666666667 | AB3: 0.3333333333 | AC3: 0.6666666667 | AD3: 0.1666666667 | AE3: 0.1666666667 | AF3: 0 | AG3: 0.331210189
A4: 5011 | B4: 0.5 | C4: 0.1666666667 | D4: 0.5 | E4: 0.5 | F4: 0.75 | G4: 0.9166666667 | H4: 1 | I4: 0.5833333333 | J4: 0.8333333333 | K4: 0.9166666667 | L4: 1 | M4: 0.3333333333 | N4: 0.5833333333 | O4: 0.9166666667 | P4: 1 | Q4: 0.8333333333 | R4: 1 | S4: 0.9166666667 | T4: 0.8333333333 | U4: 0.8333333333 | V4: 0.5833333333 | W4: 0.3333333333 | X4: 0 | Y4: 1 | Z4: 0.9166666667 | AA4: 0.8333333333 | AB4: 0.5833333333 | AC4: 0.8333333333 | AD4: 0.3333333333 | AE4: 0.3333333333 | AF4: 0 | AG4: 0
A5: 5002 | B5: 0.25 | C5: 0.08333333333 | D5: 0.5 | E5: 0.5 | F5: 1 | G5: 0.9166666667 | H5: 0.9166666667 | I5: 0.8333333333 | J5: 0.8333333333 | K5: 0.8333333333 | L5: 0.9166666667 | M5: 0.6666666667 | N5: 0.6666666667 | O5: 0.8333333333 | P5: 0.9166666667 | Q5: 0.75 | R5: 0.9166666667 | S5: 0.8333333333 | T5: 0.75 | U5: 0.6666666667 | V5: 0.6666666667 | W5: 0.5 | X5: 0.5 | Y5: 0.9166666667 | Z5: 0.8333333333 | AA5: 0.75 | AB5: 0.6666666667 | AC5: 0.6666666667 | AD5: 0.5 | AE5: 0.3333333333 | AF5: 0.3333333333 | AG5: 0
A6: 4111 | B6: 1 | C6: 0.5 | D6: 0.25 | E6: 0 | F6: 0.5 | G6: 0.5 | H6: 0.5 | I6: 0.75 | J6: 1 | K6: 1 | L6: 1 | M6: 0.5 | N6: 0.75 | O6: 1 | P6: 1 | Q6: 1 | R6: 1 | S6: 1 | T6: 1 | U6: 1 | V6: 0.75 | W6: 0.5 | X6: 0 | Y6: 1 | Z6: 1 | AA6: 1 | AB6: 0.75 | AC6: 1 | AD6: 0.5 | AE6: 0.5 | AF6: 0 | AG6: 0
A7: 4012 | B7: 0.5 | C7: 0.25 | D7: 0.08333333333 | E7: 0.08333333333 | F7: 0.5 | G7: 0.5 | H7: 0.5 | I7: 0.9166666667 | J7: 0.9166666667 | K7: 0.9583333333 | L7: 1 | M7: 0.75 | N7: 0.8333333333 | O7: 0.9583333333 | P7: 1 | Q7: 0.875 | R7: 1 | S7: 0.9583333333 | T7: 0.875 | U7: 0.8333333333 | V7: 0.8333333333 | W7: 0.625 | X7: 0.5 | Y7: 1 | Z7: 0.9583333333 | AA7: 0.875 | AB7: 0.8333333333 | AC7: 0.8333333333 | AD7: 0.625 | AE7: 0.5 | AF7: 0.3333333333 | AG7: 0
A8: 4003 | B8: 0.25 | C8: 0.08333333333 | D8: 0 | E8: 0.08333333333 | F8: 0.5 | G8: 0.5 | H8: 0.5 | I8: 1 | J8: 1 | K8: 0.9166666667 | L8: 0.9166666667 | M8: 1 | N8: 0.8333333333 | O8: 0.8333333333 | P8: 0.9166666667 | Q8: 0.9166666667 | R8: 0.9166666667 | S8: 0.8333333333 | T8: 0.8333333333 | U8: 0.8333333333 | V8: 0.6666666667 | W8: 0.8333333333 | X8: 1 | Y8: 0.9166666667 | Z8: 0.8333333333 | AA8: 0.8333333333 | AB8: 0.6666666667 | AC8: 0.75 | AD8: 0.6666666667 | AE8: 0.6666666667 | AF8: 0.8333333333 | AG8: 0.2675159238
A9: 3112 | B9: 1 | C9: 0.6666666667 | D9: 0.4166666667 | E9: 0.1666666667 | F9: 0.25 | G9: 0.08333333333 | H9: 0 | I9: 0.5 | J9: 0.5 | K9: 0.5 | L9: 0.5 | M9: 0.8333333333 | N9: 0.9166666667 | O9: 1 | P9: 1 | Q9: 1 | R9: 1 | S9: 1 | T9: 1 | U9: 1 | V9: 0.9166666667 | W9: 0.75 | X9: 0.5 | Y9: 1 | Z9: 1 | AA9: 1 | AB9: 0.9166666667 | AC9: 1 | AD9: 0.75 | AE9: 0.6666666667 | AF9: 0.3333333333 | AG9: 0.02547770561
A10: 3022 | B10: 0.5 | C10: 0.3333333333 | D10: 0.1666666667 | E10: 0.1666666667 | F10: 0 | G10: 0.08333333333 | H10: 0 | I10: 0.5 | J10: 0.5 | K10: 0.5 | L10: 0.5 | M10: 0.9166666667 | N10: 1 | O10: 1 | P10: 1 | Q10: 0.9166666667 | R10: 1 | S10: 1 | T10: 0.9166666667 | U10: 0.8333333333 | V10: 1 | W10: 0.8333333333 | X10: 0.75 | Y10: 1 | Z10: 1 | AA10: 0.9166666667 | AB10: 1 | AC10: 0.8333333333 | AD10: 0.8333333333 | AE10: 0.6666666667 | AF10: 0.5833333333 | AG10: 0
A11: 3013 | B11: 0.5 | C11: =probwin($A11,C$1) -> 0.25 | D11: 0.08333333333 | E11: 0.1666666667 | F11: 0 | G11: 0.04166666667 | H11: 0.08333333333 | I11: 0.5 | J11: 0.5 | K11: 0.5 | L11: 0.5 | M11: 1 | N11: 0.9166666667 | O11: 0.9583333333 | P11: 1 | Q11: 0.9583333333 | R11: 1 | S11: 0.9583333333 | T11: 0.9166666667 | U11: 0.9166666667 | V11: 0.8333333333 | W11: 0.875 | X11: 1 | Y11: 1 | Z11: 0.9583333333 | AA11: 0.9166666667 | AB11: 0.8333333333 | AC11: 0.875 | AD11: 0.75 | AE11: 0.75 | AF11: 0.8333333333 | AG11: 0
A12: 3004 | B12: 0.25 | C12: 0.08333333333 | D12: 0 | E12: 0.08333333333 | F12: 0 | G12: 0 | H12: 0.08333333333 | I12: 0.5 | J12: 0.5 | K12: 0.5 | L12: 0.5 | M12: 1 | N12: 1 | O12: 0.9166666667 | P12: 0.9166666667 | Q12: 1 | R12: 0.9166666667 | S12: 0.8333333333 | T12: 0.9166666667 | U12: 1 | V12: 0.8333333333 | W12: 1 | X12: 1 | Y12: 0.9166666667 | Z12: 0.8333333333 | AA12: 0.8333333333 | AB12: 0.6666666667 | AC12: 0.9166666667 | AD12: 0.8333333333 | AE12: 1 | AF12: 1 | AG12: 0
A13: 2122 | B13: 1 | C13: 0.8333333333 | D13: 0.6666666667 | E13: 0.3333333333 | F13: 0.5 | G13: 0.25 | H13: 0 | I13: 0.1666666667 | J13: 0.08333333333 | K13: 0 | L13: 0 | M13: 0.5 | N13: 0.5 | O13: 0.5 | P13: 0.5 | Q13: 0.5 | R13: 1 | S13: 1 | T13: 1 | U13: 1 | V13: 1 | W13: 0.9166666667 | X13: 0.75 | Y13: 1 | Z13: 1 | AA13: 1 | AB13: 1 | AC13: 1 | AD13: 0.9166666667 | AE13: 0.8333333333 | AF13: 0.5833333333 | AG13: 0
A14: 2113 | B14: 1 | C14: 0.6666666667 | D14: 0.4166666667 | E14: 0.3333333333 | F14: 0.25 | G14: 0.1666666667 | H14: 0.1666666667 | I14: 0.08333333333 | J14: 0 | K14: 0.08333333333 | L14: 0 | M14: 0.5 | N14: 0.5 | O14: 0.5 | P14: 0.5 | Q14: 0.5 | R14: 1 | S14: 1 | T14: 1 | U14: 1 | V14: 0.9166666667 | W14: 0.9166666667 | X14: 1 | Y14: 1 | Z14: 1 | AA14: 1 | AB14: 0.9166666667 | AC14: 1 | AD14: 0.8333333333 | AE14: 0.8333333333 | AF14: 0.8333333333 | AG14: 0.2420382194
A15: 2014 | B15: 0.5 | C15: 0.25 | D15: 0.08333333333 | E15: 0.1666666667 | F15: 0 | G15: 0.04166666667 | H15: 0.1666666667 | I15: 0 | J15: 0 | K15: 0.04166666667 | L15: 0.08333333333 | M15: 0.5 | N15: 0.5 | O15: 0.5 | P15: 0.5 | Q15: 0.5 | R15: 1 | S15: 0.9583333333 | T15: 0.9583333333 | U15: 1 | V15: 0.9166666667 | W15: 1 | X15: 1 | Y15: 1 | Z15: 0.9583333333 | AA15: 0.9166666667 | AB15: 0.8333333333 | AC15: 0.9583333333 | AD15: 0.875 | AE15: 1 | AF15: 1 | AG15: 0
A16: 2005 | B16: 0.25 | C16: 0.08333333333 | D16: 0 | E16: 0.08333333333 | F16: 0 | G16: 0 | H16: 0.08333333333 | I16: 0 | J16: 0 | K16: 0 | L16: 0.08333333333 | M16: 0.5 | N16: 0.5 | O16: 0.5 | P16: 0.5 | Q16: 0.5 | R16: 0.9166666667 | S16: 0.9166666667 | T16: 1 | U16: 1 | V16: 1 | W16: 1 | X16: 1 | Y16: 0.9166666667 | Z16: 0.8333333333 | AA16: 0.9166666667 | AB16: 0.8333333333 | AC16: 1 | AD16: 1 | AE16: 1 | AF16: 1 | AG16: 0
A17: 2023 | B17: 0.5 | C17: 0.3333333333 | D17: 0.1666666667 | E17: 0.25 | F17: 0 | G17: 0.125 | H17: 0.08333333333 | I17: 0 | J17: 0.08333333333 | K17: 0.04166666667 | L17: 0 | M17: 0.5 | N17: 0.5 | O17: 0.5 | P17: 0.5 | Q17: 0.5 | R17: 1 | S17: 1 | T17: 0.9583333333 | U17: 0.9166666667 | V17: 1 | W17: 0.9583333333 | X17: 1 | Y17: 1 | Z17: 1 | AA17: 0.9583333333 | AB17: 1 | AC17: 0.875 | AD17: 0.9166666667 | AE17: 0.8333333333 | AF17: 0.9166666667 | AG17: 0
A18: 1006 | B18: 0.25 | C18: 0.08333333333 | D18: 0 | E18: 0.08333333333 | F18: 0 | G18: 0 | H18: 0.08333333333 | I18: 0 | J18: 0 | K18: 0 | L18: 0.08333333333 | M18: 0 | N18: 0 | O18: 0 | P18: 0.08333333333 | Q18: 0 | R18: 0.5 | S18: 0.5 | T18: 0.5 | U18: 0.5 | V18: 0.5 | W18: 0.5 | X18: 0.5 | Y18: 0.9166666667 | Z18: 0.9166666667 | AA18: 1 | AB18: 1 | AC18: 1 | AD18: 1 | AE18: 1 | AF18: 1 | AG18: 0
A19: 1015 | B19: 0.5 | C19: 0.25 | D19: 0.08333333333 | E19: 0.1666666667 | F19: 0 | G19: 0.04166666667 | H19: 0.1666666667 | I19: 0 | J19: 0 | K19: 0.04166666667 | L19: 0.1666666667 | M19: 0 | N19: 0 | O19: 0.04166666667 | P19: 0.08333333333 | Q19: 0 | R19: =probwin($A19,R$1) -> 0.5 | S19: 0.5 | T19: 0.5 | U19: 0.5 | V19: 0.5 | W19: 0.5 | X19: 0.5 | Y19: 1 | Z19: 0.9583333333 | AA19: 0.9583333333 | AB19: 0.9166666667 | AC19: 1 | AD19: 1 | AE19: 1 | AF19: 1 | AG19: 0
A20: 1024 | B20: 0.5 | C20: 0.3333333333 | D20: 0.1666666667 | E20: 0.25 | F20: 0 | G20: 0.125 | H20: 0.1666666667 | I20: 0 | J20: 0.08333333333 | K20: 0.08333333333 | L20: 0.08333333333 | M20: 0 | N20: 0 | O20: 0.04166666667 | P20: 0 | Q20: 0.04166666667 | R20: 0.5 | S20: 0.5 | T20: 0.5 | U20: 0.5 | V20: 0.5 | W20: 0.5 | X20: 0.5 | Y20: 1 | Z20: 1 | AA20: 0.9583333333 | AB20: 1 | AC20: 0.9583333333 | AD20: 0.9583333333 | AE20: 1 | AF20: 1 | AG20: 0
A21: 1033 | B21: 0.5 | C21: 0.3333333333 | D21: 0.1666666667 | E21: 0.3333333333 | F21: 0 | G21: 0.1666666667 | H21: 0.1666666667 | I21: 0 | J21: 0.1666666667 | K21: 0.08333333333 | L21: 0 | M21: 0 | N21: 0 | O21: 0 | P21: 0 | Q21: 0.08333333333 | R21: 0.5 | S21: 0.5 | T21: 0.5 | U21: 0.5 | V21: 0.5 | W21: 0.5 | X21: 0.5 | Y21: 1 | Z21: 1 | AA21: 1 | AB21: 1 | AC21: 0.9166666667 | AD21: 1 | AE21: 0.9166666667 | AF21: 1 | AG21: 0
A22: 1114 | B22: 1 | C22: 0.6666666667 | D22: 0.4166666667 | E22: 0.3333333333 | F22: 0.25 | G22: 0.1666666667 | H22: 0.3333333333 | I22: 0.08333333333 | J22: 0 | K22: 0.1666666667 | L22: 0.1666666667 | M22: 0 | N22: 0.08333333333 | O22: 0.08333333333 | P22: 0 | Q22: 0 | R22: 0.5 | S22: 0.5 | T22: 0.5 | U22: 0.5 | V22: 0.5 | W22: 0.5 | X22: 0.5 | Y22: 1 | Z22: 1 | AA22: 1 | AB22: 0.9166666667 | AC22: 1 | AD22: 0.9166666667 | AE22: 1 | AF22: 1 | AG22: 0
A23: 1123 | B23: 1 | C23: 0.8333333333 | D23: 0.6666666667 | E23: 0.5 | F23: 0.5 | G23: 0.375 | H23: 0.1666666667 | I23: 0.25 | J23: 0.1666666667 | K23: 0.125 | L23: 0 | M23: 0.08333333333 | N23: 0.08333333333 | O23: 0 | P23: 0 | Q23: 0.04166666667 | R23: 0.5 | S23: 0.5 | T23: 0.5 | U23: 0.5 | V23: 0.5 | W23: 0.5 | X23: 0.5 | Y23: 1 | Z23: 1 | AA23: 1 | AB23: 1 | AC23: 1 | AD23: 0.9583333333 | AE23: 0.9166666667 | AF23: 0.9166666667 | AG23: 0
A24: 1222 | B24: 1 | C24: 1 | D24: 1 | E24: 0.5 | F24: 1 | G24: 0.5 | H24: 0 | I24: 0.5 | J24: 0.25 | K24: 0 | L24: 0 | M24: 0.25 | N24: 0 | O24: 0 | P24: 0 | Q24: 0 | R24: 0.5 | S24: 0.5 | T24: 0.5 | U24: 0.5 | V24: 0.5 | W24: 0.5 | X24: 0.5 | Y24: 1 | Z24: 1 | AA24: 1 | AB24: 1 | AC24: 1 | AD24: 1 | AE24: 1 | AF24: 0.75 | AG24: 0
A25: 7 | B25: 0.25 | C25: 0.08333333333 | D25: 0 | E25: 0.08333333333 | F25: 0 | G25: 0 | H25: 0.08333333333 | I25: 0 | J25: 0 | K25: 0 | L25: 0.08333333333 | M25: 0 | N25: 0 | O25: 0 | P25: 0.08333333333 | Q25: 0 | R25: 0.08333333333 | S25: 0 | T25: 0 | U25: 0 | V25: 0 | W25: 0 | X25: 0 | Y25: 0.5 | Z25: 0.5 | AA25: 0.5 | AB25: 0.5 | AC25: 0.5 | AD25: 0.5 | AE25: 0.5 | AF25: 0.5 | AG25: 0
A26: 16 | B26: 0.5 | C26: 0.25 | D26: 0.08333333333 | E26: 0.1666666667 | F26: 0 | G26: 0.04166666667 | H26: 0.1666666667 | I26: 0 | J26: 0 | K26: 0.04166666667 | L26: 0.1666666667 | M26: 0 | N26: 0 | O26: 0.04166666667 | P26: 0.1666666667 | Q26: 0 | R26: 0.08333333333 | S26: 0.04166666667 | T26: 0 | U26: 0 | V26: 0 | W26: 0 | X26: 0 | Y26: 0.5 | Z26: 0.5 | AA26: 0.5 | AB26: 0.5 | AC26: 0.5 | AD26: 0.5 | AE26: 0.5 | AF26: 0.5 | AG26: 0
A27: 25 | B27: 0.5 | C27: 0.3333333333 | D27: 0.1666666667 | E27: 0.25 | F27: 0 | G27: 0.125 | H27: 0.1666666667 | I27: 0 | J27: 0.08333333333 | K27: 0.08333333333 | L27: 0.1666666667 | M27: 0 | N27: 0 | O27: 0.08333333333 | P27: 0.08333333333 | Q27: 0.04166666667 | R27: 0 | S27: 0.04166666667 | T27: 0.04166666667 | U27: 0 | V27: 0 | W27: 0 | X27: 0 | Y27: 0.5 | Z27: 0.5 | AA27: 0.5 | AB27: 0.5 | AC27: 0.5 | AD27: 0.5 | AE27: 0.5 | AF27: 0.5 | AG27: 0
A28: 115 | B28: 1 | C28: =probwin($A28,C$1) -> 0.6666666667 | D28: 0.4166666667 | E28: 0.3333333333 | F28: 0.25 | G28: 0.1666666667 | H28: 0.3333333333 | I28: 0.08333333333 | J28: 0 | K28: 0.1666666667 | L28: 0.3333333333 | M28: 0 | N28: 0.08333333333 | O28: 0.1666666667 | P28: 0.1666666667 | Q28: 0 | R28: 0 | S28: 0.08333333333 | T28: 0 | U28: 0 | V28: 0.08333333333 | W28: 0 | X28: 0 | Y28: 0.5 | Z28: 0.5 | AA28: 0.5 | AB28: 0.5 | AC28: 0.5 | AD28: 0.5 | AE28: 0.5 | AF28: 0.5 | AG28: 0
A29: 34 | B29: 0.5 | C29: 0.3333333333 | D29: 0.1666666667 | E29: 0.3333333333 | F29: 0 | G29: 0.1666666667 | H29: 0.25 | I29: 0 | J29: 0.1666666667 | K29: 0.125 | L29: 0.08333333333 | M29: 0 | N29: 0 | O29: 0.04166666667 | P29: 0 | Q29: 0.125 | R29: 0 | S29: 0 | T29: 0.04166666667 | U29: 0.08333333333 | V29: 0 | W29: 0 | X29: 0 | Y29: 0.5 | Z29: 0.5 | AA29: 0.5 | AB29: 0.5 | AC29: 0.5 | AD29: 0.5 | AE29: 0.5 | AF29: 0.5 | AG29: 0
A30: 124 | B30: 1 | C30: 0.8333333333 | D30: 0.6666666667 | E30: 0.5 | F30: 0.5 | G30: 0.375 | H30: 0.3333333333 | I30: 0.25 | J30: 0.1666666667 | K30: 0.25 | L30: 0.1666666667 | M30: 0.08333333333 | N30: 0.1666666667 | O30: 0.125 | P30: 0 | Q30: 0.08333333333 | R30: 0 | S30: 0 | T30: 0.04166666667 | U30: 0 | V30: 0.08333333333 | W30: 0.04166666667 | X30: 0 | Y30: 0.5 | Z30: 0.5 | AA30: 0.5 | AB30: 0.5 | AC30: 0.5 | AD30: 0.5 | AE30: 0.5 | AF30: 0.5 | AG30: 0
A31: 133 | B31: 1 | C31: 0.8333333333 | D31: 0.6666666667 | E31: 0.6666666667 | F31: 0.5 | G31: 0.5 | H31: 0.3333333333 | I31: 0.3333333333 | J31: 0.3333333333 | K31: 0.25 | L31: 0 | M31: 0.1666666667 | N31: 0.1666666667 | O31: 0 | P31: 0 | Q31: 0.1666666667 | R31: 0 | S31: 0 | T31: 0 | U31: 0.08333333333 | V31: 0 | W31: 0.08333333333 | X31: 0 | Y31: 0.5 | Z31: 0.5 | AA31: 0.5 | AB31: 0.5 | AC31: 0.5 | AD31: 0.5 | AE31: 0.5 | AF31: 0.5 | AG31: 0
A32: 223 | B32: 1 | C32: 1 | D32: 1 | E32: 0.6666666667 | F32: 1 | G32: 0.6666666667 | H32: 0.1666666667 | I32: 0.6666666667 | J32: 0.4166666667 | K32: 0.1666666667 | L32: 0 | M32: 0.4166666667 | N32: 0.1666666667 | O32: 0 | P32: 0 | Q32: 0.08333333333 | R32: 0 | S32: 0 | T32: 0 | U32: 0 | V32: 0 | W32: 0.08333333333 | X32: 0.25 | Y32: 0.5 | Z32: 0.5 | AA32: 0.5 | AB32: 0.5 | AC32: 0.5 | AD32: 0.5 | AE32: 0.5 | AF32: 0.5 | AG32: 0.1337579607
B33: =SUMPRODUCT(B2:B32,$AG$2:$AG$32) -> 0.5509554139 | C33: =SUMPRODUCT(C2:C32,$AG$2:$AG$32) -> 0.4999999988 | D33: 0.5212314202 | E33: 0.4999999981 | F33: 0.4999999983 | G33: 0.5138004228 | H33: 0.4999999985 | I33: 0.4999999983 | J33: 0.5567940529 | K33: 0.5488322697 | L33: 0.5615711228 | M33: 0.5207006366 | N33: 0.4999999995 | O33: 0.6178343936 | P33: 0.6953290854 | Q33: 0.6236730348 | R33: 0.8163481951 | S33: 0.7388535033 | T33: 0.7112526542 | U33: 0.7112526542 | V33: 0.5339702768 | W33: 0.5302547784 | X33: 0.5557324862 | Y33: 0.8832271754 | Z33: 0.8057324836 | AA33: 0.7781316345 | AB33: 0.6008492571 | AC33: 0.7558386409 | AD33: 0.5212314231 | AE33: 0.519108281 | AF33: 0.5000000016 | AG33: =SUM(AG2:AG32) -> 0.9999999985 | AH33: 0.4999999983
AG34: 1
J39: 0 | K39: =SUM(AG25:AG32) -> 0.1337579607
J40: 1 | K40: =SUM(AG18:AG24) -> 0
J41: 2 | K41: =SUM(AG13:AG17) -> 0.2420382194
J42: 3 | K42: =SUM(AG9:AG12) -> 0.02547770561
J43: 4 | K43: =SUM(AG6:AG8) -> 0.2675159238
J44: 5 | K44: =SUM(AG4:AG5) -> 0
J45: 6 | K45: =AG3 -> 0.331210189
J46: 7 | K46: =AG2 -> 0
K47: =SUM(K39:K46) -> 0.9999999985

Sheet G88
B1: 8000 | C1: 7001 | D1: 6011 | E1: 6002 | F1: 5111 | G1: 5012 | H1: 5003 | I1: 4112 | J1: 4022 | K1: 4013 | L1: 4004 | M1: 3122 | N1: 3113 | O1: 3014 | P1: 3005 | Q1: 3023 | R1: 2006 | S1: 2015 | T1: 2024 | U1: 2033 | V1: 2114 | W1: 2123 | X1: 2222 | Y1: 1007 | Z1: 1016 | AA1: 1025 | AB1: 1115 | AC1: 1034 | AD1: 1124 | AE1: 1133 | AF1: 1223 | AG1: 8 | AH1: 17 | AI1: 26 | AJ1: 116 | AK1: 35 | AL1: 125 | AM1: 44 | AN1: 134 | AO1: 224 | AP1: 233 | AQ1: x()
A2: 8000 | B2: =probwin($A2,B$1) -> 0.5 | C2: =probwin($A2,C$1) -> 0.75 | D2: 0.5 | E2: 0.75 | F2: 0 | G2: 0.5 | H2: 0.75 | I2: 0 | J2: 0.5 | K2: 0.5 | L2: 0.75 | M2: 0 | N2: 0 | O2: 0.5 | P2: 0.75 | Q2: 0.5 | R2: 0.75 | S2: 0.5 | T2: 0.5 | U2: 0.5 | V2: 0 | W2: 0 | X2: 0 | Y2: 0.75 | Z2: 0.5 | AA2: 0.5 | AB2: 0 | AC2: 0.5 | AD2: 0 | AE2: 0 | AF2: 0 | AG2: 0.75 | AH2: 0.5 | AI2: 0.5 | AJ2: 0 | AK2: 0.5 | AL2: 0 | AM2: 0.5 | AN2: 0 | AO2: 0 | AP2: 0 | AQ2: 0
A3: 7001 | B3: 0.25 | C3: =probwin($A3,C$1) -> 0.5 | D3: 0.8333333333 | E3: 0.9166666667 | F3: 0.5 | G3: 0.75 | H3: 0.9166666667 | I3: 0.3333333333 | J3: 0.6666666667 | K3: 0.75 | L3: 0.9166666667 | M3: 0.1666666667 | N3: 0.3333333333 | O3: 0.75 | P3: 0.9166666667 | Q3: 0.6666666667 | R3: 0.9166666667 | S3: 0.75 | T3: 0.6666666667 | U3: 0.6666666667 | V3: 0.3333333333 | W3: 0.1666666667 | X3: 0 | Y3: 0.9166666667 | Z3: 0.75 | AA3: 0.6666666667 | AB3: 0.3333333333 | AC3: 0.6666666667 | AD3: 0.1666666667 | AE3: 0.1666666667 | AF3: 0 | AG3: 0.9166666667 | AH3: 0.75 | AI3: 0.6666666667 | AJ3: 0.3333333333 | AK3: 0.6666666667 | AL3: 0.1666666667 | AM3: 0.6666666667 | AN3: 0.1666666667 | AO3: 0 | AP3: 0 | AQ3: 0.2396166176
A4: 6011 | B4: 0.5 | C4: 0.1666666667 | D4: 0.5 | E4: 0.5 | F4: 0.75 | G4: 0.9166666667 | H4: 1 | I4: 0.5833333333 | J4: 0.8333333333 | K4: 0.9166666667 | L4: 1 | M4: 0.3333333333 | N4: 0.5833333333 | O4: 0.9166666667 | P4: 1 | Q4: 0.8333333333 | R4: 1 | S4: 0.9166666667 | T4: 0.8333333333 | U4: 0.8333333333 | V4: 0.5833333333 | W4: 0.3333333333 | X4: 0 | Y4: 1 | Z4: 0.9166666667 | AA4: 0.8333333333 | AB4: 0.5833333333 | AC4: 0.8333333333 | AD4: 0.3333333333 | AE4: 0.3333333333 | AF4: 0 | AG4: 1 | AH4: 0.9166666667 | AI4: 0.8333333333 | AJ4: 0.5833333333 | AK4: 0.8333333333 | AL4: 0.3333333333 | AM4: 0.8333333333 | AN4: 0.3333333333 | AO4: 0 | AP4: 0 | AQ4: 0
A5: 6002 | B5: 0.25 | C5: 0.08333333333 | D5: 0.5 | E5: 0.5 | F5: 1 | G5: 0.9166666667 | H5: 0.9166666667 | I5: 0.8333333333 | J5: 0.8333333333 | K5: 0.8333333333 | L5: 0.9166666667 | M5: 0.6666666667 | N5: 0.6666666667 | O5: 0.8333333333 | P5: 0.9166666667 | Q5: 0.75 | R5: 0.9166666667 | S5: 0.8333333333 | T5: 0.75 | U5: 0.6666666667 | V5: 0.6666666667 | W5: 0.5 | X5: 0.5 | Y5: 0.9166666667 | Z5: 0.8333333333 | AA5: 0.75 | AB5: 0.6666666667 | AC5: 0.6666666667 | AD5: 0.5 | AE5: 0.3333333333 | AF5: 0.3333333333 | AG5: 0.9166666667 | AH5: 0.8333333333 | AI5: 0.75 | AJ5: 0.6666666667 | AK5: 0.6666666667 | AL5: 0.5 | AM5: 0.6666666667 | AN5: 0.3333333333 | AO5: 0.3333333333 | AP5: 0.1666666667 | AQ5: 0.05857293872
A6: 5111 | B6: 1 | C6: 0.5 | D6: 0.25 | E6: 0 | F6: 0.5 | G6: 0.5 | H6: 0.5 | I6: 0.75 | J6: 1 | K6: 1 | L6: 1 | M6: 0.5 | N6: 0.75 | O6: 1 | P6: 1 | Q6: 1 | R6: 1 | S6: 1 | T6: 1 | U6: 1 | V6: 0.75 | W6: 0.5 | X6: 0 | Y6: 1 | Z6: 1 | AA6: 1 | AB6: 0.75 | AC6: 1 | AD6: 0.5 | AE6: 0.5 | AF6: 0 | AG6: 1 | AH6: 1 | AI6: 1 | AJ6: 0.75 | AK6: 1 | AL6: 0.5 | AM6: 1 | AN6: 0.5 | AO6: 0 | AP6: 0 | AQ6: 0
A7: 5012 | B7: 0.5 | C7: 0.25 | D7: 0.08333333333 | E7: 0.08333333333 | F7: 0.5 | G7: 0.5 | H7: 0.5 | I7: 0.9166666667 | J7: 0.9166666667 | K7: 0.9583333333 | L7: 1 | M7: 0.75 | N7: 0.8333333333 | O7: 0.9583333333 | P7: 1 | Q7: 0.875 | R7: 1 | S7: 0.9583333333 | T7: 0.875 | U7: 0.8333333333 | V7: 0.8333333333 | W7: 0.625 | X7: 0.5 | Y7: 1 | Z7: 0.9583333333 | AA7: 0.875 | AB7: 0.8333333333 | AC7: 0.8333333333 | AD7: 0.625 | AE7: 0.5 | AF7: 0.3333333333 | AG7: 1 | AH7: 0.9583333333 | AI7: 0.875 | AJ7: 0.8333333333 | AK7: 0.8333333333 | AL7: 0.625 | AM7: 0.8333333333 | AN7: 0.5 | AO7: 0.3333333333 | AP7: 0.1666666667 | AQ7: 0
A8: 5003 | B8: 0.25 | C8: 0.08333333333 | D8: 0 | E8: 0.08333333333 | F8: 0.5 | G8: 0.5 | H8: 0.5 | I8: 1 | J8: 1 | K8: 0.9166666667 | L8: 0.9166666667 | M8: 1 | N8: 0.8333333333 | O8: 0.8333333333 | P8: 0.9166666667 | Q8: 0.9166666667 | R8: 0.9166666667 | S8: 0.8333333333 | T8: 0.8333333333 | U8: 0.8333333333 | V8: 0.6666666667 | W8: 0.8333333333 | X8: 1 | Y8: 0.9166666667 | Z8: 0.8333333333 | AA8: 0.8333333333 | AB8: 0.6666666667 | AC8: 0.75 | AD8: 0.6666666667 | AE8: 0.6666666667 | AF8: 0.8333333333 | AG8: =probwin($A8,AG$1) -> 0.9166666667 | AH8: 0.8333333333 | AI8: 0.8333333333 | AJ8: 0.6666666667 | AK8: 0.75 | AL8: 0.6666666667 | AM8: 0.6666666667 | AN8: 0.5 | AO8: 0.6666666667 | AP8: 0.6666666667 | AQ8: 0.2289669948
A9: 4112 | B9: 1 | C9: 0.6666666667 | D9: 0.4166666667 | E9: 0.1666666667 | F9: 0.25 | G9: 0.08333333333 | H9: 0 | I9: 0.5 | J9: 0.5 | K9: 0.5 | L9: 0.5 | M9: 0.8333333333 | N9: 0.9166666667 | O9: 1 | P9: 1 | Q9: 1 | R9: 1 | S9: 1 | T9: 1 | U9: 1 | V9: 0.9166666667 | W9: 0.75 | X9: 0.5 | Y9: 1 | Z9: 1 | AA9: 1 | AB9: 0.9166666667 | AC9: 1 | AD9: 0.75 | AE9: 0.6666666667 | AF9: 0.3333333333 | AG9: 1 | AH9: 1 | AI9: 1 | AJ9: 0.9166666667 | AK9: 1 | AL9: 0.75 | AM9: 1 | AN9: 0.6666666667 | AO9: 0.3333333333 | AP9: 0.1666666667 | AQ9: 0.004259863669
A10: 4022 | B10: 0.5 | C10: 0.3333333333 | D10: 0.1666666667 | E10: 0.1666666667 | F10: 0 | G10: 0.08333333333 | H10: 0 | I10: 0.5 | J10: 0.5 | K10: 0.5 | L10: 0.5 | M10: 0.9166666667 | N10: 1 | O10: 1 | P10: 1 | Q10: 0.9166666667 | R10: 1 | S10: 1 | T10: 0.9166666667 | U10: 0.8333333333 | V10: 1 | W10: 0.8333333333 | X10: 0.75 | Y10: 1 | Z10: 1 | AA10: 0.9166666667 | AB10: 1 | AC10: 0.8333333333 | AD10: 0.8333333333 | AE10: 0.6666666667 | AF10: 0.5833333333 | AG10: 1 | AH10: 1 | AI10: 0.9166666667 | AJ10: 1 | AK10: 0.8333333333 | AL10: 0.8333333333 | AM10: 0.8333333333 | AN10: 0.6666666667 | AO10: 0.5833333333 | AP10: 0.3333333333 | AQ10: 0
A11: 4013 | B11: 0.5 | C11: 0.25 | D11: 0.08333333333 | E11: 0.1666666667 | F11: 0 | G11: 0.04166666667 | H11: 0.08333333333 | I11: 0.5 | J11: 0.5 | K11: 0.5 | L11: 0.5 | M11: 1 | N11: 0.9166666667 | O11: 0.9583333333 | P11: 1 | Q11: 0.9583333333 | R11: 1 | S11: 0.9583333333 | T11: 0.9166666667 | U11: 0.9166666667 | V11: 0.8333333333 | W11: 0.875 | X11: 1 | Y11: 1 | Z11: 0.9583333333 | AA11: 0.9166666667 | AB11: 0.8333333333 | AC11: 0.875 | AD11: 0.75 | AE11: 0.75 | AF11: 0.8333333333 | AG11: 1 | AH11: 0.9583333333 | AI11: 0.9166666667 | AJ11: 0.8333333333 | AK11: 0.875 | AL11: 0.75 | AM11: 0.8333333333 | AN11: 0.625 | AO11: 0.6666666667 | AP11: 0.6666666667 | AQ11: 0
A12: 4004 | B12: 0.25 | C12: 0.08333333333 | D12: 0 | E12: 0.08333333333 | F12: 0 | G12: 0 | H12: 0.08333333333 | I12: 0.5 | J12: 0.5 | K12: 0.5 | L12: 0.5 | M12: 1 | N12: 1 | O12: 0.9166666667 | P12: 0.9166666667 | Q12: 1 | R12: 0.9166666667 | S12: 0.8333333333 | T12: 0.9166666667 | U12: 1 | V12: 0.8333333333 | W12: 1 | X12: 1 | Y12: 0.9166666667 | Z12: 0.8333333333 | AA12: 0.8333333333 | AB12: 0.6666666667 | AC12: 0.9166666667 | AD12: 0.8333333333 | AE12: 1 | AF12: 1 | AG12: 0.9166666667 | AH12: 0.8333333333 | AI12: 0.8333333333 | AJ12: 0.6666666667 | AK12: 0.8333333333 | AL12: 0.6666666667 | AM12: 0.8333333333 | AN12: 0.8333333333 | AO12: 0.8333333333 | AP12: 1 | AQ12: 0.01597443688
A13: 3122 | B13: 1 | C13: 0.8333333333 | D13: 0.6666666667 | E13: 0.3333333333 | F13: 0.5 | G13: 0.25 | H13: 0 | I13: 0.1666666667 | J13: 0.08333333333 | K13: 0 | L13: 0 | M13: 0.5 | N13: 0.5 | O13: 0.5 | P13: 0.5 | Q13: 0.5 | R13: 1 | S13: 1 | T13: 1 | U13: 1 | V13: 1 | W13: 0.9166666667 | X13: 0.75 | Y13: 1 | Z13: 1 | AA13: 1 | AB13: 1 | AC13: 1 | AD13: 0.9166666667 | AE13: 0.8333333333 | AF13: 0.5833333333 | AG13: 1 | AH13: 1 | AI13: 1 | AJ13: 1 | AK13: 1 | AL13: 0.9166666667 | AM13: 1 | AN13: 0.8333333333 | AO13: 0.5833333333 | AP13: 0.3333333333 | AQ13: 0
A14: 3113 | B14: 1 | C14: 0.6666666667 | D14: 0.4166666667 | E14: 0.3333333333 | F14: 0.25 | G14: 0.1666666667 | H14: 0.1666666667 | I14: 0.08333333333 | J14: 0 | K14: 0.08333333333 | L14: 0 | M14: 0.5 | N14: 0.5 | O14: 0.5 | P14: 0.5 | Q14: 0.5 | R14: 1 | S14: 1 | T14: 1 | U14: 1 | V14: 0.9166666667 | W14: 0.9166666667 | X14: 1 | Y14: 1 | Z14: 1 | AA14: 1 | AB14: 0.9166666667 | AC14: 1 | AD14: 0.8333333333 | AE14: 0.8333333333 | AF14: 0.8333333333 | AG14: 1 | AH14: 1 | AI14: 1 | AJ14: 0.9166666667 | AK14: 1 | AL14: 0.8333333333 | AM14: 1 | AN14: 0.75 | AO14: 0.6666666667 | AP14: 0.6666666667 | AQ14: 0.2401490776
A15: 3014 | B15: 0.5 | C15: 0.25 | D15: 0.08333333333 | E15: 0.1666666667 | F15: 0 | G15: 0.04166666667 | H15: =probwin($A15,H$1) -> 0.1666666667 | I15: 0 | J15: 0 | K15: 0.04166666667 | L15: 0.08333333333 | M15: 0.5 | N15: 0.5 | O15: 0.5 | P15: 0.5 | Q15: 0.5 | R15: 1 | S15: 0.9583333333 | T15: 0.9583333333 | U15: 1 | V15: 0.9166666667 | W15: 1 | X15: 1 | Y15: 1 | Z15: 0.9583333333 | AA15: 0.9166666667 | AB15: 0.8333333333 | AC15: 0.9583333333 | AD15: 0.875 | AE15: 1 | AF15: 1 | AG15: 1 | AH15: 0.9583333333 | AI15: 0.9166666667 | AJ15: 0.8333333333 | AK15: 0.9166666667 | AL15: 0.75 | AM15: 0.9166666667 | AN15: 0.875 | AO15: 0.8333333333 | AP15: 1 | AQ15: 0
A16: 3005 | B16: 0.25 | C16: 0.08333333333 | D16: 0 | E16: 0.08333333333 | F16: 0 | G16: 0 | H16: 0.08333333333 | I16: 0 | J16: 0 | K16: 0 | L16: 0.08333333333 | M16: 0.5 | N16: 0.5 | O16: 0.5 | P16: 0.5 | Q16: 0.5 | R16: 0.9166666667 | S16: 0.9166666667 | T16: 1 | U16: 1 | V16: 1 | W16: 1 | X16: 1 | Y16: 0.9166666667 | Z16: 0.8333333333 | AA16: 0.9166666667 | AB16: 0.8333333333 | AC16: 1 | AD16: 1 | AE16: 1 | AF16: 1 | AG16: 0.9166666667 | AH16: 0.8333333333 | AI16: 0.8333333333 | AJ16: 0.6666666667 | AK16: 0.9166666667 | AL16: 0.8333333333 | AM16: 1 | AN16: 1 | AO16: 1 | AP16: 1 | AQ16: 0
A17: 3023 | B17: 0.5 | C17: 0.3333333333 | D17: 0.1666666667 | E17: 0.25 | F17: 0 | G17: 0.125 | H17: 0.08333333333 | I17: 0 | J17: 0.08333333333 | K17: 0.04166666667 | L17: 0 | M17: 0.5 | N17: 0.5 | O17: 0.5 | P17: 0.5 | Q17: 0.5 | R17: 1 | S17: 1 | T17: 0.9583333333 | U17: 0.9166666667 | V17: 1 | W17: 0.9583333333 | X17: 1 | Y17: 1 | Z17: 1 | AA17: 0.9583333333 | AB17: 1 | AC17: 0.875 | AD17: 0.9166666667 | AE17: 0.8333333333 | AF17: 0.9166666667 | AG17: 1 | AH17: 1 | AI17: 0.9583333333 | AJ17: 1 | AK17: 0.875 | AL17: 0.9166666667 | AM17: 0.8333333333 | AN17: 0.75 | AO17: 0.8333333333 | AP17: 0.75 | AQ17: 0
A18: 2006 | B18: 0.25 | C18: 0.08333333333 | D18: 0 | E18: 0.08333333333 | F18: 0 | G18: 0 | H18: 0.08333333333 | I18: 0 | J18: 0 | K18: 0 | L18: 0.08333333333 | M18: 0 | N18: 0 | O18: 0 | P18: 0.08333333333 | Q18: 0 | R18: 0.5 | S18: 0.5 | T18: 0.5 | U18: 0.5 | V18: 0.5 | W18: 0.5 | X18: 0.5 | Y18: 0.9166666667 | Z18: 0.9166666667 | AA18: 1 | AB18: 1 | AC18: 1 | AD18: 1 | AE18: 1 | AF18: 1 | AG18: 0.9166666667 | AH18: 0.8333333333 | AI18: 0.9166666667 | AJ18: 0.8333333333 | AK18: 1 | AL18: 1 | AM18: 1 | AN18: 1 | AO18: 1 | AP18: 1 | AQ18: 0
A19: 2015 | B19: 0.5 | C19: 0.25 | D19: 0.08333333333 | E19: 0.1666666667 | F19: 0 | G19: 0.04166666667 | H19: 0.1666666667 | I19: 0 | J19: 0 | K19: 0.04166666667 | L19: 0.1666666667 | M19: 0 | N19: 0 | O19: 0.04166666667 | P19: 0.08333333333 | Q19: 0 | R19: 0.5 | S19: 0.5 | T19: 0.5 | U19: 0.5 | V19: 0.5 | W19: 0.5 | X19: 0.5 | Y19: 1 | Z19: 0.9583333333 | AA19: 0.9583333333 | AB19: 0.9166666667 | AC19: 1 | AD19: 1 | AE19: 1 | AF19: 1 | AG19: 1 | AH19: 0.9583333333 | AI19: 0.9166666667 | AJ19: 0.8333333333 | AK19: 0.9583333333 | AL19: 0.875 | AM19: 1 | AN19: 1 | AO19: 1 | AP19: 1 | AQ19: 0
A20: 2024 | B20: 0.5 | C20: 0.3333333333 | D20: 0.1666666667 | E20: 0.25 | F20: 0 | G20: 0.125 | H20: 0.1666666667 | I20: 0 | J20: 0.08333333333 | K20: 0.08333333333 | L20: 0.08333333333 | M20: 0 | N20: 0 | O20: 0.04166666667 | P20: 0 | Q20: 0.04166666667 | R20: 0.5 | S20: 0.5 | T20: 0.5 | U20: 0.5 | V20: 0.5 | W20: 0.5 | X20: 0.5 | Y20: 1 | Z20: 1 | AA20: 0.9583333333 | AB20: 1 | AC20: 0.9583333333 | AD20: 0.9583333333 | AE20: 1 | AF20: 1 | AG20: 1 | AH20: 1 | AI20: 0.9583333333 | AJ20: 1 | AK20: 0.9166666667 | AL20: 0.9166666667 | AM20: 0.9166666667 | AN20: 0.9166666667 | AO20: 0.9166666667 | AP20: 1 | AQ20: 0
A21: 2033 | B21: 0.5 | C21: 0.3333333333 | D21: 0.1666666667 | E21: 0.3333333333 | F21: 0 | G21: 0.1666666667 | H21: 0.1666666667 | I21: 0 | J21: 0.1666666667 | K21: 0.08333333333 | L21: 0 | M21: 0 | N21: 0 | O21: 0 | P21: 0 | Q21: 0.08333333333 | R21: 0.5 | S21: 0.5 | T21: 0.5 | U21: 0.5 | V21: 0.5 | W21: =probwin($A21,W$1) -> 0.5 | X21: 0.5 | Y21: 1 | Z21: 1 | AA21: 1 | AB21: 1 | AC21: 0.9166666667 | AD21: 1 | AE21: 0.9166666667 | AF21: 1 | AG21: 1 | AH21: 1 | AI21: 1 | AJ21: 1 | AK21: 0.9166666667 | AL21: 1 | AM21: 0.8333333333 | AN21: 0.8333333333 | AO21: 1 | AP21: 0.9166666667 | AQ21: 0
A22: 2114 | B22: 1 | C22: 0.6666666667 | D22: 0.4166666667 | E22: 0.3333333333 | F22: 0.25 | G22: 0.1666666667 | H22: 0.3333333333 | I22: 0.08333333333 | J22: 0 | K22: 0.1666666667 | L22: 0.1666666667 | M22: 0 | N22: 0.08333333333 | O22: 0.08333333333 | P22: 0 | Q22: 0 | R22: 0.5 | S22: 0.5 | T22: 0.5 | U22: 0.5 | V22: 0.5 | W22: 0.5 | X22: 0.5 | Y22: 1 | Z22: 1 | AA22: 1 | AB22: 0.9166666667 | AC22: 1 | AD22: 0.9166666667 | AE22: 1 | AF22: 1 | AG22: 1 | AH22: 1 | AI22: 1 | AJ22: 0.9166666667 | AK22: 1 | AL22: 0.8333333333 | AM22: 1 | AN22: 0.9166666667 | AO22: 0.8333333333 | AP22: 1 | AQ22: 0
A23: 2123 | B23: 1 | C23: 0.8333333333 | D23: 0.6666666667 | E23: 0.5 | F23: 0.5 | G23: 0.375 | H23: 0.1666666667 | I23: 0.25 | J23: 0.1666666667 | K23: 0.125 | L23: 0 | M23: 0.08333333333 | N23: 0.08333333333 | O23: 0 | P23: 0 | Q23: 0.04166666667 | R23: 0.5 | S23: 0.5 | T23: 0.5 | U23: 0.5 | V23: 0.5 | W23: 0.5 | X23: 0.5 | Y23: 1 | Z23: 1 | AA23: 1 | AB23: 1 | AC23: 1 | AD23: 0.9583333333 | AE23: 0.9166666667 | AF23: 0.9166666667 | AG23: 1 | AH23: 1 | AI23: 1 | AJ23: 1 | AK23: 1 | AL23: 0.9583333333 | AM23: 1 | AN23: 0.875 | AO23: 0.8333333333 | AP23: 0.75 | AQ23: 0
A24: 2222 | B24: 1 | C24: 1 | D24: 1 | E24: 0.5 | F24: 1 | G24: 0.5 | H24: 0 | I24: 0.5 | J24: 0.25 | K24: 0 | L24: 0 | M24: 0.25 | N24: 0 | O24: 0 | P24: 0 | Q24: 0 | R24: 0.5 | S24: 0.5 | T24: 0.5 | U24: 0.5 | V24: 0.5 | W24: 0.5 | X24: 0.5 | Y24: 1 | Z24: 1 | AA24: 1 | AB24: 1 | AC24: 1 | AD24: 1 | AE24: 1 | AF24: 0.75 | AG24: 1 | AH24: 1 | AI24: 1 | AJ24: 1 | AK24: 1 | AL24: 1 | AM24: 1 | AN24: 1 | AO24: 0.75 | AP24: 0.5 | AQ24: 0
A25: 1007 | B25: 0.25 | C25: 0.08333333333 | D25: 0 | E25: 0.08333333333 | F25: 0 | G25: 0 | H25: 0.08333333333 | I25: 0 | J25: 0 | K25: 0 | L25: 0.08333333333 | M25: 0 | N25: 0 | O25: 0 | P25: 0.08333333333 | Q25: 0 | R25: 0.08333333333 | S25: 0 | T25: 0 | U25: 0 | V25: 0 | W25: 0 | X25: 0 | Y25: 0.5 | Z25: 0.5 | AA25: 0.5 | AB25: 0.5 | AC25: 0.5 | AD25: 0.5 | AE25: 0.5 | AF25: 0.5 | AG25: 0.9166666667 | AH25: 0.9166666667 | AI25: 1 | AJ25: 1 | AK25: 1 | AL25: 1 | AM25: 1 | AN25: 1 | AO25: 1 | AP25: 1 | AQ25: 0
A26: 1016 | B26: 0.5 | C26: 0.25 | D26: 0.08333333333 | E26: 0.1666666667 | F26: 0 | G26: 0.04166666667 | H26: 0.1666666667 | I26: 0 | J26: 0 | K26: 0.04166666667 | L26: 0.1666666667 | M26: 0 | N26: 0 | O26: 0.04166666667 | P26: 0.1666666667 | Q26: 0 | R26: 0.08333333333 | S26: 0.04166666667 | T26: 0 | U26: 0 | V26: 0 | W26: 0 | X26: 0 | Y26: 0.5 | Z26: 0.5 | AA26: 0.5 | AB26: 0.5 | AC26: 0.5 | AD26: 0.5 | AE26: 0.5 | AF26: 0.5 | AG26: 1 | AH26: 0.9583333333 | AI26: 0.9583333333 | AJ26: 0.9166666667 | AK26: 1 | AL26: 1 | AM26: 1 | AN26: 1 | AO26: 1 | AP26: 1 | AQ26: 0
A27: 1025 | B27: 0.5 | C27: 0.3333333333 | D27: 0.1666666667 | E27: 0.25 | F27: 0 | G27: 0.125 | H27: 0.1666666667 | I27: 0 | J27: 0.08333333333 | K27: 0.08333333333 | L27: 0.1666666667 | M27: 0 | N27: 0 | O27: 0.08333333333 | P27: 0.08333333333 | Q27: 0.04166666667 | R27: 0 | S27: 0.04166666667 | T27: 0.04166666667 | U27: 0 | V27: 0 | W27: 0 | X27: 0 | Y27: 0.5 | Z27: 0.5 | AA27: 0.5 | AB27: 0.5 | AC27: 0.5 | AD27: 0.5 | AE27: 0.5 | AF27: 0.5 | AG27: 1 | AH27: 1 | AI27: 0.9583333333 | AJ27: 1 | AK27: 0.9583333333 | AL27: =probwin($A27,AL$1) -> 0.9583333333 | AM27: 1 | AN27: 1 | AO27: 1 | AP27: 1 | AQ27: 0
A28: 1115 | B28: 1 | C28: 0.6666666667 | D28: 0.4166666667 | E28: 0.3333333333 | F28: 0.25 | G28: 0.1666666667 | H28: 0.3333333333 | I28: 0.08333333333 | J28: 0 | K28: 0.1666666667 | L28: 0.3333333333 | M28: 0 | N28: 0.08333333333 | O28: 0.1666666667 | P28: 0.1666666667 | Q28: 0 | R28: 0 | S28: 0.08333333333 | T28: 0 | U28: 0 | V28: 0.08333333333 | W28: 0 | X28: 0 | Y28: 0.5 | Z28: 0.5 | AA28: 0.5 | AB28: 0.5 | AC28: 0.5 | AD28: 0.5 | AE28: 0.5 | AF28: 0.5 | AG28: 1 | AH28: 1 | AI28: 1 | AJ28: 0.9166666667 | AK28: 1 | AL28: 0.9166666667 | AM28: 1 | AN28: 1 | AO28: 1 | AP28: 1 | AQ28: 0
A29: 1034 | B29: 0.5 | C29: 0.3333333333 | D29: 0.1666666667 | E29: 0.3333333333 | F29: 0 | G29: 0.1666666667 | H29: 0.25 | I29: 0 | J29: 0.1666666667 | K29: 0.125 | L29: 0.08333333333 | M29: 0 | N29: 0 | O29: 0.04166666667 | P29: 0 | Q29: 0.125 | R29: 0 | S29: 0 | T29: 0.04166666667 | U29: 0.08333333333 | V29: 0 | W29: 0 | X29: 0 | Y29: 0.5 | Z29: 0.5 | AA29: 0.5 | AB29: 0.5 | AC29: 0.5 | AD29: 0.5 | AE29: 0.5 | AF29: 0.5 | AG29: 1 | AH29: 1 | AI29: 1 | AJ29: 1 | AK29: 0.9583333333 | AL29: 1 | AM29: 0.9166666667 | AN29: 0.9583333333 | AO29: 1 | AP29: 1 | AQ29: 0
A30: 1124 | B30: 1 | C30: 0.8333333333 | D30: 0.6666666667 | E30: 0.5 | F30: 0.5 | G30: 0.375 | H30: 0.3333333333 | I30: 0.25 | J30: 0.1666666667 | K30: 0.25 | L30: 0.1666666667 | M30: 0.08333333333 | N30: 0.1666666667 | O30: 0.125 | P30: 0 | Q30: 0.08333333333 | R30: 0 | S30: 0 | T30: 0.04166666667 | U30: 0 | V30: 0.08333333333 | W30: 0.04166666667 | X30: 0 | Y30: 0.5 | Z30: 0.5 | AA30: 0.5 | AB30: 0.5 | AC30: 0.5 | AD30: 0.5 | AE30: 0.5 | AF30: 0.5 | AG30: 1 | AH30: 1 | AI30: 1 | AJ30: 1 | AK30: 1 | AL30: 0.9583333333 | AM30: 1 | AN30: 0.9583333333 | AO30: 0.9166666667 | AP30: 1 | AQ30: 0.03993607521
A31: 1133 | B31: 1 | C31: 0.8333333333 | D31: 0.6666666667 | E31: 0.6666666667 | F31: 0.5 | G31: 0.5 | H31: 0.3333333333 | I31: 0.3333333333 | J31: 0.3333333333 | K31: 0.25 | L31: 0 | M31: 0.1666666667 | N31: 0.1666666667 | O31: 0 | P31: 0 | Q31: 0.1666666667 | R31: 0 | S31: 0 | T31: 0 | U31: 0.08333333333 | V31: 0 | W31: 0.08333333333 | X31: 0 | Y31: 0.5 | Z31: 0.5 | AA31: 0.5 | AB31: 0.5 | AC31: 0.5 | AD31: 0.5 | AE31: 0.5 | AF31: 0.5 | AG31: 1 | AH31: 1 | AI31: 1 | AJ31: 1 | AK31: 1 | AL31: 1 | AM31: 1 | AN31: 0.9166666667 | AO31: 1 | AP31: 0.9166666667 | AQ31: 0.08306713954
A32: 1223 | B32: 1 | C32: 1 | D32: 1 | E32: 0.6666666667 | F32: 1 | G32: 0.6666666667 | H32: 0.1666666667 | I32: 0.6666666667 | J32: 0.4166666667 | K32: 0.1666666667 | L32: 0 | M32: 0.4166666667 | N32: 0.1666666667 | O32: 0 | P32: 0 | Q32: 0.08333333333 | R32: 0 | S32: 0 | T32: 0 | U32: 0 | V32: 0 | W32: 0.08333333333 | X32: 0.25 | Y32: 0.5 | Z32: 0.5 | AA32: 0.5 | AB32: 0.5 | AC32: 0.5 | AD32: 0.5 | AE32: 0.5 | AF32: 0.5 | AG32: 1 | AH32: 1 | AI32: 1 | AJ32: 1 | AK32: 1 | AL32: 1 | AM32: 1 | AN32: 1 | AO32: 0.9166666667 | AP32: 0.8333333333 | AQ32: 0
A33: 8 | B33: 0.25 | C33: 0.08333333333 | D33: 0 | E33: 0.08333333333 | F33: 0 | G33: 0 | H33: 0.08333333333 | I33: 0 | J33: 0 | K33: 0 | L33: 0.08333333333 | M33: 0 | N33: 0 | O33: 0 | P33: 0.08333333333 | Q33: 0 | R33: 0.08333333333 | S33: 0 | T33: 0 | U33: 0 | V33: 0 | W33: 0 | X33: 0 | Y33: 0.08333333333 | Z33: 0 | AA33: 0 | AB33: 0 | AC33: 0 | AD33: 0 | AE33: 0 | AF33: 0 | AG33: 0.5 | AH33: 0.5 | AI33: 0.5 | AJ33: 0.5 | AK33: 0.5 | AL33: 0.5 | AM33: 0.5 | AN33: 0.5 | AO33: 0.5 | AP33: 0.5 | AQ33: 0
A34: 17 | B34: 0.5 | C34: 0.25 | D34: 0.08333333333 | E34: 0.1666666667 | F34: 0 | G34: 0.04166666667 | H34: 0.1666666667 | I34: 0 | J34: 0 | K34: 0.04166666667 | L34: 0.1666666667 | M34: =probwin($A34,M$1) -> 0 | N34: 0 | O34: 0.04166666667 | P34: 0.1666666667 | Q34: 0 | R34: 0.1666666667 | S34: 0.04166666667 | T34: 0 | U34: 0 | V34: 0 | W34: 0 | X34: 0 | Y34: 0.08333333333 | Z34: 0.04166666667 | AA34: 0 | AB34: 0 | AC34: 0 | AD34: 0 | AE34: 0 | AF34: 0 | AG34: 0.5 | AH34: 0.5 | AI34: 0.5 | AJ34: 0.5 | AK34: 0.5 | AL34: 0.5 | AM34: 0.5 | AN34: 0.5 | AO34: 0.5 | AP34: 0.5 | AQ34: 0
A35: 26 | B35: 0.5 | C35: 0.3333333333 | D35: 0.1666666667 | E35: 0.25 | F35: 0 | G35: 0.125 | H35: 0.1666666667 | I35: 0 | J35: 0.08333333333 | K35: 0.08333333333 | L35: 0.1666666667 | M35: 0 | N35: 0 | O35: 0.08333333333 | P35: 0.1666666667 | Q35: 0.04166666667 | R35: 0.08333333333 | S35: 0.08333333333 | T35: 0.04166666667 | U35: 0 | V35: 0 | W35: 0 | X35: 0 | Y35: 0 | Z35: 0.04166666667 | AA35: 0.04166666667 | AB35: 0 | AC35: 0 | AD35: 0 | AE35: 0 | AF35: 0 | AG35: 0.5 | AH35: 0.5 | AI35: 0.5 | AJ35: 0.5 | AK35: 0.5 | AL35: 0.5 | AM35: 0.5 | AN35: 0.5 | AO35: 0.5 | AP35: 0.5 | AQ35: 0
A36: 116 | B36: 1 | C36: 0.6666666667 | D36: 0.4166666667 | E36: 0.3333333333 | F36: 0.25 | G36: 0.1666666667 | H36: 0.3333333333 | I36: 0.08333333333 | J36: 0 | K36: 0.1666666667 | L36: 0.3333333333 | M36: 0 | N36: 0.08333333333 | O36: 0.1666666667 | P36: 0.3333333333 | Q36: 0 | R36: 0.1666666667 | S36: 0.1666666667 | T36: 0 | U36: 0 | V36: 0.08333333333 | W36: 0 | X36: 0 | Y36: 0 | Z36: 0.08333333333 | AA36: 0 | AB36: 0.08333333333 | AC36: 0 | AD36: 0 | AE36: 0 | AF36: 0 | AG36: 0.5 | AH36: 0.5 | AI36: 0.5 | AJ36: 0.5 | AK36: 0.5 | AL36: 0.5 | AM36: 0.5 | AN36: 0.5 | AO36: 0.5 | AP36: 0.5 | AQ36: 0
A37: 35 | B37: 0.5 | C37: 0.3333333333 | D37: 0.1666666667 | E37: 0.3333333333 | F37: 0 | G37: 0.1666666667 | H37: 0.25 | I37: 0 | J37: 0.1666666667 | K37: 0.125 | L37: 0.1666666667 | M37: 0 | N37: 0 | O37: 0.08333333333 | P37: 0.08333333333 | Q37: 0.125 | R37: 0 | S37: 0.04166666667 | T37: 0.08333333333 | U37: 0.08333333333 | V37: 0 | W37: 0 | X37: 0 | Y37: 0 | Z37: 0 | AA37: 0.04166666667 | AB37: 0 | AC37: 0.04166666667 | AD37: 0 | AE37: 0 | AF37: 0 | AG37: 0.5 | AH37: 0.5 | AI37: 0.5 | AJ37: 0.5 | AK37: 0.5 | AL37: 0.5 | AM37: 0.5 | AN37: 0.5 | AO37: 0.5 | AP37: 0.5 | AQ37: 0
A38: 125 | B38: 1 | C38: 0.8333333333 | D38: 0.6666666667 | E38: 0.5 | F38: 0.5 | G38: 0.375 | H38: 0.3333333333 | I38: 0.25 | J38: 0.1666666667 | K38: 0.25 | L38: 0.3333333333 | M38: 0.08333333333 | N38: 0.1666666667 | O38: 0.25 | P38: 0.1666666667 | Q38: 0.08333333333 | R38: 0 | S38: 0.125 | T38: 0.08333333333 | U38: 0 | V38: 0.1666666667 | W38: 0.04166666667 | X38: 0 | Y38: 0 | Z38: 0 | AA38: 0.04166666667 | AB38: 0.08333333333 | AC38: 0 | AD38: 0.04166666667 | AE38: 0 | AF38: 0 | AG38: 0.5 | AH38: 0.5 | AI38: 0.5 | AJ38: 0.5 | AK38: 0.5 | AL38: 0.5 | AM38: 0.5 | AN38: 0.5 | AO38: 0.5 | AP38: 0.5 | AQ38: 0
A39: 44 | B39: 0.5 | C39: 0.3333333333 | D39: 0.1666666667 | E39: 0.3333333333 | F39: 0 | G39: 0.1666666667 | H39: 0.3333333333 | I39: 0 | J39: 0.1666666667 | K39: 0.1666666667 | L39: 0.1666666667 | M39: 0 | N39: 0 | O39: 0.08333333333 | P39: 0 | Q39: 0.1666666667 | R39: 0 | S39: 0 | T39: 0.08333333333 | U39: 0.1666666667 | V39: 0 | W39: 0 | X39: 0 | Y39: 0 | Z39: 0 | AA39: 0 | AB39: 0 | AC39: 0.08333333333 | AD39: 0 | AE39: 0 | AF39: 0 | AG39: 0.5 | AH39: 0.5 | AI39: 0.5 | AJ39: 0.5 | AK39: 0.5 | AL39: 0.5 | AM39: 0.5 | AN39: 0.5 | AO39: 0.5 | AP39: 0.5 | AQ39: 0
A40: 134 | B40: 1 | C40: 0.8333333333 | D40: 0.6666666667 | E40: 0.6666666667 | F40: 0.5 | G40: 0.5 | H40: 0.5 | I40: 0.3333333333 | J40: 0.3333333333 | K40: 0.375 | L40: 0.1666666667 | M40: 0.1666666667 | N40: 0.25 | O40: 0.125 | P40: 0 | Q40: 0.25 | R40: 0 | S40: 0 | T40: 0.08333333333 | U40: 0.1666666667 | V40: 0.08333333333 | W40: 0.125 | X40: 0 | Y40: 0 | Z40: 0 | AA40: 0 | AB40: =probwin($A40,AB$1) -> 0 | AC40: 0.04166666667 | AD40: 0.04166666667 | AE40: 0.08333333333 | AF40: 0 | AG40: 0.5 | AH40: 0.5 | AI40: 0.5 | AJ40: 0.5 | AK40: 0.5 | AL40: 0.5 | AM40: 0.5 | AN40: 0.5 | AO40: 0.5 | AP40: 0.5 | AQ40: 0
A41: 224 | B41: 1 | C41: 1 | D41: 1 | E41: 0.6666666667 | F41: 1 | G41: 0.6666666667 | H41: 0.3333333333 | I41: 0.6666666667 | J41: 0.4166666667 | K41: 0.3333333333 | L41: 0.1666666667 | M41: 0.4166666667 | N41: 0.3333333333 | O41: 0.1666666667 | P41: 0 | Q41: 0.1666666667 | R41: 0 | S41: 0 | T41: 0.08333333333 | U41: 0 | V41: 0.1666666667 | W41: 0.1666666667 | X41: 0.25 | Y41: 0 | Z41: 0 | AA41: 0 | AB41: 0 | AC41: 0 | AD41: 0.08333333333 | AE41: 0 | AF41: 0.08333333333 | AG41: 0.5 | AH41: 0.5 | AI41: 0.5 | AJ41: 0.5 | AK41: 0.5 | AL41: 0.5 | AM41: 0.5 | AN41: 0.5 | AO41: 0.5 | AP41: 0.5 | AQ41: 0
A42: 233 | B42: 1 | C42: 1 | D42: 1 | E42: 0.8333333333 | F42: 1 | G42: 0.8333333333 | H42: 0.3333333333 | I42: 0.8333333333 | J42: 0.6666666667 | K42: 0.3333333333 | L42: 0 | M42: 0.6666666667 | N42: 0.3333333333 | O42: 0 | P42: 0 | Q42: 0.25 | R42: 0 | S42: 0 | T42: 0 | U42: 0.08333333333 | V42: 0 | W42: 0.25 | X42: 0.5 | Y42: 0 | Z42: 0 | AA42: 0 | AB42: 0 | AC42: 0 | AD42: 0 | AE42: 0.08333333333 | AF42: 0.1666666667 | AG42: 0.5 | AH42: 0.5 | AI42: 0.5 | AJ42: 0.5 | AK42: 0.5 | AL42: 0.5 | AM42: 0.5 | AN42: 0.5 | AO42: 0.5 | AP42: 0.5 | AQ42: 0.08945685606
B43: =SUMPRODUCT(B2:B42,$AQ$2:$AQ$42) -> 0.592651759 | C43: =SUMPRODUCT(C2:C42,$AQ$2:$AQ$42) -> 0.5000000022 | D43: 0.5022630421 | E43: 0.5000000019 | F43: 0.5049254436 | G43: 0.519324634 | H43: 0.4999999969 | I43: 0.5000000017 | J43: 0.5416223021 | K43: 0.5291089864 | L43: 0.5000000013 | M43: 0.5243610191 | N43: 0.4999999992 | O43: 0.5632987201 | P43: 0.6222044747 | Q43: 0.5934061105 | R43: 0.7422790135 | S43: 0.6770500464 | T43: 0.6551961229 | U43: 0.6643592443 | V43: 0.5122470613 | W43: 0.5302848691 | X43: 0.5612353384 | Y43: 0.8037806209 | Z43: 0.7385516538 | AA43: 0.7137025241 | AB43: 0.5677582563 | AC43: 0.691072066 | AD43: 0.5000000026 | AE43: 0.5000000017 | AF43: 0.504259848 | AG43: 0.9100106563 | AH43: 0.8447816892 | AI43: 0.8199325595 | AJ43: 0.6739882917 | AK43: 0.7959708984 | AL43: 0.6019036288 | AM43: 0.7768903155 | AN43: 0.5293530393 | AO43: 0.5114039829 | AP43: 0.5 | AQ43: =SUM(AQ2:AQ42) -> 1 | AR43: 0.5000000013
AQ44: 1
J45: 0 | K45: =SUM(AQ32:AQ42) -> 0.08945685606
J46: 1 | K46: =SUM(AQ25:AQ31) -> 0.1230032148
J47: 2 | K47: =SUM(AQ18:AQ24) -> 0
J48: 3 | K48: =SUM(AQ13:AQ17) -> 0.2401490776
J49: 4 | K49: =SUM(AQ9:AQ12) -> 0.02023430055
J50: 5 | K50: =SUM(AQ6:AQ8) -> 0.2289669948
J51: 6 | K51: =SUM(AQ4:AQ5) -> 0.05857293872
J52: 7 | K52: =AQ3 -> 0.2396166176
J53: 8 | K53: =AQ2 -> 0
J54: total | K54: =SUM(K45:K53) -> 1

Sheet G99
B1: 9000 | C1: 8001 | D1: 7011 | E1: 7002 | F1: 6111 | G1: 6012 | H1: 6003 | I1: 5112 | J1: 5022 | K1: 5013 | L1: 5004 | M1: 4122 | N1: 4113 | O1: 4014 | P1: 4005 | Q1: 4023 | R1: 3006 | S1: 3015 | T1: 3024 | U1: 3033 | V1: 3114 | W1: 3123 | X1: 3222 | Y1: 2007 | Z1: 2016 | AA1: 2025 | AB1: 2115 | AC1: 2034 | AD1: 2124 | AE1: 2133 | AF1: 2223 | AG1: 1008 | AH1: 1017 | AI1: 1026 | AJ1: 1116 | AK1: 1035 | AL1: 1125 | AM1: 1044 | AN1: 1134 | AO1: 1224 | AP1: 1233 | AQ1: 9 | AR1: 18 | AS1: 27 | AT1: 117 | AU1: 36 | AV1: 126 | AW1: 45 | AX1: 135 | AY1: 225 | AZ1: x()
A2: 9000 | B2: =probwin($A2,B$1) -> 0.5 | C2: =probwin($A2,C$1) -> 0.75 | D2: 0.5 | E2: 0.75 | F2: 0 | G2: 0.5 | H2: 0.75 | I2: 0 | J2: 0.5 | K2: 0.5 | L2: 0.75 | M2: 0 | N2: 0 | O2: 0.5 | P2: 0.75 | Q2: 0.5 | R2: 0.75 | S2: 0.5 | T2: 0.5 | U2: 0.5 | V2: 0 | W2: 0 | X2: 0 | Y2: 0.75 | Z2: 0.5 | AA2: 0.5 | AB2: 0 | AC2: 0.5 | AD2: 0 | AE2: 0 | AF2: 0 | AG2: 0.75 | AH2: 0.5 | AI2: 0.5 | AJ2: 0 | AK2: 0.5 | AL2: 0 | AM2: 0.5 | AN2: 0 | AO2: 0 | AP2: 0 | AQ2: 0.75 | AR2: 0.5 | AS2: 0.5 | AT2: 0 | AU2: 0.5 | AV2: 0 | AW2: 0.5 | AX2: 0 | AY2: 0 | AZ2: 0 | BA2: 9
A3: 8001 | B3: 0.25 | C3: =probwin($A3,C$1) -> 0.5 | D3: 0.8333333333 | E3: 0.9166666667 | F3: 0.5 | G3: 0.75 | H3: 0.9166666667 | I3: 0.3333333333 | J3: 0.6666666667 | K3: 0.75 | L3: 0.9166666667 | M3: 0.1666666667 | N3: 0.3333333333 | O3: 0.75 | P3: 0.9166666667 | Q3: 0.6666666667 | R3: 0.9166666667 | S3: 0.75 | T3: 0.6666666667 | U3: 0.6666666667 | V3: 0.3333333333 | W3: 0.1666666667 | X3: 0 | Y3: 0.9166666667 | Z3: 0.75 | AA3: 0.6666666667 | AB3: 0.3333333333 | AC3: 0.6666666667 | AD3: 0.1666666667 | AE3: 0.1666666667 | AF3: 0 | AG3: 0.9166666667 | AH3: 0.75 | AI3: 0.6666666667 | AJ3: 0.3333333333 | AK3: 0.6666666667 | AL3: 0.1666666667 | AM3: 0.6666666667 | AN3: 0.1666666667 | AO3: 0 | AP3: 0 | AQ3: 0.9166666667 | AR3: 0.75 | AS3: 0.6666666667 | AT3: 0.3333333333 | AU3: 0.6666666667 | AV3: 0.1666666667 | AW3: 0.6666666667 | AX3: 0.1666666667 | AY3: 0 | AZ3: 0.2396166176 | BA3: 8
A4: 7011 | B4: 0.5 | C4: 0.1666666667 | D4: 0.5 | E4: 0.5 | F4: 0.75 | G4: 0.9166666667 | H4: 1 | I4: 0.5833333333 | J4: 0.8333333333 | K4: 0.9166666667 | L4: 1 | M4: 0.3333333333 | N4: 0.5833333333 | O4: 0.9166666667 | P4: 1 | Q4: 0.8333333333 | R4: 1 | S4: 0.9166666667 | T4: 0.8333333333 | U4: 0.8333333333 | V4: 0.5833333333 | W4: 0.3333333333 | X4: 0 | Y4: 1 | Z4: 0.9166666667 | AA4: 0.8333333333 | AB4: 0.5833333333 | AC4: 0.8333333333 | AD4: 0.3333333333 | AE4: 0.3333333333 | AF4: 0 | AG4: 1 | AH4: 0.9166666667 | AI4: 0.8333333333 | AJ4: 0.5833333333 | AK4: 0.8333333333 | AL4: 0.3333333333 | AM4: 0.8333333333 | AN4: 0.3333333333 | AO4: 0 | AP4: 0 | AQ4: 1 | AR4: 0.9166666667 | AS4: 0.8333333333 | AT4: 0.5833333333 | AU4: 0.8333333333 | AV4: 0.3333333333 | AW4: 0.8333333333 | AX4: 0.3333333333 | AY4: 0 | AZ4: 0 | BA4: 7
A5: 7002 | B5: 0.25 | C5: 0.08333333333 | D5: 0.5 | E5: 0.5 | F5: 1 | G5: 0.9166666667 | H5: 0.9166666667 | I5: 0.8333333333 | J5: 0.8333333333 | K5: 0.8333333333 | L5: 0.9166666667 | M5: 0.6666666667 | N5: 0.6666666667 | O5: 0.8333333333 | P5: 0.9166666667 | Q5: 0.75 | R5: 0.9166666667 | S5: 0.8333333333 | T5: 0.75 | U5: 0.6666666667 | V5: 0.6666666667 | W5: 0.5 | X5: 0.5 | Y5: 0.9166666667 | Z5: 0.8333333333 | AA5: 0.75 | AB5: 0.6666666667 | AC5: 0.6666666667 | AD5: 0.5 | AE5: 0.3333333333 | AF5: 0.3333333333 | AG5: 0.9166666667 | AH5: 0.8333333333 | AI5: 0.75 | AJ5: 0.6666666667 | AK5: 0.6666666667 | AL5: 0.5 | AM5: 0.6666666667 | AN5: 0.3333333333 | AO5: 0.3333333333 | AP5: 0.1666666667 | AQ5: 0.9166666667 | AR5: 0.8333333333 | AS5: 0.75 | AT5: 0.6666666667 | AU5: 0.6666666667 | AV5: 0.5 | AW5: 0.6666666667 | AX5: 0.3333333333 | AY5: 0.3333333333 | AZ5: 0.05857293872 | BA5: 7
A6: 6111 | B6: 1 | C6: 0.5 | D6: 0.25 | E6: 0 | F6: 0.5 | G6: 0.5 | H6: 0.5 | I6: 0.75 | J6: 1 | K6: 1 | L6: 1 | M6: 0.5 | N6: 0.75 | O6: 1 | P6: 1 | Q6: 1 | R6: 1 | S6: 1 | T6: 1 | U6: 1 | V6: 0.75 | W6: 0.5 | X6: 0 | Y6: 1 | Z6: 1 | AA6: 1 | AB6: 0.75 | AC6: 1 | AD6: 0.5 | AE6: 0.5 | AF6: 0 | AG6: 1 | AH6: 1 | AI6: 1 | AJ6: 0.75 | AK6: 1 | AL6: 0.5 | AM6: 1 | AN6: 0.5 | AO6: 0 | AP6: 0 | AQ6: 1 | AR6: 1 | AS6: 1 | AT6: 0.75 | AU6: 1 | AV6: 0.5 | AW6: 1 | AX6: 0.5 | AY6: 0 | AZ6: 0 | BA6: 6
A7: 6012 | B7: 0.5 | C7: 0.25 | D7: 0.08333333333 | E7: 0.08333333333 | F7: 0.5 | G7: 0.5 | H7: 0.5 | I7: 0.9166666667 | J7: 0.9166666667 | K7: 0.9583333333 | L7: 1 | M7: 0.75 | N7: 0.8333333333 | O7: 0.9583333333 | P7: 1 | Q7: 0.875 | R7: 1 | S7: 0.9583333333 | T7: 0.875 | U7: 0.8333333333 | V7: 0.8333333333 | W7: 0.625 | X7: 0.5 | Y7: 1 | Z7: 0.9583333333 | AA7: 0.875 | AB7: =probwin($A7,AB$1) -> 0.8333333333 | AC7: 0.8333333333 | AD7: 0.625 | AE7: 0.5 | AF7: 0.3333333333 | AG7: 1 | AH7: 0.9583333333 | AI7: 0.875 | AJ7: 0.8333333333 | AK7: 0.8333333333 | AL7: 0.625 | AM7: 0.8333333333 | AN7: 0.5 | AO7: 0.3333333333 | AP7: 0.1666666667 | AQ7: 1 | AR7: 0.9583333333 | AS7: 0.875 | AT7: 0.8333333333 | AU7: 0.8333333333 | AV7: 0.625 | AW7: 0.8333333333 | AX7: 0.5 | AY7: 0.3333333333 | AZ7: 0 | BA7: 6
A8: 6003 | B8: 0.25 | C8: 0.08333333333 | D8: 0 | E8: 0.08333333333 | F8: 0.5 | G8: 0.5 | H8: 0.5 | I8: 1 | J8: 1 | K8: 0.9166666667 | L8: 0.9166666667 | M8: 1 | N8: 0.8333333333 | O8: 0.8333333333 | P8: 0.9166666667 | Q8: 0.9166666667 | R8: 0.9166666667 | S8: 0.8333333333 | T8: 0.8333333333 | U8: 0.8333333333 | V8: 0.6666666667 | W8: 0.8333333333 | X8: 1 | Y8: 0.9166666667 | Z8: 0.8333333333 | AA8: 0.8333333333 | AB8: 0.6666666667 | AC8: 0.75 | AD8: 0.6666666667 | AE8: 0.6666666667 | AF8: 0.8333333333 | AG8: 0.9166666667 | AH8: 0.8333333333 | AI8: 0.8333333333 | AJ8: 0.6666666667 | AK8: 0.75 | AL8: 0.6666666667 | AM8: 0.6666666667 | AN8: 0.5 | AO8: 0.6666666667 | AP8: 0.6666666667 | AQ8: 0.9166666667 | AR8: 0.8333333333 | AS8: 0.8333333333 | AT8: 0.6666666667 | AU8: 0.75 | AV8: 0.6666666667 | AW8: 0.6666666667 | AX8: 0.5 | AY8: 0.6666666667 | AZ8: 0.2289669948 | BA8: 6
A9: 5112 | B9: 1 | C9: 0.6666666667 | D9: 0.4166666667 | E9: 0.1666666667 | F9: 0.25 | G9: 0.08333333333 | H9: 0 | I9: 0.5 | J9: 0.5 | K9: 0.5 | L9: 0.5 | M9: 0.8333333333 | N9: 0.9166666667 | O9: 1 | P9: 1 | Q9: 1 | R9: 1 | S9: 1 | T9: 1 | U9: 1 | V9: 0.9166666667 | W9: 0.75 | X9: 0.5 | Y9: 1 | Z9: 1 | AA9: 1 | AB9: 0.9166666667 | AC9: 1 | AD9: 0.75 | AE9: 0.6666666667 | AF9: 0.3333333333 | AG9: 1 | AH9: 1 | AI9: 1 | AJ9: 0.9166666667 | AK9: 1 | AL9: 0.75 | AM9: 1 | AN9: 0.6666666667 | AO9: 0.3333333333 | AP9: 0.1666666667 | AQ9: 1 | AR9: 1 | AS9: 1 | AT9: 0.9166666667 | AU9: 1 | AV9: 0.75 | AW9: 1 | AX9: 0.6666666667 | AY9: 0.3333333333 | AZ9: 0.004259863669 | BA9: 5
A10: 5022 | B10: 0.5 | C10: 0.3333333333 | D10: 0.1666666667 | E10: 0.1666666667 | F10: 0 | G10: 0.08333333333 | H10: 0 | I10: 0.5 | J10: 0.5 | K10: 0.5 | L10: 0.5 | M10: 0.9166666667 | N10: 1 | O10: 1 | P10: 1 | Q10: 0.9166666667 | R10: 1 | S10: 1 | T10: 0.9166666667 | U10: 0.8333333333 | V10: 1 | W10: 0.8333333333 | X10: 0.75 | Y10: 1 | Z10: 1 | AA10: 0.9166666667 | AB10: 1 | AC10: 0.8333333333 | AD10: 0.8333333333 | AE10: 0.6666666667 | AF10: 0.5833333333 | AG10: 1 | AH10: 1 | AI10: 0.9166666667 | AJ10: 1 | AK10: 0.8333333333 | AL10: 0.8333333333 | AM10: 0.8333333333 | AN10: 0.6666666667 | AO10: 0.5833333333 | AP10: 0.3333333333 | AQ10: 1 | AR10: 1 | AS10: 0.9166666667 | AT10: 1 | AU10: 0.8333333333 | AV10: 0.8333333333 | AW10: 0.8333333333 | AX10: 0.6666666667 | AY10: 0.5833333333 | AZ10: 0
A11: 5013 | B11: 0.5 | C11: 0.25 | D11: 0.08333333333 | E11: 0.1666666667 | F11: 0 | G11: 0.04166666667 | H11: 0.08333333333 | I11: 0.5 | J11: 0.5 | K11: 0.5 | L11: 0.5 | M11: 1 | N11: 0.9166666667 | O11: 0.9583333333 | P11: 1 | Q11: 0.9583333333 | R11: 1 | S11: 0.9583333333 | T11: 0.9166666667 | U11: 0.9166666667 | V11: 0.8333333333 | W11: 0.875 | X11: 1 | Y11: 1 | Z11: 0.9583333333 | AA11: 0.9166666667 | AB11: 0.8333333333 | AC11: 0.875 | AD11: 0.75 | AE11: 0.75 | AF11: 0.8333333333 | AG11: 1 | AH11: 0.9583333333 | AI11: 0.9166666667 | AJ11: 0.8333333333 | AK11: 0.875 | AL11: 0.75 | AM11: 0.8333333333 | AN11: 0.625 | AO11: 0.6666666667 | AP11: 0.6666666667 | AQ11: 1 | AR11: 0.9583333333 | AS11: 0.9166666667 | AT11: 0.8333333333 | AU11: 0.875 | AV11: 0.75 | AW11: 0.8333333333 | AX11: 0.625 | AY11: 0.6666666667 | AZ11: 0
A12: 5004 | B12: 0.25 | C12: 0.08333333333 | D12: 0 | E12: 0.08333333333 | F12: 0 | G12: 0 | H12: 0.08333333333 | I12: 0.5 | J12: 0.5 | K12: 0.5 | L12: 0.5 | M12: 1 | N12: 1 | O12: 0.9166666667 | P12: 0.9166666667 | Q12: 1 | R12: 0.9166666667 | S12: 0.8333333333 | T12: 0.9166666667 | U12: 1 | V12: 0.8333333333 | W12: 1 | X12: 1 | Y12: 0.9166666667 | Z12: 0.8333333333 | AA12: 0.8333333333 | AB12: 0.6666666667 | AC12: 0.9166666667 | AD12: 0.8333333333 | AE12: 1 | AF12: 1 | AG12: 0.9166666667 | AH12: 0.8333333333 | AI12: 0.8333333333 | AJ12: 0.6666666667 | AK12: 0.8333333333 | AL12: =probwin($A12,AL$1) -> 0.6666666667 | AM12: 0.8333333333 | AN12: 0.8333333333 | AO12: 0.8333333333 | AP12: 1 | AQ12: 0.9166666667 | AR12: 0.8333333333 | AS12: 0.8333333333 | AT12: 0.6666666667 | AU12: 0.8333333333 | AV12: 0.6666666667 | AW12: 0.75 | AX12: 0.6666666667 | AY12: 0.6666666667 | AZ12: 0.01597443688
A13: 4122 | B13: 1 | C13: 0.8333333333 | D13: 0.6666666667 | E13: 0.3333333333 | F13: 0.5 | G13: 0.25 | H13: 0 | I13: 0.1666666667 | J13: 0.08333333333 | K13: 0 | L13: 0 | M13: 0.5 | N13: 0.5 | O13: 0.5 | P13: 0.5 | Q13: 0.5 | R13: 1 | S13: 1 | T13: 1 | U13: 1 | V13: 1 | W13: 0.9166666667 | X13: 0.75 | Y13: 1 | Z13: 1 | AA13: 1 | AB13: 1 | AC13: 1 | AD13: 0.9166666667 | AE13: 0.8333333333 | AF13: 0.5833333333 | AG13: 1 | AH13: 1 | AI13: 1 | AJ13: 1 | AK13: 1 | AL13: 0.9166666667 | AM13: 1 | AN13: 0.8333333333 | AO13: 0.5833333333 | AP13: 0.3333333333 | AQ13: 1 | AR13: 1 | AS13: 1 | AT13: 1 | AU13: 1 | AV13: 0.9166666667 | AW13: 1 | AX13: 0.8333333333 | AY13: 0.5833333333 | AZ13: 0
A14: 4113 | B14: 1 | C14: 0.6666666667 | D14: 0.4166666667 | E14: 0.3333333333 | F14: 0.25 | G14: 0.1666666667 | H14: 0.1666666667 | I14: 0.08333333333 | J14: 0 | K14: 0.08333333333 | L14: 0 | M14: 0.5 | N14: 0.5 | O14: 0.5 | P14: 0.5 | Q14: 0.5 | R14: 1 | S14: 1 | T14: 1 | U14: 1 | V14: 0.9166666667 | W14: 0.9166666667 | X14: 1 | Y14: 1 | Z14: 1 | AA14: 1 | AB14: 0.9166666667 | AC14: 1 | AD14: 0.8333333333 | AE14: 0.8333333333 | AF14: 0.8333333333 | AG14: 1 | AH14: 1 | AI14: 1 | AJ14: 0.9166666667 | AK14: 1 | AL14: 0.8333333333 | AM14: 1 | AN14: 0.75 | AO14: 0.6666666667 | AP14: 0.6666666667 | AQ14: 1 | AR14: 1 | AS14: 1 | AT14: 0.9166666667 | AU14: 1 | AV14: 0.8333333333 | AW14: 1 | AX14: 0.75 | AY14: 0.6666666667 | AZ14: 0.2401490776
A15: 4014 | B15: 0.5 | C15: 0.25 | D15: 0.08333333333 | E15: 0.1666666667 | F15: 0 | G15: 0.04166666667 | H15: 0.1666666667 | I15: 0 | J15: 0 | K15: 0.04166666667 | L15: 0.08333333333 | M15: 0.5 | N15: 0.5 | O15: 0.5 | P15: 0.5 | Q15: 0.5 | R15: 1 | S15: 0.9583333333 | T15: 0.9583333333 | U15: 1 | V15: 0.9166666667 | W15: 1 | X15: 1 | Y15: 1 | Z15: 0.9583333333 | AA15: 0.9166666667 | AB15: 0.8333333333 | AC15: 0.9583333333 | AD15: 0.875 | AE15: 1 | AF15: 1 | AG15: 1 | AH15: 0.9583333333 | AI15: 0.9166666667 | AJ15: 0.8333333333 | AK15: 0.9166666667 | AL15: 0.75 | AM15: 0.9166666667 | AN15: 0.875 | AO15: 0.8333333333 | AP15: 1 | AQ15: 1 | AR15: 0.9583333333 | AS15: 0.9166666667 | AT15: 0.8333333333 | AU15: 0.9166666667 | AV15: 0.75 | AW15: 0.875 | AX15: 0.75 | AY15: 0.6666666667 | AZ15: 0
A16: 4005 | B16: 0.25 | C16: 0.08333333333 | D16: 0 | E16: 0.08333333333 | F16: 0 | G16: 0 | H16: 0.08333333333 | I16: 0 | J16: 0 | K16: 0 | L16: 0.08333333333 | M16: 0.5 | N16: 0.5 | O16: 0.5 | P16: 0.5 | Q16: 0.5 | R16: 0.9166666667 | S16: 0.9166666667 | T16: 1 | U16: 1 | V16: 1 | W16: 1 | X16: 1 | Y16: 0.9166666667 | Z16: 0.8333333333 | AA16: 0.9166666667 | AB16: 0.8333333333 | AC16: 1 | AD16: 1 | AE16: 1 | AF16: 1 | AG16: 0.9166666667 | AH16: 0.8333333333 | AI16: 0.8333333333 | AJ16: 0.6666666667 | AK16: 0.9166666667 | AL16: 0.8333333333 | AM16: 1 | AN16: 1 | AO16: 1 | AP16: 1 | AQ16: 0.9166666667 | AR16: 0.8333333333 | AS16: 0.8333333333 | AT16: 0.6666666667 | AU16: 0.8333333333 | AV16: 0.6666666667 | AW16: 0.9166666667 | AX16: 0.8333333333 | AY16: 0.8333333333 | AZ16: 0
A17: 4023 | B17: 0.5 | C17: 0.3333333333 | D17: 0.1666666667 | E17: 0.25 | F17: 0 | G17: 0.125 | H17: 0.08333333333 | I17: 0 | J17: 0.08333333333 | K17: 0.04166666667 | L17: 0 | M17: 0.5 | N17: 0.5 | O17: 0.5 | P17: 0.5 | Q17: 0.5 | R17: 1 | S17: 1 | T17: 0.9583333333 | U17: 0.9166666667 | V17: 1 | W17: 0.9583333333 | X17: 1 | Y17: 1 | Z17: 1 | AA17: 0.9583333333 | AB17: 1 | AC17: 0.875 | AD17: 0.9166666667 | AE17: 0.8333333333 | AF17: 0.9166666667 | AG17: 1 | AH17: 1 | AI17: 0.9583333333 | AJ17: 1 | AK17: 0.875 | AL17: 0.9166666667 | AM17: 0.8333333333 | AN17: 0.75 | AO17: 0.8333333333 | AP17: 0.75 | AQ17: 1 | AR17: 1 | AS17: 0.9583333333 | AT17: 1 | AU17: 0.875 | AV17: =probwin($A17,AV$1) -> 0.9166666667 | AW17: 0.8333333333 | AX17: 0.75 | AY17: 0.8333333333 | AZ17: 0
A18: 3006 | B18: 0.25 | C18: 0.08333333333 | D18: 0 | E18: 0.08333333333 | F18: 0 | G18: 0 | H18: 0.08333333333 | I18: 0 | J18: 0 | K18: 0 | L18: 0.08333333333 | M18: 0 | N18: 0 | O18: 0 | P18: 0.08333333333 | Q18: 0 | R18: 0.5 | S18: 0.5 | T18: 0.5 | U18: 0.5 | V18: 0.5 | W18: 0.5 | X18: 0.5 | Y18: 0.9166666667 | Z18: 0.9166666667 | AA18: 1 | AB18: 1 | AC18: 1 | AD18: 1 | AE18: 1 | AF18: 1 | AG18: 0.9166666667 | AH18: 0.8333333333 | AI18: 0.9166666667 | AJ18: 0.8333333333 | AK18: 1 | AL18: 1 | AM18: 1 | AN18: 1 | AO18: 1 | AP18: 1 | AQ18: 0.9166666667 | AR18: 0.8333333333 | AS18: 0.8333333333 | AT18: 0.6666666667 | AU18: 0.9166666667 | AV18: 0.8333333333 | AW18: 1 | AX18: 1 | AY18: 1 | AZ18: 0
A19: 3015 | B19: 0.5 | C19: 0.25 | D19: 0.08333333333 | E19: 0.1666666667 | F19: 0 | G19: 0.04166666667 | H19: 0.1666666667 | I19: 0 | J19: 0 | K19: 0.04166666667 | L19: 0.1666666667 | M19: 0 | N19: 0 | O19: 0.04166666667 | P19: 0.08333333333 | Q19: 0 | R19: 0.5 | S19: 0.5 | T19: 0.5 | U19: 0.5 | V19: 0.5 | W19: 0.5 | X19: 0.5 | Y19: 1 | Z19: 0.9583333333 | AA19: 0.9583333333 | AB19: 0.9166666667 | AC19: 1 | AD19: 1 | AE19: 1 | AF19: 1 | AG19: 1 | AH19: 0.9583333333 | AI19: 0.9166666667 | AJ19: 0.8333333333 | AK19: 0.9583333333 | AL19: 0.875 | AM19: 1 | AN19: 1 | AO19: 1 | AP19: 1 | AQ19: 1 | AR19: 0.9583333333 | AS19: 0.9166666667 | AT19: 0.8333333333 | AU19: 0.9166666667 | AV19: 0.75 | AW19: 0.9583333333 | AX19: 0.875 | AY19: 0.8333333333 | AZ19: 0
A20: 3024 | B20: 0.5 | C20: 0.3333333333 | D20: 0.1666666667 | E20: 0.25 | F20: 0 | G20: 0.125 | H20: 0.1666666667 | I20: 0 | J20: 0.08333333333 | K20: 0.08333333333 | L20: 0.08333333333 | M20: 0 | N20: 0 | O20: 0.04166666667 | P20: 0 | Q20: 0.04166666667 | R20: 0.5 | S20: 0.5 | T20: 0.5 | U20: 0.5 | V20: 0.5 | W20: 0.5 | X20: 0.5 | Y20: 1 | Z20: 1 | AA20: 0.9583333333 | AB20: 1 | AC20: 0.9583333333 | AD20: 0.9583333333 | AE20: 1 | AF20: 1 | AG20: 1 | AH20: 1 | AI20: 0.9583333333 | AJ20: 1 | AK20: 0.9166666667 | AL20: 0.9166666667 | AM20: 0.9166666667 | AN20: 0.9166666667 | AO20: 0.9166666667 | AP20: 1 | AQ20: 1 | AR20: 1 | AS20: 0.9583333333 | AT20: 1 | AU20: 0.9166666667 | AV20: 0.9166666667 | AW20: 0.875 | AX20: 0.8333333333 | AY20: 0.8333333333 | AZ20: 0
A21: 3033 | B21: 0.5 | C21: 0.3333333333 | D21: 0.1666666667 | E21: 0.3333333333 | F21: 0 | G21: 0.1666666667 | H21: 0.1666666667 | I21: 0 | J21: 0.1666666667 | K21: 0.08333333333 | L21: 0 | M21: 0 | N21: 0 | O21: 0 | P21: 0 | Q21: 0.08333333333 | R21: 0.5 | S21: 0.5 | T21: 0.5 | U21: 0.5 | V21: 0.5 | W21: 0.5 | X21: 0.5 | Y21: 1 | Z21: 1 | AA21: 1 | AB21: 1 | AC21: 0.9166666667 | AD21: 1 | AE21: 0.9166666667 | AF21: 1 | AG21: 1 | AH21: 1 | AI21: 1 | AJ21: 1 | AK21: 0.9166666667 | AL21: 1 | AM21: 0.8333333333 | AN21: 0.8333333333 | AO21: 1 | AP21: 0.9166666667 | AQ21: 1 | AR21: 1 | AS21: 1 | AT21: 1 | AU21: 0.9166666667 | AV21: 1 | AW21: 0.8333333333 | AX21: 0.8333333333 | AY21: 1 | AZ21: 0
A22: 3114 | B22: 1 | C22: 0.6666666667 | D22: 0.4166666667 | E22: 0.3333333333 | F22: 0.25 | G22: 0.1666666667 | H22: 0.3333333333 | I22: 0.08333333333 | J22: 0 | K22: 0.1666666667 | L22: 0.1666666667 | M22: 0 | N22: 0.08333333333 | O22: 0.08333333333 | P22: 0 | Q22: 0 | R22: 0.5 | S22: 0.5 | T22: 0.5 | U22: 0.5 | V22: 0.5 | W22: 0.5 | X22: 0.5 | Y22: 1 | Z22: 1 | AA22: 1 | AB22: 0.9166666667 | AC22: 1 | AD22: 0.9166666667 | AE22: 1 | AF22: 1 | AG22: 1 | AH22: 1 | AI22: 1 | AJ22: 0.9166666667 | AK22: 1 | AL22: 0.8333333333 | AM22: 1 | AN22: 0.9166666667 | AO22: 0.8333333333 | AP22: 1 | AQ22: 1 | AR22: 1 | AS22: 1 | AT22: 0.9166666667 | AU22: 1 | AV22: 0.8333333333 | AW22: 1 | AX22: 0.8333333333 | AY22: 0.6666666667 | AZ22: 0
A23: 3123 | B23: 1 | C23: 0.8333333333 | D23: 0.6666666667 | E23: 0.5 | F23: 0.5 | G23: 0.375 | H23: 0.1666666667 | I23: =probwin($A23,I$1) -> 0.25 | J23: 0.1666666667 | K23: 0.125 | L23: 0 | M23: 0.08333333333 | N23: 0.08333333333 | O23: 0 | P23: 0 | Q23: 0.04166666667 | R23: 0.5 | S23: 0.5 | T23: 0.5 | U23: 0.5 | V23: 0.5 | W23: 0.5 | X23: 0.5 | Y23: 1 | Z23: 1 | AA23: 1 | AB23: 1 | AC23: 1 | AD23: 0.9583333333 | AE23: 0.9166666667 | AF23: 0.9166666667 | AG23: 1 | AH23: 1 | AI23: 1 | AJ23: 1 | AK23: 1 | AL23: 0.9583333333 | AM23: 1 | AN23: 0.875 | AO23: 0.8333333333 | AP23: 0.75 | AQ23: 1 | AR23: 1 | AS23: 1 | AT23: 1 | AU23: 1 | AV23: 0.9583333333 | AW23: 1 | AX23: 0.875 | AY23: 0.8333333333 | AZ23: 0
A24: 3222 | B24: 1 | C24: 1 | D24: 1 | E24: 0.5 | F24: 1 | G24: 0.5 | H24: 0 | I24: 0.5 | J24: 0.25 | K24: 0 | L24: 0 | M24: 0.25 | N24: 0 | O24: 0 | P24: 0 | Q24: 0 | R24: 0.5 | S24: 0.5 | T24: 0.5 | U24: 0.5 | V24: 0.5 | W24: 0.5 | X24: 0.5 | Y24: 1 | Z24: 1 | AA24: 1 | AB24: 1 | AC24: 1 | AD24: 1 | AE24: 1 | AF24: 0.75 | AG24: 1 | AH24: 1 | AI24: 1 | AJ24: 1 | AK24: 1 | AL24: 1 | AM24: 1 | AN24: 1 | AO24: 0.75 | AP24: 0.5 | AQ24: 1 | AR24: 1 | AS24: 1 | AT24: 1 | AU24: 1 | AV24: 1 | AW24: 1 | AX24: 1 | AY24: 0.75 | AZ24: 0
A25: 2007 | B25: 0.25 | C25: 0.08333333333 | D25: 0 | E25: 0.08333333333 | F25: 0 | G25: 0 | H25: 0.08333333333 | I25: 0 | J25: 0 | K25: 0 | L25: 0.08333333333 | M25: 0 | N25: 0 | O25: 0 | P25: 0.08333333333 | Q25: 0 | R25: 0.08333333333 | S25: 0 | T25: 0 | U25: 0 | V25: 0 | W25: 0 | X25: 0 | Y25: 0.5 | Z25: 0.5 | AA25: 0.5 | AB25: 0.5 | AC25: 0.5 | AD25: 0.5 | AE25: 0.5 | AF25: 0.5 | AG25: 0.9166666667 | AH25: 0.9166666667 | AI25: 1 | AJ25: 1 | AK25: 1 | AL25: 1 | AM25: 1 | AN25: 1 | AO25: 1 | AP25: 1 | AQ25: 0.9166666667 | AR25: 0.8333333333 | AS25: 0.9166666667 | AT25: 0.8333333333 | AU25: 1 | AV25: 1 | AW25: 1 | AX25: 1 | AY25: 1 | AZ25: 0
A26: 2016 | B26: 0.5 | C26: 0.25 | D26: 0.08333333333 | E26: 0.1666666667 | F26: 0 | G26: 0.04166666667 | H26: 0.1666666667 | I26: 0 | J26: 0 | K26: 0.04166666667 | L26: 0.1666666667 | M26: 0 | N26: 0 | O26: 0.04166666667 | P26: 0.1666666667 | Q26: 0 | R26: 0.08333333333 | S26: 0.04166666667 | T26: 0 | U26: 0 | V26: 0 | W26: 0 | X26: 0 | Y26: 0.5 | Z26: 0.5 | AA26: 0.5 | AB26: 0.5 | AC26: 0.5 | AD26: 0.5 | AE26: 0.5 | AF26: 0.5 | AG26: 1 | AH26: 0.9583333333 | AI26: 0.9583333333 | AJ26: 0.9166666667 | AK26: 1 | AL26: 1 | AM26: 1 | AN26: 1 | AO26: 1 | AP26: 1 | AQ26: 1 | AR26: 0.9583333333 | AS26: 0.9166666667 | AT26: 0.8333333333 | AU26: 0.9583333333 | AV26: 0.875 | AW26: 1 | AX26: 1 | AY26: 1 | AZ26: 0
A27: 2025 | B27: 0.5 | C27: 0.3333333333 | D27: 0.1666666667 | E27: 0.25 | F27: 0 | G27: 0.125 | H27: 0.1666666667 | I27: 0 | J27: 0.08333333333 | K27: 0.08333333333 | L27: 0.1666666667 | M27: 0 | N27: 0 | O27: 0.08333333333 | P27: 0.08333333333 | Q27: 0.04166666667 | R27: 0 | S27: 0.04166666667 | T27: 0.04166666667 | U27: 0 | V27: 0 | W27: 0 | X27: 0 | Y27: 0.5 | Z27: 0.5 | AA27: 0.5 | AB27: 0.5 | AC27: 0.5 | AD27: 0.5 | AE27: 0.5 | AF27: 0.5 | AG27: 1 | AH27: 1 | AI27: 0.9583333333 | AJ27: 1 | AK27: 0.9583333333 | AL27: 0.9583333333 | AM27: 1 | AN27: 1 | AO27: 1 | AP27: 1 | AQ27: 1 | AR27: 1 | AS27: 0.9583333333 | AT27: 1 | AU27: 0.9166666667 | AV27: 0.9166666667 | AW27: 0.9583333333 | AX27: 0.9166666667 | AY27: 0.9166666667 | AZ27: 0
A28: 2115 | B28: 1 | C28: 0.6666666667 | D28: 0.4166666667 | E28: 0.3333333333 | F28: 0.25 | G28: 0.1666666667 | H28: 0.3333333333 | I28: 0.08333333333 | J28: 0 | K28: 0.1666666667 | L28: 0.3333333333 | M28: 0 | N28: 0.08333333333 | O28: 0.1666666667 | P28: 0.1666666667 | Q28: 0 | R28: 0 | S28: =probwin($A28,S$1) -> 0.08333333333 | T28: 0 | U28: 0 | V28: 0.08333333333 | W28: 0 | X28: 0 | Y28: 0.5 | Z28: 0.5 | AA28: 0.5 | AB28: 0.5 | AC28: 0.5 | AD28: 0.5 | AE28: 0.5 | AF28: 0.5 | AG28: 1 | AH28: 1 | AI28: 1 | AJ28: 0.9166666667 | AK28: 1 | AL28: 0.9166666667 | AM28: 1 | AN28: 1 | AO28: 1 | AP28: 1 | AQ28: 1 | AR28: 1 | AS28: 1 | AT28: 0.9166666667 | AU28: 1 | AV28: 0.8333333333 | AW28: 1 | AX28: 0.9166666667 | AY28: 0.8333333333 | AZ28: 0
A29: 2034 | B29: 0.5 | C29: 0.3333333333 | D29: 0.1666666667 | E29: 0.3333333333 | F29: 0 | G29: 0.1666666667 | H29: 0.25 | I29: 0 | J29: 0.1666666667 | K29: 0.125 | L29: 0.08333333333 | M29: 0 | N29: 0 | O29: 0.04166666667 | P29: 0 | Q29: 0.125 | R29: 0 | S29: 0 | T29: 0.04166666667 | U29: 0.08333333333 | V29: 0 | W29: 0 | X29: 0 | Y29: 0.5 | Z29: 0.5 | AA29: 0.5 | AB29: 0.5 | AC29: 0.5 | AD29: 0.5 | AE29: 0.5 | AF29: 0.5 | AG29: 1 | AH29: 1 | AI29: 1 | AJ29: 1 | AK29: 0.9583333333 | AL29: 1 | AM29: 0.9166666667 | AN29: 0.9583333333 | AO29: 1 | AP29: 1 | AQ29: 1 | AR29: 1 | AS29: 1 | AT29: 1 | AU29: 0.9583333333 | AV29: 1 | AW29: 0.875 | AX29: 0.9166666667 | AY29: 1 | AZ29: 0
A30: 2124 | B30: 1 | C30: 0.8333333333 | D30: 0.6666666667 | E30: 0.5 | F30: 0.5 | G30: 0.375 | H30: 0.3333333333 | I30: 0.25 | J30: 0.1666666667 | K30: 0.25 | L30: 0.1666666667 | M30: 0.08333333333 | N30: 0.1666666667 | O30: 0.125 | P30: 0 | Q30: 0.08333333333 | R30: 0 | S30: 0 | T30: 0.04166666667 | U30: 0 | V30: 0.08333333333 | W30: 0.04166666667 | X30: 0 | Y30: 0.5 | Z30: 0.5 | AA30: 0.5 | AB30: 0.5 | AC30: 0.5 | AD30: 0.5 | AE30: 0.5 | AF30: 0.5 | AG30: 1 | AH30: 1 | AI30: 1 | AJ30: 1 | AK30: 1 | AL30: 0.9583333333 | AM30: 1 | AN30: 0.9583333333 | AO30: 0.9166666667 | AP30: 1 | AQ30: 1 | AR30: 1 | AS30: 1 | AT30: 1 | AU30: 1 | AV30: 0.9583333333 | AW30: 1 | AX30: 0.9166666667 | AY30: 0.8333333333 | AZ30: 0.03993607521
A31: 2133 | B31: 1 | C31: 0.8333333333 | D31: 0.6666666667 | E31: 0.6666666667 | F31: 0.5 | G31: 0.5 | H31: 0.3333333333 | I31: 0.3333333333 | J31: 0.3333333333 | K31: 0.25 | L31: 0 | M31: 0.1666666667 | N31: 0.1666666667 | O31: 0 | P31: 0 | Q31: 0.1666666667 | R31: 0 | S31: 0 | T31: 0 | U31: 0.08333333333 | V31: 0 | W31: 0.08333333333 | X31: 0 | Y31: 0.5 | Z31: 0.5 | AA31: 0.5 | AB31: 0.5 | AC31: 0.5 | AD31: 0.5 | AE31: 0.5 | AF31: 0.5 | AG31: 1 | AH31: 1 | AI31: 1 | AJ31: 1 | AK31: 1 | AL31: 1 | AM31: 1 | AN31: 0.9166666667 | AO31: 1 | AP31: 0.9166666667 | AQ31: 1 | AR31: 1 | AS31: 1 | AT31: 1 | AU31: 1 | AV31: 1 | AW31: 1 | AX31: 0.9166666667 | AY31: 1 | AZ31: 0.08306713954
A32: 2223 | B32: 1 | C32: 1 | D32: 1 | E32: 0.6666666667 | F32: 1 | G32: 0.6666666667 | H32: 0.1666666667 | I32: 0.6666666667 | J32: 0.4166666667 | K32: 0.1666666667 | L32: 0 | M32: 0.4166666667 | N32: 0.1666666667 | O32: 0 | P32: 0 | Q32: 0.08333333333 | R32: 0 | S32: 0 | T32: 0 | U32: 0 | V32: 0 | W32: 0.08333333333 | X32: 0.25 | Y32: 0.5 | Z32: 0.5 | AA32: 0.5 | AB32: 0.5 | AC32: 0.5 | AD32: 0.5 | AE32: 0.5 | AF32: 0.5 | AG32: 1 | AH32: 1 | AI32: 1 | AJ32: 1 | AK32: 1 | AL32: 1 | AM32: 1 | AN32: 1 | AO32: 0.9166666667 | AP32: 0.8333333333 | AQ32: 1 | AR32: 1 | AS32: 1 | AT32: 1 | AU32: 1 | AV32: 1 | AW32: 1 | AX32: 1 | AY32: 0.9166666667 | AZ32: 0
A33: 1008 | B33: 0.25 | C33: 0.08333333333 | D33: 0 | E33: 0.08333333333 | F33: 0 | G33: 0 | H33: 0.08333333333 | I33: 0 | J33: 0 | K33: 0 | L33: 0.08333333333 | M33: 0 | N33: 0 | O33: 0 | P33: 0.08333333333 | Q33: 0 | R33: 0.08333333333 | S33: 0 | T33: 0 | U33: 0 | V33: 0 | W33: 0 | X33: 0 | Y33: 0.08333333333 | Z33: 0 | AA33: 0 | AB33: 0 | AC33: =probwin($A33,AC$1) -> 0 | AD33: 0 | AE33: 0 | AF33: 0 | AG33: 0.5 | AH33: 0.5 | AI33: 0.5 | AJ33: 0.5 | AK33: 0.5 | AL33: 0.5 | AM33: 0.5 | AN33: 0.5 | AO33: 0.5 | AP33: 0.5 | AQ33: 0.9166666667 | AR33: 0.9166666667 | AS33: 1 | AT33: 1 | AU33: 1 | AV33: 1 | AW33: 1 | AX33: 1 | AY33: 1 | AZ33: 0
A34: 1017 | B34: =probwin($A34,B$1) -> 0.5 | C34: 0.25 | D34: 0.08333333333 | E34: 0.1666666667 | F34: 0 | G34: 0.04166666667 | H34: 0.1666666667 | I34: 0 | J34: 0 | K34: 0.04166666667 | L34: 0.1666666667 | M34: 0 | N34: 0 | O34: 0.04166666667 | P34: 0.1666666667 | Q34: 0 | R34: 0.1666666667 | S34: 0.04166666667 | T34: 0 | U34: 0 | V34: 0 | W34: 0 | X34: 0 | Y34: 0.08333333333 | Z34: 0.04166666667 | AA34: 0 | AB34: 0 | AC34: 0 | AD34: 0 | AE34: 0 | AF34: 0 | AG34: 0.5 | AH34: 0.5 | AI34: 0.5 | AJ34: 0.5 | AK34: 0.5 | AL34: 0.5 | AM34: 0.5 | AN34: 0.5 | AO34: 0.5 | AP34: 0.5 | AQ34: 1 | AR34: 0.9583333333 | AS34: 0.9583333333 | AT34: 0.9166666667 | AU34: 1 | AV34: 1 | AW34: 1 | AX34: 1 | AY34: 1 | AZ34: 0
A35: 1026 | B35: 0.5 | C35: 0.3333333333 | D35: 0.1666666667 | E35: 0.25 | F35: 0 | G35: 0.125 | H35: 0.1666666667 | I35: 0 | J35: 0.08333333333 | K35: 0.08333333333 | L35: 0.1666666667 | M35: 0 | N35: 0 | O35: 0.08333333333 | P35: 0.1666666667 | Q35: 0.04166666667 | R35: 0.08333333333 | S35: 0.08333333333 | T35: 0.04166666667 | U35: 0 | V35: 0 | W35: 0 | X35: 0 | Y35: 0 | Z35: 0.04166666667 | AA35: 0.04166666667 | AB35: 0 | AC35: 0 | AD35: 0 | AE35: 0 | AF35: 0 | AG35: 0.5 | AH35: 0.5 | AI35: 0.5 | AJ35: 0.5 | AK35: 0.5 | AL35: 0.5 | AM35: 0.5 | AN35: 0.5 | AO35: 0.5 | AP35: 0.5 | AQ35: 1 | AR35: 1 | AS35: 0.9583333333 | AT35: 1 | AU35: 0.9583333333 | AV35: 0.9583333333 | AW35: 1 | AX35: 1 | AY35: 1 | AZ35: 0
A36: 1116 | B36: 1 | C36: 0.6666666667 | D36: 0.4166666667 | E36: 0.3333333333 | F36: 0.25 | G36: 0.1666666667 | H36: 0.3333333333 | I36: 0.08333333333 | J36: 0 | K36: 0.1666666667 | L36: 0.3333333333 | M36: 0 | N36: 0.08333333333 | O36: 0.1666666667 | P36: 0.3333333333 | Q36: 0 | R36: 0.1666666667 | S36: 0.1666666667 | T36: 0 | U36: 0 | V36: 0.08333333333 | W36: 0 | X36: 0 | Y36: 0 | Z36: 0.08333333333 | AA36: 0 | AB36: 0.08333333333 | AC36: 0 | AD36: 0 | AE36: 0 | AF36: 0 | AG36: 0.5 | AH36: 0.5 | AI36: 0.5 | AJ36: 0.5 | AK36: 0.5 | AL36: 0.5 | AM36: 0.5 | AN36: 0.5 | AO36: 0.5 | AP36: 0.5 | AQ36: 1 | AR36: 1 | AS36: 1 | AT36: 0.9166666667 | AU36: 1 | AV36: 0.9166666667 | AW36: 1 | AX36: 1 | AY36: 1 | AZ36: 0
A37: 1035 | B37: 0.5 | C37: 0.3333333333 | D37: 0.1666666667 | E37: 0.3333333333 | F37: 0 | G37: 0.1666666667 | H37: 0.25 | I37: 0 | J37: 0.1666666667 | K37: 0.125 | L37: 0.1666666667 | M37: 0 | N37: 0 | O37: 0.08333333333 | P37: 0.08333333333 | Q37: 0.125 | R37: 0 | S37: 0.04166666667 | T37: 0.08333333333 | U37: 0.08333333333 | V37: 0 | W37: 0 | X37: 0 | Y37: 0 | Z37: 0 | AA37: 0.04166666667 | AB37: 0 | AC37: 0.04166666667 | AD37: 0 | AE37: 0 | AF37: 0 | AG37: 0.5 | AH37: 0.5 | AI37: 0.5 | AJ37: 0.5 | AK37: 0.5 | AL37: 0.5 | AM37: 0.5 | AN37: 0.5 | AO37: 0.5 | AP37: 0.5 | AQ37: 1 | AR37: 1 | AS37: 1 | AT37: 1 | AU37: 0.9583333333 | AV37: 1 | AW37: 0.9583333333 | AX37: 0.9583333333 | AY37: 1 | AZ37: 0
A38: 1125 | B38: 1 | C38: 0.8333333333 | D38: 0.6666666667 | E38: 0.5 | F38: 0.5 | G38: 0.375 | H38: 0.3333333333 | I38: 0.25 | J38: 0.1666666667 | K38: 0.25 | L38: 0.3333333333 | M38: 0.08333333333 | N38: 0.1666666667 | O38: 0.25 | P38: 0.1666666667 | Q38: 0.08333333333 | R38: 0 | S38: 0.125 | T38: 0.08333333333 | U38: 0 | V38: 0.1666666667 | W38: 0.04166666667 | X38: 0 | Y38: 0 | Z38: 0 | AA38: 0.04166666667 | AB38: 0.08333333333 | AC38: 0 | AD38: 0.04166666667 | AE38: 0 | AF38: 0 | AG38: 0.5 | AH38: 0.5 | AI38: 0.5 | AJ38: 0.5 | AK38: 0.5 | AL38: 0.5 | AM38: =probwin($A38,AM$1) -> 0.5 | AN38: 0.5 | AO38: 0.5 | AP38: 0.5 | AQ38: 1 | AR38: 1 | AS38: 1 | AT38: 1 | AU38: 1 | AV38: 0.9583333333 | AW38: 1 | AX38: 0.9583333333 | AY38: 0.9166666667 | AZ38: 0
A39: 1044 | B39: 0.5 | C39: 0.3333333333 | D39: 0.1666666667 | E39: 0.3333333333 | F39: 0 | G39: 0.1666666667 | H39: 0.3333333333 | I39: 0 | J39: 0.1666666667 | K39: 0.1666666667 | L39: 0.1666666667 | M39: 0 | N39: 0 | O39: 0.08333333333 | P39: 0 | Q39: 0.1666666667 | R39: 0 | S39: 0 | T39: 0.08333333333 | U39: 0.1666666667 | V39: 0 | W39: 0 | X39: 0 | Y39: 0 | Z39: 0 | AA39: 0 | AB39: 0 | AC39: 0.08333333333 | AD39: 0 | AE39: 0 | AF39: 0 | AG39: 0.5 | AH39: 0.5 | AI39: 0.5 | AJ39: 0.5 | AK39: 0.5 | AL39: 0.5 | AM39: 0.5 | AN39: 0.5 | AO39: 0.5 | AP39: 0.5 | AQ39: 1 | AR39: 1 | AS39: 1 | AT39: 1 | AU39: 1 | AV39: 1 | AW39: 0.9166666667 | AX39: 1 | AY39: 1 | AZ39: 0
A40: 1134 | B40: 1 | C40: 0.8333333333 | D40: 0.6666666667 | E40: 0.6666666667 | F40: 0.5 | G40: 0.5 | H40: 0.5 | I40: 0.3333333333 | J40: 0.3333333333 | K40: 0.375 | L40: 0.1666666667 | M40: 0.1666666667 | N40: 0.25 | O40: 0.125 | P40: 0 | Q40: 0.25 | R40: 0 | S40: 0 | T40: 0.08333333333 | U40: 0.1666666667 | V40: 0.08333333333 | W40: 0.125 | X40: 0 | Y40: 0 | Z40: 0 | AA40: 0 | AB40: 0 | AC40: 0.04166666667 | AD40: 0.04166666667 | AE40: 0.08333333333 | AF40: 0 | AG40: 0.5 | AH40: 0.5 | AI40: 0.5 | AJ40: 0.5 | AK40: 0.5 | AL40: 0.5 | AM40: 0.5 | AN40: 0.5 | AO40: 0.5 | AP40: 0.5 | AQ40: 1 | AR40: 1 | AS40: 1 | AT40: 1 | AU40: 1 | AV40: 1 | AW40: 1 | AX40: 0.9583333333 | AY40: 1 | AZ40: 0
A41: 1224 | B41: 1 | C41: 1 | D41: 1 | E41: 0.6666666667 | F41: 1 | G41: 0.6666666667 | H41: 0.3333333333 | I41: 0.6666666667 | J41: 0.4166666667 | K41: 0.3333333333 | L41: 0.1666666667 | M41: 0.4166666667 | N41: 0.3333333333 | O41: 0.1666666667 | P41: 0 | Q41: 0.1666666667 | R41: 0 | S41: 0 | T41: 0.08333333333 | U41: 0 | V41: 0.1666666667 | W41: 0.1666666667 | X41: 0.25 | Y41: 0 | Z41: 0 | AA41: 0 | AB41: 0 | AC41: 0 | AD41: 0.08333333333 | AE41: 0 | AF41: 0.08333333333 | AG41: 0.5 | AH41: 0.5 | AI41: 0.5 | AJ41: 0.5 | AK41: 0.5 | AL41: 0.5 | AM41: 0.5 | AN41: 0.5 | AO41: 0.5 | AP41: 0.5 | AQ41: 1 | AR41: 1 | AS41: 1 | AT41: 1 | AU41: 1 | AV41: 1 | AW41: 1 | AX41: 1 | AY41: 0.9166666667 | AZ41: 0
A42: 1233 | B42: 1 | C42: 1 | D42: 1 | E42: 0.8333333333 | F42: 1 | G42: 0.8333333333 | H42: 0.3333333333 | I42: 0.8333333333 | J42: 0.6666666667 | K42: 0.3333333333 | L42: 0 | M42: 0.6666666667 | N42: 0.3333333333 | O42: 0 | P42: 0 | Q42: 0.25 | R42: 0 | S42: 0 | T42: 0 | U42: 0.08333333333 | V42: 0 | W42: 0.25 | X42: 0.5 | Y42: 0 | Z42: 0 | AA42: 0 | AB42: 0 | AC42: 0 | AD42: 0 | AE42: 0.08333333333 | AF42: 0.1666666667 | AG42: 0.5 | AH42: 0.5 | AI42: 0.5 | AJ42: 0.5 | AK42: 0.5 | AL42: 0.5 | AM42: 0.5 | AN42: 0.5 | AO42: 0.5 | AP42: 0.5 | AQ42: 1 | AR42: 1 | AS42: 1 | AT42: 1 | AU42: 1 | AV42: 1 | AW42: 1 | AX42: 1 | AY42: 1 | AZ42: 0.08945685606
A43: 9 | B43: 0.25 | C43: 0.08333333333 | D43: 0 | E43: 0.08333333333 | F43: 0 | G43: 0 | H43: 0.08333333333 | I43: 0 | J43: 0 | K43: 0 | L43: 0.08333333333 | M43: 0 | N43: 0 | O43: 0 | P43: 0.08333333333 | Q43: 0 | R43: 0.08333333333 | S43: 0 | T43: 0 | U43: 0 | V43: 0 | W43: 0 | X43: 0 | Y43: 0.08333333333 | Z43: 0 | AA43: 0 | AB43: 0 | AC43: 0 | AD43: 0 | AE43: 0 | AF43: 0 | AG43: 0.08333333333 | AH43: 0 | AI43: 0 | AJ43: 0 | AK43: 0 | AL43: 0 | AM43: 0 | AN43: 0 | AO43: 0 | AP43: 0 | AQ43: 0.5 | AR43: 0.5 | AS43: 0.5 | AT43: 0.5 | AU43: 0.5 | AV43: 0.5 | AW43: =probwin($A43,AW$1) -> 0.5 | AX43: 0.5 | AY43: 0.5 | AZ43: 0
A44: 18 | B44: 0.5 | C44: 0.25 | D44: 0.08333333333 | E44: 0.1666666667 | F44: 0 | G44: 0.04166666667 | H44: 0.1666666667 | I44: 0 | J44: 0 | K44: 0.04166666667 | L44: 0.1666666667 | M44: 0 | N44: 0 | O44: 0.04166666667 | P44: 0.1666666667 | Q44: 0 | R44: 0.1666666667 | S44: 0.04166666667 | T44: 0 | U44: 0 | V44: 0 | W44: 0 | X44: 0 | Y44: 0.1666666667 | Z44: 0.04166666667 | AA44: 0 | AB44: 0 | AC44: 0 | AD44: 0 | AE44: 0 | AF44: 0 | AG44: 0.08333333333 | AH44: 0.04166666667 | AI44: 0 | AJ44: 0 | AK44: 0 | AL44: 0 | AM44: 0 | AN44: 0 | AO44: 0 | AP44: 0 | AQ44: 0.5 | AR44: 0.5 | AS44: 0.5 | AT44: 0.5 | AU44: 0.5 | AV44: 0.5 | AW44: 0.5 | AX44: 0.5 | AY44: 0.5 | AZ44: 0
A45: 27 | B45: 0.5 | C45: 0.3333333333 | D45: 0.1666666667 | E45: 0.25 | F45: 0 | G45: 0.125 | H45: 0.1666666667 | I45: 0 | J45: 0.08333333333 | K45: 0.08333333333 | L45: 0.1666666667 | M45: 0 | N45: 0 | O45: 0.08333333333 | P45: 0.1666666667 | Q45: 0.04166666667 | R45: 0.1666666667 | S45: 0.08333333333 | T45: 0.04166666667 | U45: 0 | V45: 0 | W45: 0 | X45: 0 | Y45: 0.08333333333 | Z45: 0.08333333333 | AA45: 0.04166666667 | AB45: 0 | AC45: 0 | AD45: 0 | AE45: 0 | AF45: 0 | AG45: 0 | AH45: 0.04166666667 | AI45: 0.04166666667 | AJ45: 0 | AK45: 0 | AL45: 0 | AM45: 0 | AN45: 0 | AO45: 0 | AP45: 0 | AQ45: 0.5 | AR45: 0.5 | AS45: 0.5 | AT45: 0.5 | AU45: 0.5 | AV45: 0.5 | AW45: 0.5 | AX45: 0.5 | AY45: 0.5 | AZ45: 0
A46: 117 | B46: 1 | C46: 0.6666666667 | D46: 0.4166666667 | E46: 0.3333333333 | F46: 0.25 | G46: 0.1666666667 | H46: 0.3333333333 | I46: 0.08333333333 | J46: 0 | K46: 0.1666666667 | L46: 0.3333333333 | M46: 0 | N46: 0.08333333333 | O46: 0.1666666667 | P46: 0.3333333333 | Q46: 0 | R46: 0.3333333333 | S46: 0.1666666667 | T46: 0 | U46: 0 | V46: 0.08333333333 | W46: 0 | X46: 0 | Y46: 0.1666666667 | Z46: 0.1666666667 | AA46: 0 | AB46: 0.08333333333 | AC46: 0 | AD46: 0 | AE46: 0 | AF46: 0 | AG46: 0 | AH46: 0.08333333333 | AI46: 0 | AJ46: 0.08333333333 | AK46: 0 | AL46: 0 | AM46: 0 | AN46: 0 | AO46: 0 | AP46: 0 | AQ46: 0.5 | AR46: 0.5 | AS46: 0.5 | AT46: 0.5 | AU46: 0.5 | AV46: 0.5 | AW46: 0.5 | AX46: 0.5 | AY46: 0.5 | AZ46: 0
A47: 36 | B47: 0.5 | C47: 0.3333333333 | D47: 0.1666666667 | E47: 0.3333333333 | F47: 0 | G47: 0.1666666667 | H47: 0.25 | I47: 0 | J47: 0.1666666667 | K47: 0.125 | L47: 0.1666666667 | M47: 0 | N47: 0 | O47: 0.08333333333 | P47: 0.1666666667 | Q47: 0.125 | R47: 0.08333333333 | S47: 0.08333333333 | T47: 0.08333333333 | U47: 0.08333333333 | V47: 0 | W47: 0 | X47: 0 | Y47: 0 | Z47: 0.04166666667 | AA47: 0.08333333333 | AB47: 0 | AC47: 0.04166666667 | AD47: 0 | AE47: 0 | AF47: 0 | AG47: 0 | AH47: 0 | AI47: 0.04166666667 | AJ47: 0 | AK47: 0.04166666667 | AL47: 0 | AM47: 0 | AN47: 0 | AO47: 0 | AP47: 0 | AQ47: 0.5 | AR47: 0.5 | AS47: 0.5 | AT47: 0.5 | AU47: 0.5 | AV47: 0.5 | AW47: 0.5 | AX47: 0.5 | AY47: 0.5 | AZ47: 0
A48: 126 | B48: 1 | C48: 0.8333333333 | D48: 0.6666666667 | E48: 0.5 | F48: 0.5 | G48: 0.375 | H48: 0.3333333333 | I48: 0.25 | J48: 0.1666666667 | K48: 0.25 | L48: 0.3333333333 | M48: 0.08333333333 | N48: 0.1666666667 | O48: 0.25 | P48: 0.3333333333 | Q48: 0.08333333333 | R48: 0.1666666667 | S48: 0.25 | T48: 0.08333333333 | U48: 0 | V48: 0.1666666667 | W48: 0.04166666667 | X48: 0 | Y48: 0 | Z48: 0.125 | AA48: 0.08333333333 | AB48: 0.1666666667 | AC48: 0 | AD48: 0.04166666667 | AE48: 0 | AF48: 0 | AG48: 0 | AH48: 0 | AI48: 0.04166666667 | AJ48: 0.08333333333 | AK48: 0 | AL48: 0.04166666667 | AM48: 0 | AN48: 0 | AO48: 0 | AP48: 0 | AQ48: 0.5 | AR48: 0.5 | AS48: 0.5 | AT48: 0.5 | AU48: 0.5 | AV48: 0.5 | AW48: 0.5 | AX48: 0.5 | AY48: 0.5 | AZ48: 0
A49: 45 | B49: 0.5 | C49: 0.3333333333 | D49: 0.1666666667 | E49: 0.3333333333 | F49: 0 | G49: 0.1666666667 | H49: 0.3333333333 | I49: 0 | J49: =probwin($A49,J$1) -> 0.1666666667 | K49: 0.1666666667 | L49: 0.25 | M49: 0 | N49: 0 | O49: 0.125 | P49: 0.08333333333 | Q49: 0.1666666667 | R49: 0 | S49: 0.04166666667 | T49: 0.125 | U49: 0.1666666667 | V49: 0 | W49: 0 | X49: 0 | Y49: 0 | Z49: 0 | AA49: 0.04166666667 | AB49: 0 | AC49: 0.125 | AD49: 0 | AE49: 0 | AF49: 0 | AG49: 0 | AH49: 0 | AI49: 0 | AJ49: 0 | AK49: 0.04166666667 | AL49: 0 | AM49: 0.08333333333 | AN49: 0 | AO49: 0 | AP49: 0 | AQ49: 0.5 | AR49: 0.5 | AS49: 0.5 | AT49: 0.5 | AU49: 0.5 | AV49: 0.5 | AW49: 0.5 | AX49: 0.5 | AY49: 0.5 | AZ49: 0
A50: 135 | B50: 1 | C50: 0.8333333333 | D50: 0.6666666667 | E50: 0.6666666667 | F50: 0.5 | G50: 0.5 | H50: 0.5 | I50: 0.3333333333 | J50: 0.3333333333 | K50: 0.375 | L50: 0.3333333333 | M50: 0.1666666667 | N50: 0.25 | O50: 0.25 | P50: 0.1666666667 | Q50: 0.25 | R50: 0 | S50: 0.125 | T50: 0.1666666667 | U50: 0.1666666667 | V50: 0.1666666667 | W50: 0.125 | X50: 0 | Y50: 0 | Z50: 0 | AA50: 0.08333333333 | AB50: 0.08333333333 | AC50: 0.08333333333 | AD50: 0.08333333333 | AE50: 0.08333333333 | AF50: 0 | AG50: 0 | AH50: 0 | AI50: 0 | AJ50: 0 | AK50: 0.04166666667 | AL50: 0.04166666667 | AM50: 0 | AN50: 0.04166666667 | AO50: 0 | AP50: 0 | AQ50: 0.5 | AR50: 0.5 | AS50: 0.5 | AT50: 0.5 | AU50: 0.5 | AV50: 0.5 | AW50: 0.5 | AX50: 0.5 | AY50: 0.5 | AZ50: 0
A51: 225 | B51: 1 | C51: 1 | D51: 1 | E51: 0.6666666667 | F51: 1 | G51: 0.6666666667 | H51: 0.3333333333 | I51: 0.6666666667 | J51: 0.4166666667 | K51: 0.3333333333 | L51: 0.3333333333 | M51: 0.4166666667 | N51: 0.3333333333 | O51: 0.3333333333 | P51: 0.1666666667 | Q51: 0.1666666667 | R51: 0 | S51: 0.1666666667 | T51: 0.1666666667 | U51: 0 | V51: 0.3333333333 | W51: 0.1666666667 | X51: 0.25 | Y51: 0 | Z51: 0 | AA51: 0.08333333333 | AB51: 0.1666666667 | AC51: 0 | AD51: 0.1666666667 | AE51: 0 | AF51: 0.08333333333 | AG51: 0 | AH51: 0 | AI51: 0 | AJ51: 0 | AK51: 0 | AL51: 0.08333333333 | AM51: 0 | AN51: 0 | AO51: 0.08333333333 | AP51: 0 | AQ51: 0.5 | AR51: 0.5 | AS51: 0.5 | AT51: 0.5 | AU51: 0.5 | AV51: 0.5 | AW51: 0.5 | AX51: 0.5 | AY51: 0.5 | AZ51: 0
B52: =SUMPRODUCT(B2:B51,$AZ$2:$AZ$51) -> 0.592651759 | C52: 0.5000000022 | D52: 0.5022630421 | E52: 0.5000000019 | F52: 0.5049254436 | G52: 0.519324634 | H52: 0.4999999969 | I52: 0.5000000017 | J52: 0.5416223021 | K52: 0.5291089864 | L52: 0.5000000013 | M52: 0.5243610191 | N52: 0.4999999992 | O52: 0.5632987201 | P52: 0.6222044747 | Q52: 0.5934061105 | R52: 0.7422790135 | S52: 0.6770500464 | T52: 0.6551961229 | U52: 0.6643592443 | V52: 0.5122470613 | W52: 0.5302848691 | X52: 0.5612353384 | Y52: 0.8037806209 | Z52: 0.7385516538 | AA52: 0.7137025241 | AB52: 0.5677582563 | AC52: 0.691072066 | AD52: 0.5000000026 | AE52: 0.5000000017 | AF52: 0.504259848 | AG52: 0.9100106563 | AH52: 0.8447816892 | AI52: 0.8199325595 | AJ52: 0.6739882917 | AK52: 0.7959708984 | AL52: 0.6019036288 | AM52: 0.7768903155 | AN52: 0.5293530393 | AO52: 0.5114039829 | AP52: 0.5 | AQ52: 0.9547390843 | AR52: 0.8895101172 | AS52: 0.8646609875 | AT52: 0.7187167197 | AU52: 0.8406993264 | AV52: 0.6466320568 | AW52: 0.8202875404 | AX52: 0.569755058 | AY52: =SUMPRODUCT(AY2:AY51,$AZ$2:$AZ$51) -> 0.5501419985 | AZ52: =SUM(AZ2:AZ51) -> 1 | BA52: 0.5000000013
AZ53: 1
O54: 0 | P54: 1 | Q54: 2 | R54: 3 | S54: 4 | T54: 5 | U54: 6 | V54: 7 | W54: 8 | X54: 9
O55: =SUM(AZ43:AZ51) -> 0 | P55: =SUM(AZ33:AZ42) -> 0.08945685606 | Q55: =SUM(AZ25:AZ32) -> 0.1230032148 | R55: =SUM(AZ18:AZ24) -> 0 | S55: =SUM(AZ13:AZ17) -> 0.2401490776 | T55: =SUM(AZ9:AZ12) -> 0.02023430055 | U55: =SUM(AZ6:AZ8) -> 0.2289669948 | V55: =SUM(AZ4:AZ5) -> 0.05857293872 | W55: =SUM(AZ3) -> 0.2396166176 | X55: =AZ2 -> 0 | Y55: =SUM(O55:X55) -> 1

Sheet H55
B1: 5000 | C1: 4001 | D1: 3011 | E1: 3002 | F1: 2111 | G1: 2012 | H1: 2003 | I1: 1112 | J1: 1022 | K1: 1013 | L1: 1004 | M1: 122 | N1: 113 | O1: 14 | P1: 5 | Q1: 23 | R1: 4000 | S1: 3001 | T1: 2011 | U1: 2002 | V1: 1111 | W1: 1012 | X1: 1003 | Y1: 112 | Z1: 22 | AA1: 13 | AB1: 4 | AC1: x()
A2: 5000 | B2: =probwin($A2,B$1) -> 0.5 | C2: =probwin($A2,C$1) -> 0.75 | D2: 0.5 | E2: 0.75 | F2: 0 | G2: 0.5 | H2: 0.75 | I2: 0 | J2: 0.5 | K2: 0.5 | L2: 0.75 | M2: 0 | N2: 0 | O2: 0.5 | P2: 0.75 | Q2: 0.5 | R2: =Dprobwin($A2,R$1) -> 0 | S2: =Dprobwin($A2,S$1) -> 0 | T2: 0 | U2: 0 | V2: 0 | W2: 0 | X2: 0 | Y2: 0 | Z2: 0 | AA2: 0 | AB2: 0 | AC2: 0
A3: 4001 | B3: 0.25 | C3: 0.5 | D3: 0.8333333333 | E3: 0.9166666667 | F3: 0.5 | G3: 0.75 | H3: 0.9166666667 | I3: 0.3333333333 | J3: 0.6666666667 | K3: 0.75 | L3: 0.9166666667 | M3: 0.1666666667 | N3: 0.3333333333 | O3: 0.75 | P3: 0.9166666667 | Q3: 0.6666666667 | R3: =Dprobwin($A3,R$1) -> 0 | S3: 0.6666666667 | T3: 0.3333333333 | U3: 0.6666666667 | V3: 0 | W3: 0.3333333333 | X3: 0.6666666667 | Y3: 0 | Z3: 0.3333333333 | AA3: 0.3333333333 | AB3: 0.6666666667 | AC3: 0.2639999967
A4: 3011 | B4: 0.5 | C4: 0.1666666667 | D4: 0.5 | E4: 0.5 | F4: 0.75 | G4: 0.9166666667 | H4: 1 | I4: 0.5833333333 | J4: 0.8333333333 | K4: 0.9166666667 | L4: 1 | M4: 0.3333333333 | N4: 0.5833333333 | O4: 0.9166666667 | P4: 1 | Q4: 0.8333333333 | R4: 0 | S4: 0 | T4: 0.6666666667 | U4: 1 | V4: 0 | W4: 0.6666666667 | X4: 1 | Y4: 0 | Z4: 0.6666666667 | AA4: 0.6666666667 | AB4: 1 | AC4: 0
A5: 3002 | B5: 0.25 | C5: 0.08333333333 | D5: 0.5 | E5: 0.5 | F5: 1 | G5: 0.9166666667 | H5: 0.9166666667 | I5: 0.8333333333 | J5: 0.8333333333 | K5: 0.8333333333 | L5: 0.9166666667 | M5: 0.6666666667 | N5: 0.6666666667 | O5: 0.8333333333 | P5: 0.9166666667 | Q5: 0.75 | R5: 0 | S5: 0 | T5: 1 | U5: 0.6666666667 | V5: 1 | W5: 0.6666666667 | X5: 0.6666666667 | Y5: 0.6666666667 | Z5: 0.3333333333 | AA5: 0.6666666667 | AB5: 0.6666666667 | AC5: 0.2879999981
A6: 2111 | B6: 1 | C6: 0.5 | D6: 0.25 | E6: 0 | F6: 0.5 | G6: 0.5 | H6: 0.5 | I6: 0.75 | J6: 1 | K6: 1 | L6: 1 | M6: 0.5 | N6: 0.75 | O6: 1 | P6: 1 | Q6: 1 | R6: 1 | S6: 0 | T6: 0 | U6: 0 | V6: 0 | W6: 1 | X6: 1 | Y6: 0 | Z6: 1 | AA6: 1 | AB6: 1 | AC6: 0.00800000039
A7: 2012 | B7: 0.5 | C7: 0.25 | D7: 0.08333333333 | E7: 0.08333333333 | F7: 0.5 | G7: 0.5 | H7: 0.5 | I7: 0.9166666667 | J7: 0.9166666667 | K7: 0.9583333333 | L7: 1 | M7: 0.75 | N7: 0.8333333333 | O7: 0.9583333333 | P7: 1 | Q7: 0.875 | R7: 0 | S7: 0 | T7: 0 | U7: 0 | V7: 1 | W7: 0.8333333333 | X7: 1 | Y7: 0.6666666667 | Z7: 0.6666666667 | AA7: 0.8333333333 | AB7: 1 | AC7: 0
A8: 2003 | B8: 0.25 | C8: 0.08333333333 | D8: 0 | E8: 0.08333333333 | F8: 0.5 | G8: 0.5 | H8: 0.5 | I8: 1 | J8: 1 | K8: 0.9166666667 | L8: 0.9166666667 | M8: 1 | N8: 0.8333333333 | O8: 0.8333333333 | P8: 0.9166666667 | Q8: 0.9166666667 | R8: 0 | S8: 0 | T8: 0 | U8: 0 | V8: 1 | W8: 1 | X8: 0.6666666667 | Y8: 1 | Z8: 1 | AA8: 0.6666666667 | AB8: 0.6666666667 | AC8: 0.08000000304
A9: 1112 | B9: 1 | C9: 0.6666666667 | D9: 0.4166666667 | E9: 0.1666666667 | F9: 0.25 | G9: 0.08333333333 | H9: 0 | I9: 0.5 | J9: 0.5 | K9: 0.5 | L9: 0.5 | M9: 0.8333333333 | N9: 0.9166666667 | O9: 1 | P9: 1 | Q9: 1 | R9: 1 | S9: 0.3333333333 | T9: 0 | U9: 0 | V9: 0 | W9: 0 | X9: 0 | Y9: 0.6666666667 | Z9: 1 | AA9: 1 | AB9: 1 | AC9: 0.1439999955
A10: 1022 | B10: 0.5 | C10: 0.3333333333 | D10: 0.1666666667 | E10: 0.1666666667 | F10: 0 | G10: 0.08333333333 | H10: 0 | I10: 0.5 | J10: 0.5 | K10: 0.5 | L10: 0.5 | M10: 0.9166666667 | N10: 1 | O10: 1 | P10: 1 | Q10: 0.9166666667 | R10: 0 | S10: 0 | T10: 0 | U10: 0 | V10: 0 | W10: 0 | X10: 0 | Y10: 1 | Z10: 0.6666666667 | AA10: 1 | AB10: 1 | AC10: 0
A11: 1013 | B11: 0.5 | C11: 0.25 | D11: 0.08333333333 | E11: 0.1666666667 | F11: 0 | G11: 0.04166666667 | H11: 0.08333333333 | I11: 0.5 | J11: 0.5 | K11: 0.5 | L11: 0.5 | M11: 1 | N11: 0.9166666667 | O11: 0.9583333333 | P11: 1 | Q11: 0.9583333333 | R11: 0 | S11: 0 | T11: 0 | U11: 0 | V11: 0 | W11: 0 | X11: 0 | Y11: 1 | Z11: 1 | AA11: 0.8333333333 | AB11: 1 | AC11: 0
A12: 1004 | B12: 0.25 | C12: =probwin($A12,C$1) -> 0.08333333333 | D12: 0 | E12: 0.08333333333 | F12: 0 | G12: 0 | H12: 0.08333333333 | I12: 0.5 | J12: 0.5 | K12: 0.5 | L12: 0.5 | M12: 1 | N12: 1 | O12: 0.9166666667 | P12: 0.9166666667 | Q12: 1 | R12: 0 | S12: 0 | T12: 0 | U12: 0 | V12: 0 | W12: 0 | X12: 0 | Y12: 1 | Z12: 1 | AA12: 1 | AB12: 0.6666666667 | AC12: 0
A13: 122 | B13: 1 | C13: 0.8333333333 | D13: 0.6666666667 | E13: 0.3333333333 | F13: 0.5 | G13: 0.25 | H13: 0 | I13: 0.1666666667 | J13: 0.08333333333 | K13: 0 | L13: 0 | M13: 0.5 | N13: 0.5 | O13: 0.5 | P13: 0.5 | Q13: 0.5 | R13: 1 | S13: 0.6666666667 | T13: 0.3333333333 | U13: 0 | V13: 0 | W13: 0 | X13: 0 | Y13: 0 | Z13: 0 | AA13: 0 | AB13: 0 | AC13: 0.2160000063
A14: 113 | B14: 1 | C14: 0.6666666667 | D14: 0.4166666667 | E14: 0.3333333333 | F14: 0.25 | G14: 0.1666666667 | H14: 0.1666666667 | I14: 0.08333333333 | J14: 0 | K14: 0.08333333333 | L14: 0 | M14: 0.5 | N14: 0.5 | O14: 0.5 | P14: 0.5 | Q14: 0.5 | R14: 1 | S14: 0.3333333333 | T14: 0 | U14: 0.3333333333 | V14: 0 | W14: 0 | X14: 0 | Y14: 0 | Z14: 0 | AA14: 0 | AB14: 0 | AC14: 0
A15: 14 | B15: 0.5 | C15: 0.25 | D15: 0.08333333333 | E15: 0.1666666667 | F15: 0 | G15: 0.04166666667 | H15: 0.1666666667 | I15: 0 | J15: 0 | K15: 0.04166666667 | L15: 0.08333333333 | M15: 0.5 | N15: 0.5 | O15: 0.5 | P15: 0.5 | Q15: 0.5 | R15: 0 | S15: 0 | T15: 0 | U15: 0 | V15: 0 | W15: 0 | X15: 0 | Y15: 0 | Z15: 0 | AA15: 0 | AB15: 0 | AC15: 0
A16: 5 | B16: 0.25 | C16: 0.08333333333 | D16: 0 | E16: 0.08333333333 | F16: 0 | G16: 0 | H16: 0.08333333333 | I16: 0 | J16: 0 | K16: 0 | L16: 0.08333333333 | M16: 0.5 | N16: 0.5 | O16: 0.5 | P16: 0.5 | Q16: 0.5 | R16: 0 | S16: 0 | T16: 0 | U16: 0 | V16: 0 | W16: 0 | X16: 0 | Y16: 0 | Z16: 0 | AA16: 0 | AB16: 0 | AC16: 0
A17: 23 | B17: 0.5 | C17: 0.3333333333 | D17: 0.1666666667 | E17: 0.25 | F17: 0 | G17: 0.125 | H17: 0.08333333333 | I17: 0 | J17: 0.08333333333 | K17: 0.04166666667 | L17: 0 | M17: 0.5 | N17: 0.5 | O17: 0.5 | P17: 0.5 | Q17: 0.5 | R17: 0 | S17: 0 | T17: 0 | U17: 0 | V17: 0 | W17: 0 | X17: 0 | Y17: 0 | Z17: 0 | AA17: 0 | AB17: 0 | AC17: 0
B18: =SUMPRODUCT(B2:B17,$AC$2:$AC$17) -> 0.5260000017 | C18: 0.4426666676 | D18: 0.5699999987 | E18: 0.4886666642 | F18: 0.6080000001 | G18: 0.5719999986 | H18: 0.5499999969 | I18: 0.5219999994 | J18: 0.5939999979 | K18: 0.5913333301 | L18: 0.6593333294 | M18: 0.5480000008 | N18: 0.5926666661 | O18: 0.7646666641 | P18: 0.8393333303 | Q18: 0.7253333315 | R18: 0.3680000023 | S18: 0.3680000005 | T18: 0.4479999991 | U18: 0.3679999965 | V18: 0.3680000011 | W18: 0.368000001 | X18: 0.4293333322 | Y18: 0.3679999988 | Z18: 0.4159999972 | AA18: 0.4853333289 | AB18: 0.5733333277 | AC18: =SUM(AC2:AC17) -> 1 | AD18: 0.3680000011
AC19: 1

Sheet H99
B1: 9000 | C1: 8001 | D1: 7011 | E1: 7002 | F1: 6111 | G1: 6012 | H1: 6003 | I1: 5112 | J1: 5022 | K1: 5013 | L1: 5004 | M1: 4122 | N1: 4113 | O1: 4014 | P1: 4005 | Q1: 4023 | R1: 3006 | S1: 3015 | T1: 3024 | U1: 3033 | V1: 3114 | W1: 3123 | X1: 3222 | Y1: 2007 | Z1: 2016 | AA1: 2025 | AB1: 2115 | AC1: 2034 | AD1: 2124 | AE1: 2133 | AF1: 2223 | AG1: 1008 | AH1: 1017 | AI1: 1026 | AJ1: 1116 | AK1: 1035 | AL1: 1125 | AM1: 1044 | AN1: 1134 | AO1: 1224 | AP1: 1233 | AQ1: 9 | AR1: 18 | AS1: 27 | AT1: 117 | AU1: 36 | AV1: 126 | AW1: 45 | AX1: 135 | AY1: 225 | AZ1: 8000 | BA1: 7001 | BB1: 6002 | BC1: 6011 | BD1: 5003 | BE1: 5012 | BF1: 4004 | BG1: 4013 | BH1: 4022 | BI1: 4112 | BJ1: 3005 | BK1: 3014 | BL1: 3023 | BM1: 3113 | BN1: 3122 | BO1: 2006 | BP1: 2015 | BQ1: 2024 | BR1: 2033 | BS1: 2115 | BT1: 2124 | BU1: 2133 | BV1: 1007 | BW1: 1016 | BX1: 1025 | BY1: 1034 | BZ1: 1115 | CA1: 1124 | CB1: 1133 | CC1: 1223 | CD1: 8 | CE1: 17 | CF1: 26 | CG1: 35 | CH1: 44 | CI1: 116 | CJ1: 125 | CK1: 134 | CL1: 224 | CM1: 233 | CN1: x()
A2: 9000 | B2: =probwin($A2,B$1) -> 0.5 | C2: =probwin($A2,C$1) -> 0.75 | D2: 0.5 | E2: 0.75 | F2: 0 | G2: 0.5 | H2: 0.75 | I2: 0 | J2: 0.5 | K2: 0.5 | L2: 0.75 | M2: 0 | N2: 0 | O2: 0.5 | P2: 0.75 | Q2: 0.5 | R2: 0.75 | S2: 0.5 | T2: 0.5 | U2: 0.5 | V2: 0 | W2: 0 | X2: 0 | Y2: 0.75 | Z2: 0.5 | AA2: 0.5 | AB2: 0 | AC2: 0.5 | AD2: 0 | AE2: 0 | AF2: 0 | AG2: 0.75 | AH2: 0.5 | AI2: 0.5 | AJ2: 0 | AK2: 0.5 | AL2: 0 | AM2: 0.5 | AN2: 0 | AO2: 0 | AP2: 0 | AQ2: 0.75 | AR2: 0.5 | AS2: 0.5 | AT2: 0 | AU2: 0.5 | AV2: 0 | AW2: 0.5 | AX2: 0 | AY2: 0 | AZ2: =Dprobwin($A2,AZ$1) -> 0 | BA2: =Dprobwin($A2,BA$1) -> 0 | BB2: 0 | BC2: 0 | BD2: 0 | BE2: 0 | BF2: 0 | BG2: 0 | BH2: 0 | BI2: 0 | BJ2: 0 | BK2: 0 | BL2: 0 | BM2: 0 | BN2: 0 | BO2: 0 | BP2: 0 | BQ2: 0 | BR2: 0 | BS2: 0 | BT2: 0 | BU2: 0 | BV2: 0 | BW2: 0 | BX2: 0 | BY2: 0 | BZ2: 0 | CA2: 0 | CB2: 0 | CC2: 0 | CD2: 0 | CE2: 0 | CF2: 0 | CG2: 0 | CH2: 0 | CI2: 0 | CJ2: 0 | CK2: 0 | CL2: 0 | CM2: 0 | CN2: 0
A3: 8001 | B3: 0.25 | C3: =probwin($A3,C$1) -> 0.5 | D3: 0.8333333333 | E3: 0.9166666667 | F3: 0.5 | G3: 0.75 | H3: 0.9166666667 | I3: 0.3333333333 | J3: 0.6666666667 | K3: 0.75 | L3: 0.9166666667 | M3: 0.1666666667 | N3: 0.3333333333 | O3: 0.75 | P3: 0.9166666667 | Q3: 0.6666666667 | R3: 0.9166666667 | S3: 0.75 | T3: 0.6666666667 | U3: 0.6666666667 | V3: 0.3333333333 | W3: 0.1666666667 | X3: 0 | Y3: 0.9166666667 | Z3: 0.75 | AA3: 0.6666666667 | AB3: 0.3333333333 | AC3: 0.6666666667 | AD3: 0.1666666667 | AE3: 0.1666666667 | AF3: 0 | AG3: 0.9166666667 | AH3: 0.75 | AI3: 0.6666666667 | AJ3: 0.3333333333 | AK3: 0.6666666667 | AL3: 0.1666666667 | AM3: 0.6666666667 | AN3: 0.1666666667 | AO3: 0 | AP3: 0 | AQ3: 0.9166666667 | AR3: 0.75 | AS3: 0.6666666667 | AT3: 0.3333333333 | AU3: 0.6666666667 | AV3: 0.1666666667 | AW3: 0.6666666667 | AX3: 0.1666666667 | AY3: 0 | AZ3: 0 | BA3: =Dprobwin($A3,BA$1) -> 0.6666666667 | BB3: 0.6666666667 | BC3: 0.3333333333 | BD3: 0.6666666667 | BE3: 0.3333333333 | BF3: 0.6666666667 | BG3: 0.3333333333 | BH3: 0.3333333333 | BI3: 0 | BJ3: 0.6666666667 | BK3: 0.3333333333 | BL3: 0.3333333333 | BM3: 0 | BN3: 0 | BO3: 0.6666666667 | BP3: 0.3333333333 | BQ3: 0.3333333333 | BR3: 0.3333333333 | BS3: 0 | BT3: 0 | BU3: 0 | BV3: 0.6666666667 | BW3: 0.3333333333 | BX3: 0.3333333333 | BY3: 0.3333333333 | BZ3: 0 | CA3: 0 | CB3: 0 | CC3: 0 | CD3: 0.6666666667 | CE3: 0.3333333333 | CF3: 0.3333333333 | CG3: 0.3333333333 | CH3: 0.3333333333 | CI3: 0 | CJ3: 0 | CK3: 0 | CL3: 0 | CM3: 0 | CN3: 0.2063073133
A4: 7011 | B4: 0.5 | C4: =probwin($A4,C$1) -> 0.1666666667 | D4: 0.5 | E4: 0.5 | F4: 0.75 | G4: 0.9166666667 | H4: 1 | I4: 0.5833333333 | J4: 0.8333333333 | K4: 0.9166666667 | L4: 1 | M4: 0.3333333333 | N4: 0.5833333333 | O4: 0.9166666667 | P4: 1 | Q4: 0.8333333333 | R4: 1 | S4: 0.9166666667 | T4: 0.8333333333 | U4: 0.8333333333 | V4: 0.5833333333 | W4: 0.3333333333 | X4: 0 | Y4: 1 | Z4: 0.9166666667 | AA4: 0.8333333333 | AB4: 0.5833333333 | AC4: 0.8333333333 | AD4: 0.3333333333 | AE4: 0.3333333333 | AF4: 0 | AG4: 1 | AH4: 0.9166666667 | AI4: 0.8333333333 | AJ4: 0.5833333333 | AK4: 0.8333333333 | AL4: 0.3333333333 | AM4: 0.8333333333 | AN4: 0.3333333333 | AO4: 0 | AP4: 0 | AQ4: 1 | AR4: 0.9166666667 | AS4: 0.8333333333 | AT4: 0.5833333333 | AU4: 0.8333333333 | AV4: 0.3333333333 | AW4: 0.8333333333 | AX4: 0.3333333333 | AY4: 0 | AZ4: 0 | BA4: 0 | BB4: 1 | BC4: 0.6666666667 | BD4: 1 | BE4: 0.6666666667 | BF4: 1 | BG4: 0.6666666667 | BH4: 0.6666666667 | BI4: 0 | BJ4: 1 | BK4: 0.6666666667 | BL4: 0.6666666667 | BM4: 0 | BN4: 0 | BO4: 1 | BP4: 0.6666666667 | BQ4: 0.6666666667 | BR4: 0.6666666667 | BS4: 0 | BT4: 0 | BU4: 0 | BV4: 1 | BW4: 0.6666666667 | BX4: 0.6666666667 | BY4: 0.6666666667 | BZ4: 0 | CA4: 0 | CB4: 0 | CC4: 0 | CD4: 1 | CE4: 0.6666666667 | CF4: 0.6666666667 | CG4: 0.6666666667 | CH4: 0.6666666667 | CI4: 0 | CJ4: 0 | CK4: 0 | CL4: 0 | CM4: 0 | CN4: 0
A5: 7002 | B5: 0.25 | C5: 0.08333333333 | D5: 0.5 | E5: 0.5 | F5: 1 | G5: 0.9166666667 | H5: 0.9166666667 | I5: 0.8333333333 | J5: 0.8333333333 | K5: 0.8333333333 | L5: 0.9166666667 | M5: 0.6666666667 | N5: 0.6666666667 | O5: 0.8333333333 | P5: 0.9166666667 | Q5: 0.75 | R5: 0.9166666667 | S5: 0.8333333333 | T5: 0.75 | U5: 0.6666666667 | V5: 0.6666666667 | W5: 0.5 | X5: 0.5 | Y5: 0.9166666667 | Z5: 0.8333333333 | AA5: 0.75 | AB5: 0.6666666667 | AC5: 0.6666666667 | AD5: 0.5 | AE5: 0.3333333333 | AF5: 0.3333333333 | AG5: 0.9166666667 | AH5: 0.8333333333 | AI5: 0.75 | AJ5: 0.6666666667 | AK5: 0.6666666667 | AL5: 0.5 | AM5: 0.6666666667 | AN5: 0.3333333333 | AO5: 0.3333333333 | AP5: 0.1666666667 | AQ5: 0.9166666667 | AR5: 0.8333333333 | AS5: 0.75 | AT5: 0.6666666667 | AU5: 0.6666666667 | AV5: 0.5 | AW5: 0.6666666667 | AX5: 0.3333333333 | AY5: 0.3333333333 | AZ5: 0 | BA5: 0 | BB5: 0.6666666667 | BC5: 1 | BD5: 0.6666666667 | BE5: 0.6666666667 | BF5: 0.6666666667 | BG5: 0.6666666667 | BH5: 0.3333333333 | BI5: 0.6666666667 | BJ5: 0.6666666667 | BK5: 0.6666666667 | BL5: 0.3333333333 | BM5: 0.6666666667 | BN5: 0.3333333333 | BO5: 0.6666666667 | BP5: 0.6666666667 | BQ5: 0.3333333333 | BR5: 0.3333333333 | BS5: 0.6666666667 | BT5: 0.3333333333 | BU5: 0.3333333333 | BV5: 0.6666666667 | BW5: 0.6666666667 | BX5: 0.3333333333 | BY5: 0.3333333333 | BZ5: 0.6666666667 | CA5: 0.3333333333 | CB5: 0.3333333333 | CC5: 0 | CD5: 0.6666666667 | CE5: 0.6666666667 | CF5: 0.3333333333 | CG5: 0.3333333333 | CH5: 0.3333333333 | CI5: 0.6666666667 | CJ5: 0.3333333333 | CK5: 0.3333333333 | CL5: 0 | CM5: 0 | CN5: 0.1583441482
A6: 6111 | B6: 1 | C6: 0.5 | D6: 0.25 | E6: 0 | F6: 0.5 | G6: 0.5 | H6: 0.5 | I6: 0.75 | J6: 1 | K6: 1 | L6: 1 | M6: 0.5 | N6: 0.75 | O6: 1 | P6: 1 | Q6: 1 | R6: 1 | S6: 1 | T6: 1 | U6: 1 | V6: 0.75 | W6: 0.5 | X6: 0 | Y6: 1 | Z6: 1 | AA6: 1 | AB6: 0.75 | AC6: 1 | AD6: 0.5 | AE6: 0.5 | AF6: 0 | AG6: 1 | AH6: 1 | AI6: 1 | AJ6: 0.75 | AK6: 1 | AL6: 0.5 | AM6: 1 | AN6: 0.5 | AO6: 0 | AP6: 0 | AQ6: 1 | AR6: 1 | AS6: 1 | AT6: 0.75 | AU6: 1 | AV6: 0.5 | AW6: 1 | AX6: 0.5 | AY6: 0 | AZ6: 1 | BA6: 0 | BB6: 0 | BC6: 0 | BD6: 1 | BE6: 1 | BF6: 1 | BG6: 1 | BH6: 1 | BI6: 0 | BJ6: 1 | BK6: 1 | BL6: 1 | BM6: 0 | BN6: 0 | BO6: 1 | BP6: 1 | BQ6: 1 | BR6: 1 | BS6: 0 | BT6: 0 | BU6: 0 | BV6: 1 | BW6: 1 | BX6: 1 | BY6: 1 | BZ6: 0 | CA6: 0 | CB6: 0 | CC6: 0 | CD6: 1 | CE6: 1 | CF6: 1 | CG6: 1 | CH6: 1 | CI6: 0 | CJ6: 0 | CK6: 0 | CL6: 0 | CM6: 0 | CN6: 0
A7: 6012 | B7: 0.5 | C7: 0.25 | D7: 0.08333333333 | E7: 0.08333333333 | F7: 0.5 | G7: 0.5 | H7: 0.5 | I7: 0.9166666667 | J7: 0.9166666667 | K7: 0.9583333333 | L7: 1 | M7: 0.75 | N7: 0.8333333333 | O7: 0.9583333333 | P7: 1 | Q7: 0.875 | R7: 1 | S7: 0.9583333333 | T7: 0.875 | U7: 0.8333333333 | V7: 0.8333333333 | W7: 0.625 | X7: 0.5 | Y7: 1 | Z7: 0.9583333333 | AA7: 0.875 | AB7: 0.8333333333 | AC7: 0.8333333333 | AD7: 0.625 | AE7: 0.5 | AF7: 0.3333333333 | AG7: 1 | AH7: 0.9583333333 | AI7: 0.875 | AJ7: 0.8333333333 | AK7: 0.8333333333 | AL7: 0.625 | AM7: 0.8333333333 | AN7: 0.5 | AO7: 0.3333333333 | AP7: 0.1666666667 | AQ7: 1 | AR7: 0.9583333333 | AS7: 0.875 | AT7: 0.8333333333 | AU7: 0.8333333333 | AV7: 0.625 | AW7: 0.8333333333 | AX7: 0.5 | AY7: 0.3333333333 | AZ7: 0 | BA7: 0 | BB7: 0 | BC7: 0 | BD7: 1 | BE7: 0.8333333333 | BF7: 1 | BG7: 0.8333333333 | BH7: 0.6666666667 | BI7: 0.6666666667 | BJ7: 1 | BK7: 0.8333333333 | BL7: 0.6666666667 | BM7: 0.6666666667 | BN7: 0.3333333333 | BO7: 1 | BP7: 0.8333333333 | BQ7: 0.6666666667 | BR7: 0.6666666667 | BS7: 0.6666666667 | BT7: 0.3333333333 | BU7: 0.3333333333 | BV7: 1 | BW7: 0.8333333333 | BX7: 0.6666666667 | BY7: 0.6666666667 | BZ7: 0.6666666667 | CA7: 0.3333333333 | CB7: 0.3333333333 | CC7: 0 | CD7: 1 | CE7: 0.8333333333 | CF7: 0.6666666667 | CG7: 0.6666666667 | CH7: 0.6666666667 | CI7: 0.6666666667 | CJ7: 0.3333333333 | CK7: 0.3333333333 | CL7: 0 | CM7: 0 | CN7: 0
A8: 6003 | B8: 0.25 | C8: =probwin($A8,C$1) -> 0.08333333333 | D8: 0 | E8: 0.08333333333 | F8: 0.5 | G8: 0.5 | H8: 0.5 | I8: 1 | J8: 1 | K8: 0.9166666667 | L8: 0.9166666667 | M8: 1 | N8: 0.8333333333 | O8: 0.8333333333 | P8: 0.9166666667 | Q8: 0.9166666667 | R8: 0.9166666667 | S8: 0.8333333333 | T8: 0.8333333333 | U8: 0.8333333333 | V8: 0.6666666667 | W8: 0.8333333333 | X8: 1 | Y8: 0.9166666667 | Z8: 0.8333333333 | AA8: 0.8333333333 | AB8: 0.6666666667 | AC8: 0.75 | AD8: 0.6666666667 | AE8: 0.6666666667 | AF8: 0.8333333333 | AG8: 0.9166666667 | AH8: 0.8333333333 | AI8: 0.8333333333 | AJ8: 0.6666666667 | AK8: 0.75 | AL8: 0.6666666667 | AM8: 0.6666666667 | AN8: 0.5 | AO8: 0.6666666667 | AP8: 0.6666666667 | AQ8: 0.9166666667 | AR8: 0.8333333333 | AS8: 0.8333333333 | AT8: 0.6666666667 | AU8: 0.75 | AV8: 0.6666666667 | AW8: 0.6666666667 | AX8: 0.5 | AY8: 0.6666666667 | AZ8: 0 | BA8: 0 | BB8: 0 | BC8: 0 | BD8: 0.6666666667 | BE8: 1 | BF8: 0.6666666667 | BG8: 0.6666666667 | BH8: 1 | BI8: 1 | BJ8: 0.6666666667 | BK8: 0.6666666667 | BL8: 0.6666666667 | BM8: 0.6666666667 | BN8: 1 | BO8: 0.6666666667 | BP8: 0.6666666667 | BQ8: 0.6666666667 | BR8: 0.3333333333 | BS8: 0.6666666667 | BT8: 0.6666666667 | BU8: 0.3333333333 | BV8: 0.6666666667 | BW8: 0.6666666667 | BX8: 0.6666666667 | BY8: 0.3333333333 | BZ8: 0.6666666667 | CA8: 0.6666666667 | CB8: 0.3333333333 | CC8: 0.6666666667 | CD8: 0.6666666667 | CE8: 0.6666666667 | CF8: 0.6666666667 | CG8: 0.3333333333 | CH8: 0.3333333333 | CI8: 0.6666666667 | CJ8: 0.6666666667 | CK8: =Dprobwin($A8,CK$1) -> 0.3333333333 | CL8: 0.6666666667 | CM8: 0.3333333333 | CN8: 0.1360051404
A9: 5112 | B9: 1 | C9: 0.6666666667 | D9: 0.4166666667 | E9: 0.1666666667 | F9: 0.25 | G9: 0.08333333333 | H9: 0 | I9: 0.5 | J9: 0.5 | K9: 0.5 | L9: 0.5 | M9: 0.8333333333 | N9: 0.9166666667 | O9: 1 | P9: 1 | Q9: 1 | R9: 1 | S9: 1 | T9: 1 | U9: 1 | V9: 0.9166666667 | W9: 0.75 | X9: 0.5 | Y9: 1 | Z9: 1 | AA9: 1 | AB9: 0.9166666667 | AC9: 1 | AD9: 0.75 | AE9: 0.6666666667 | AF9: 0.3333333333 | AG9: 1 | AH9: 1 | AI9: 1 | AJ9: 0.9166666667 | AK9: 1 | AL9: 0.75 | AM9: 1 | AN9: 0.6666666667 | AO9: 0.3333333333 | AP9: 0.1666666667 | AQ9: 1 | AR9: 1 | AS9: 1 | AT9: 0.9166666667 | AU9: 1 | AV9: 0.75 | AW9: 1 | AX9: 0.6666666667 | AY9: 0.3333333333 | AZ9: 1 | BA9: 0.3333333333 | BB9: 0 | BC9: 0 | BD9: 0 | BE9: 0 | BF9: 1 | BG9: 1 | BH9: 1 | BI9: 0.6666666667 | BJ9: 1 | BK9: 1 | BL9: 1 | BM9: 0.6666666667 | BN9: 0.3333333333 | BO9: 1 | BP9: 1 | BQ9: 1 | BR9: 1 | BS9: 0.6666666667 | BT9: 0.3333333333 | BU9: 0.3333333333 | BV9: 1 | BW9: 1 | BX9: 1 | BY9: 1 | BZ9: 0.6666666667 | CA9: 0.3333333333 | CB9: 0.3333333333 | CC9: 0 | CD9: 1 | CE9: 1 | CF9: 1 | CG9: 1 | CH9: 1 | CI9: 0.6666666667 | CJ9: 0.3333333333 | CK9: 0.3333333333 | CL9: 0 | CM9: 0 | CN9: 0
A10: 5022 | B10: 0.5 | C10: 0.3333333333 | D10: 0.1666666667 | E10: 0.1666666667 | F10: 0 | G10: 0.08333333333 | H10: 0 | I10: 0.5 | J10: 0.5 | K10: 0.5 | L10: 0.5 | M10: 0.9166666667 | N10: 1 | O10: 1 | P10: 1 | Q10: 0.9166666667 | R10: 1 | S10: 1 | T10: 0.9166666667 | U10: 0.8333333333 | V10: 1 | W10: 0.8333333333 | X10: 0.75 | Y10: 1 | Z10: 1 | AA10: 0.9166666667 | AB10: 1 | AC10: 0.8333333333 | AD10: 0.8333333333 | AE10: 0.6666666667 | AF10: 0.5833333333 | AG10: 1 | AH10: 1 | AI10: 0.9166666667 | AJ10: 1 | AK10: 0.8333333333 | AL10: 0.8333333333 | AM10: 0.8333333333 | AN10: 0.6666666667 | AO10: 0.5833333333 | AP10: 0.3333333333 | AQ10: 1 | AR10: 1 | AS10: 0.9166666667 | AT10: 1 | AU10: 0.8333333333 | AV10: 0.8333333333 | AW10: 0.8333333333 | AX10: 0.6666666667 | AY10: 0.5833333333 | AZ10: 0 | BA10: 0 | BB10: 0 | BC10: 0 | BD10: 0 | BE10: 0 | BF10: 1 | BG10: 1 | BH10: 0.6666666667 | BI10: 1 | BJ10: 1 | BK10: 1 | BL10: 0.6666666667 | BM10: 1 | BN10: 0.6666666667 | BO10: 1 | BP10: 1 | BQ10: 0.6666666667 | BR10: 0.6666666667 | BS10: 1 | BT10: 0.6666666667 | BU10: 0.6666666667 | BV10: 1 | BW10: 1 | BX10: 0.6666666667 | BY10: 0.6666666667 | BZ10: 1 | CA10: 0.6666666667 | CB10: 0.6666666667 | CC10: 0 | CD10: 1 | CE10: 1 | CF10: 0.6666666667 | CG10: 0.6666666667 | CH10: 0.6666666667 | CI10: 1 | CJ10: 0.6666666667 | CK10: 0.6666666667 | CL10: 0 | CM10: 0 | CN10: 0
A11: 5013 | B11: 0.5 | C11: 0.25 | D11: 0.08333333333 | E11: 0.1666666667 | F11: 0 | G11: 0.04166666667 | H11: 0.08333333333 | I11: 0.5 | J11: 0.5 | K11: 0.5 | L11: 0.5 | M11: 1 | N11: 0.9166666667 | O11: 0.9583333333 | P11: 1 | Q11: 0.9583333333 | R11: 1 | S11: 0.9583333333 | T11: 0.9166666667 | U11: 0.9166666667 | V11: 0.8333333333 | W11: 0.875 | X11: 1 | Y11: 1 | Z11: 0.9583333333 | AA11: 0.9166666667 | AB11: 0.8333333333 | AC11: 0.875 | AD11: 0.75 | AE11: 0.75 | AF11: 0.8333333333 | AG11: 1 | AH11: 0.9583333333 | AI11: 0.9166666667 | AJ11: 0.8333333333 | AK11: 0.875 | AL11: 0.75 | AM11: 0.8333333333 | AN11: 0.625 | AO11: 0.6666666667 | AP11: 0.6666666667 | AQ11: 1 | AR11: 0.9583333333 | AS11: 0.9166666667 | AT11: 0.8333333333 | AU11: 0.875 | AV11: 0.75 | AW11: 0.8333333333 | AX11: 0.625 | AY11: 0.6666666667 | AZ11: 0 | BA11: 0 | BB11: 0 | BC11: 0 | BD11: 0 | BE11: 0 | BF11: 1 | BG11: 0.8333333333 | BH11: 1 | BI11: 1 | BJ11: 1 | BK11: 0.8333333333 | BL11: 0.8333333333 | BM11: 0.6666666667 | BN11: 1 | BO11: 1 | BP11: 0.8333333333 | BQ11: 0.8333333333 | BR11: 0.6666666667 | BS11: 0.6666666667 | BT11: 0.6666666667 | BU11: 0.3333333333 | BV11: 1 | BW11: 0.8333333333 | BX11: 0.8333333333 | BY11: 0.6666666667 | BZ11: 0.6666666667 | CA11: 0.6666666667 | CB11: 0.3333333333 | CC11: 0.6666666667 | CD11: 1 | CE11: 0.8333333333 | CF11: 0.8333333333 | CG11: 0.6666666667 | CH11: 0.6666666667 | CI11: 0.6666666667 | CJ11: 0.6666666667 | CK11: 0.3333333333 | CL11: 0.6666666667 | CM11: 0.3333333333 | CN11: 0
A12: 5004 | B12: 0.25 | C12: =probwin($A12,C$1) -> 0.08333333333 | D12: 0 | E12: 0.08333333333 | F12: 0 | G12: 0 | H12: 0.08333333333 | I12: 0.5 | J12: 0.5 | K12: 0.5 | L12: 0.5 | M12: 1 | N12: 1 | O12: 0.9166666667 | P12: 0.9166666667 | Q12: 1 | R12: 0.9166666667 | S12: 0.8333333333 | T12: 0.9166666667 | U12: 1 | V12: 0.8333333333 | W12: 1 | X12: 1 | Y12: 0.9166666667 | Z12: 0.8333333333 | AA12: 0.8333333333 | AB12: 0.6666666667 | AC12: 0.9166666667 | AD12: 0.8333333333 | AE12: 1 | AF12: 1 | AG12: 0.9166666667 | AH12: 0.8333333333 | AI12: 0.8333333333 | AJ12: 0.6666666667 | AK12: 0.8333333333 | AL12: 0.6666666667 | AM12: 0.8333333333 | AN12: 0.8333333333 | AO12: 0.8333333333 | AP12: 1 | AQ12: 0.9166666667 | AR12: 0.8333333333 | AS12: 0.8333333333 | AT12: 0.6666666667 | AU12: 0.8333333333 | AV12: 0.6666666667 | AW12: 0.75 | AX12: 0.6666666667 | AY12: 0.6666666667 | AZ12: 0 | BA12: 0 | BB12: 0 | BC12: 0 | BD12: 0 | BE12: 0 | BF12: 0.6666666667 | BG12: 1 | BH12: 1 | BI12: 1 | BJ12: 0.6666666667 | BK12: 0.6666666667 | BL12: 1 | BM12: 1 | BN12: 1 | BO12: 0.6666666667 | BP12: 0.6666666667 | BQ12: 0.6666666667 | BR12: 1 | BS12: 0.6666666667 | BT12: 0.6666666667 | BU12: 1 | BV12: 0.6666666667 | BW12: 0.6666666667 | BX12: 0.6666666667 | BY12: 0.6666666667 | BZ12: 0.6666666667 | CA12: 0.6666666667 | CB12: 1 | CC12: 1 | CD12: 0.6666666667 | CE12: 0.6666666667 | CF12: 0.6666666667 | CG12: 0.6666666667 | CH12: 0.3333333333 | CI12: 0.6666666667 | CJ12: 0.6666666667 | CK12: 0.6666666667 | CL12: 0.6666666667 | CM12: 1 | CN12: 0.1051247457
A13: 4122 | B13: 1 | C13: 0.8333333333 | D13: 0.6666666667 | E13: 0.3333333333 | F13: 0.5 | G13: 0.25 | H13: 0 | I13: 0.1666666667 | J13: 0.08333333333 | K13: 0 | L13: 0 | M13: 0.5 | N13: 0.5 | O13: 0.5 | P13: 0.5 | Q13: 0.5 | R13: 1 | S13: 1 | T13: 1 | U13: 1 | V13: 1 | W13: 0.9166666667 | X13: 0.75 | Y13: 1 | Z13: 1 | AA13: 1 | AB13: 1 | AC13: 1 | AD13: 0.9166666667 | AE13: 0.8333333333 | AF13: 0.5833333333 | AG13: 1 | AH13: 1 | AI13: 1 | AJ13: 1 | AK13: 1 | AL13: 0.9166666667 | AM13: 1 | AN13: 0.8333333333 | AO13: 0.5833333333 | AP13: 0.3333333333 | AQ13: 1 | AR13: 1 | AS13: 1 | AT13: 1 | AU13: 1 | AV13: 0.9166666667 | AW13: 1 | AX13: 0.8333333333 | AY13: 0.5833333333 | AZ13: 1 | BA13: 0.6666666667 | BB13: 0 | BC13: 0.3333333333 | BD13: 0 | BE13: 0 | BF13: 0 | BG13: 0 | BH13: 0 | BI13: 0 | BJ13: 1 | BK13: 1 | BL13: 1 | BM13: 1 | BN13: 0.6666666667 | BO13: 1 | BP13: 1 | BQ13: 1 | BR13: 1 | BS13: 1 | BT13: 0.6666666667 | BU13: 0.6666666667 | BV13: 1 | BW13: 1 | BX13: 1 | BY13: 1 | BZ13: 1 | CA13: 0.6666666667 | CB13: 0.6666666667 | CC13: 0 | CD13: 1 | CE13: 1 | CF13: 1 | CG13: 1 | CH13: 1 | CI13: 1 | CJ13: 0.6666666667 | CK13: 0.6666666667 | CL13: 0 | CM13: 0 | CN13: 0.03547960507
A14: 4113 | B14: 1 | C14: 0.6666666667 | D14: 0.4166666667 | E14: 0.3333333333 | F14: 0.25 | G14: 0.1666666667 | H14: 0.1666666667 | I14: 0.08333333333 | J14: 0 | K14: 0.08333333333 | L14: 0 | M14: 0.5 | N14: 0.5 | O14: 0.5 | P14: 0.5 | Q14: 0.5 | R14: 1 | S14: 1 | T14: 1 | U14: 1 | V14: 0.9166666667 | W14: 0.9166666667 | X14: 1 | Y14: 1 | Z14: 1 | AA14: 1 | AB14: 0.9166666667 | AC14: 1 | AD14: 0.8333333333 | AE14: 0.8333333333 | AF14: 0.8333333333 | AG14: 1 | AH14: 1 | AI14: 1 | AJ14: 0.9166666667 | AK14: 1 | AL14: 0.8333333333 | AM14: 1 | AN14: 0.75 | AO14: 0.6666666667 | AP14: 0.6666666667 | AQ14: 1 | AR14: 1 | AS14: 1 | AT14: 0.9166666667 | AU14: 1 | AV14: 0.8333333333 | AW14: 1 | AX14: 0.75 | AY14: 0.6666666667 | AZ14: 1 | BA14: 0.3333333333 | BB14: 0.3333333333 | BC14: 0 | BD14: 0 | BE14: 0 | BF14: 0 | BG14: 0 | BH14: 0 | BI14: 0 | BJ14: 1 | BK14: 1 | BL14: 1 | BM14: 0.6666666667 | BN14: 1 | BO14: 1 | BP14: 1 | BQ14: 1 | BR14: 1 | BS14: 0.6666666667 | BT14: 0.6666666667 | BU14: 0.3333333333 | BV14: 1 | BW14: 1 | BX14: 1 | BY14: 1 | BZ14: 0.6666666667 | CA14: 0.6666666667 | CB14: 0.3333333333 | CC14: 0.6666666667 | CD14: 1 | CE14: 1 | CF14: 1 | CG14: 1 | CH14: 1 | CI14: 0.6666666667 | CJ14: 0.6666666667 | CK14: 0.3333333333 | CL14: 0.6666666667 | CM14: 0.3333333333 | CN14: 0.04993425269
A15: 4014 | B15: 0.5 | C15: 0.25 | D15: 0.08333333333 | E15: 0.1666666667 | F15: 0 | G15: 0.04166666667 | H15: 0.1666666667 | I15: 0 | J15: 0 | K15: 0.04166666667 | L15: 0.08333333333 | M15: 0.5 | N15: 0.5 | O15: 0.5 | P15: 0.5 | Q15: 0.5 | R15: 1 | S15: 0.9583333333 | T15: 0.9583333333 | U15: 1 | V15: 0.9166666667 | W15: 1 | X15: 1 | Y15: 1 | Z15: 0.9583333333 | AA15: 0.9166666667 | AB15: 0.8333333333 | AC15: 0.9583333333 | AD15: 0.875 | AE15: 1 | AF15: 1 | AG15: 1 | AH15: 0.9583333333 | AI15: 0.9166666667 | AJ15: 0.8333333333 | AK15: 0.9166666667 | AL15: 0.75 | AM15: 0.9166666667 | AN15: 0.875 | AO15: 0.8333333333 | AP15: 1 | AQ15: 1 | AR15: 0.9583333333 | AS15: 0.9166666667 | AT15: 0.8333333333 | AU15: 0.9166666667 | AV15: 0.75 | AW15: 0.875 | AX15: 0.75 | AY15: 0.6666666667 | AZ15: 0 | BA15: 0 | BB15: 0 | BC15: 0 | BD15: 0 | BE15: 0 | BF15: 0 | BG15: 0 | BH15: 0 | BI15: 0 | BJ15: 1 | BK15: 0.8333333333 | BL15: 1 | BM15: 1 | BN15: 1 | BO15: 1 | BP15: 0.8333333333 | BQ15: 0.8333333333 | BR15: 1 | BS15: =Dprobwin($A15,BS$1) -> 0.6666666667 | BT15: 0.6666666667 | BU15: 1 | BV15: 1 | BW15: 0.8333333333 | BX15: 0.8333333333 | BY15: 0.8333333333 | BZ15: 0.6666666667 | CA15: 0.6666666667 | CB15: 1 | CC15: 1 | CD15: 1 | CE15: 0.8333333333 | CF15: 0.8333333333 | CG15: 0.8333333333 | CH15: 0.6666666667 | CI15: 0.6666666667 | CJ15: 0.6666666667 | CK15: 0.6666666667 | CL15: 0.6666666667 | CM15: 1 | CN15: 0
A16: 4005 | B16: 0.25 | C16: =probwin($A16,C$1) -> 0.08333333333 | D16: 0 | E16: 0.08333333333 | F16: 0 | G16: 0 | H16: 0.08333333333 | I16: 0 | J16: 0 | K16: 0 | L16: 0.08333333333 | M16: 0.5 | N16: 0.5 | O16: 0.5 | P16: 0.5 | Q16: 0.5 | R16: 0.9166666667 | S16: 0.9166666667 | T16: 1 | U16: 1 | V16: 1 | W16: 1 | X16: 1 | Y16: 0.9166666667 | Z16: 0.8333333333 | AA16: 0.9166666667 | AB16: 0.8333333333 | AC16: 1 | AD16: 1 | AE16: 1 | AF16: 1 | AG16: 0.9166666667 | AH16: 0.8333333333 | AI16: 0.8333333333 | AJ16: 0.6666666667 | AK16: 0.9166666667 | AL16: 0.8333333333 | AM16: 1 | AN16: 1 | AO16: 1 | AP16: 1 | AQ16: 0.9166666667 | AR16: 0.8333333333 | AS16: 0.8333333333 | AT16: 0.6666666667 | AU16: 0.8333333333 | AV16: 0.6666666667 | AW16: 0.9166666667 | AX16: 0.8333333333 | AY16: 0.8333333333 | AZ16: 0 | BA16: 0 | BB16: 0 | BC16: 0 | BD16: 0 | BE16: 0 | BF16: 0 | BG16: 0 | BH16: 0 | BI16: 0 | BJ16: 0.6666666667 | BK16: 1 | BL16: 1 | BM16: 1 | BN16: 1 | BO16: 0.6666666667 | BP16: 0.6666666667 | BQ16: 1 | BR16: 1 | BS16: 0.6666666667 | BT16: 1 | BU16: 1 | BV16: 0.6666666667 | BW16: 0.6666666667 | BX16: 0.6666666667 | BY16: 1 | BZ16: 0.6666666667 | CA16: 1 | CB16: 1 | CC16: 1 | CD16: 0.6666666667 | CE16: 0.6666666667 | CF16: 0.6666666667 | CG16: 0.6666666667 | CH16: 1 | CI16: 0.6666666667 | CJ16: 0.6666666667 | CK16: 1 | CL16: 1 | CM16: 1 | CN16: 0
A17: 4023 | B17: 0.5 | C17: 0.3333333333 | D17: 0.1666666667 | E17: 0.25 | F17: 0 | G17: 0.125 | H17: 0.08333333333 | I17: 0 | J17: 0.08333333333 | K17: 0.04166666667 | L17: 0 | M17: 0.5 | N17: 0.5 | O17: 0.5 | P17: 0.5 | Q17: 0.5 | R17: 1 | S17: 1 | T17: 0.9583333333 | U17: 0.9166666667 | V17: 1 | W17: 0.9583333333 | X17: 1 | Y17: 1 | Z17: 1 | AA17: 0.9583333333 | AB17: 1 | AC17: 0.875 | AD17: 0.9166666667 | AE17: 0.8333333333 | AF17: 0.9166666667 | AG17: 1 | AH17: 1 | AI17: 0.9583333333 | AJ17: 1 | AK17: 0.875 | AL17: 0.9166666667 | AM17: 0.8333333333 | AN17: 0.75 | AO17: 0.8333333333 | AP17: 0.75 | AQ17: 1 | AR17: 1 | AS17: 0.9583333333 | AT17: 1 | AU17: 0.875 | AV17: 0.9166666667 | AW17: 0.8333333333 | AX17: 0.75 | AY17: 0.8333333333 | AZ17: 0 | BA17: 0 | BB17: 0 | BC17: 0 | BD17: 0 | BE17: 0 | BF17: 0 | BG17: 0 | BH17: 0 | BI17: 0 | BJ17: 1 | BK17: 1 | BL17: 0.8333333333 | BM17: 1 | BN17: 1 | BO17: 1 | BP17: 1 | BQ17: 0.8333333333 | BR17: 0.6666666667 | BS17: 1 | BT17: 0.8333333333 | BU17: 0.6666666667 | BV17: 1 | BW17: 1 | BX17: 0.8333333333 | BY17: 0.6666666667 | BZ17: 1 | CA17: 0.8333333333 | CB17: 0.6666666667 | CC17: 0.6666666667 | CD17: 1 | CE17: 1 | CF17: 0.8333333333 | CG17: 0.6666666667 | CH17: 0.6666666667 | CI17: 1 | CJ17: 0.8333333333 | CK17: 0.6666666667 | CL17: 0.6666666667 | CM17: 0.3333333333 | CN17: 0
A18: 3006 | B18: 0.25 | C18: 0.08333333333 | D18: 0 | E18: 0.08333333333 | F18: 0 | G18: 0 | H18: 0.08333333333 | I18: 0 | J18: 0 | K18: 0 | L18: 0.08333333333 | M18: 0 | N18: 0 | O18: 0 | P18: 0.08333333333 | Q18: 0 | R18: 0.5 | S18: 0.5 | T18: 0.5 | U18: 0.5 | V18: 0.5 | W18: 0.5 | X18: 0.5 | Y18: 0.9166666667 | Z18: 0.9166666667 | AA18: 1 | AB18: 1 | AC18: 1 | AD18: 1 | AE18: 1 | AF18: 1 | AG18: 0.9166666667 | AH18: 0.8333333333 | AI18: 0.9166666667 | AJ18: 0.8333333333 | AK18: 1 | AL18: 1 | AM18: 1 | AN18: 1 | AO18: 1 | AP18: 1 | AQ18: 0.9166666667 | AR18: 0.8333333333 | AS18: 0.8333333333 | AT18: 0.6666666667 | AU18: 0.9166666667 | AV18: 0.8333333333 | AW18: 1 | AX18: 1 | AY18: 1 | AZ18: 0 | BA18: 0 | BB18: 0 | BC18: 0 | BD18: 0 | BE18: 0 | BF18: 0 | BG18: 0 | BH18: 0 | BI18: 0 | BJ18: 0 | BK18: 0 | BL18: 0 | BM18: 0 | BN18: 0 | BO18: 0.6666666667 | BP18: 1 | BQ18: 1 | BR18: 1 | BS18: 1 | BT18: 1 | BU18: 1 | BV18: 0.6666666667 | BW18: 0.6666666667 | BX18: 1 | BY18: 1 | BZ18: 1 | CA18: 1 | CB18: 1 | CC18: 1 | CD18: 0.6666666667 | CE18: 0.6666666667 | CF18: 0.6666666667 | CG18: 1 | CH18: 1 | CI18: 0.6666666667 | CJ18: 1 | CK18: 1 | CL18: 1 | CM18: 1 | CN18: 0
A19: 3015 | B19: 0.5 | C19: 0.25 | D19: 0.08333333333 | E19: 0.1666666667 | F19: 0 | G19: 0.04166666667 | H19: 0.1666666667 | I19: 0 | J19: 0 | K19: 0.04166666667 | L19: 0.1666666667 | M19: 0 | N19: 0 | O19: 0.04166666667 | P19: 0.08333333333 | Q19: 0 | R19: 0.5 | S19: 0.5 | T19: 0.5 | U19: 0.5 | V19: 0.5 | W19: 0.5 | X19: 0.5 | Y19: 1 | Z19: 0.9583333333 | AA19: 0.9583333333 | AB19: 0.9166666667 | AC19: 1 | AD19: 1 | AE19: 1 | AF19: 1 | AG19: 1 | AH19: 0.9583333333 | AI19: 0.9166666667 | AJ19: 0.8333333333 | AK19: 0.9583333333 | AL19: 0.875 | AM19: 1 | AN19: 1 | AO19: 1 | AP19: 1 | AQ19: 1 | AR19: 0.9583333333 | AS19: 0.9166666667 | AT19: 0.8333333333 | AU19: 0.9166666667 | AV19: 0.75 | AW19: 0.9583333333 | AX19: 0.875 | AY19: 0.8333333333 | AZ19: 0 | BA19: 0 | BB19: 0 | BC19: 0 | BD19: 0 | BE19: 0 | BF19: 0 | BG19: 0 | BH19: 0 | BI19: 0 | BJ19: 0 | BK19: 0 | BL19: 0 | BM19: 0 | BN19: 0 | BO19: 1 | BP19: 0.8333333333 | BQ19: 1 | BR19: 1 | BS19: 0.6666666667 | BT19: 1 | BU19: 1 | BV19: 1 | BW19: 0.8333333333 | BX19: 0.8333333333 | BY19: 1 | BZ19: 0.6666666667 | CA19: 1 | CB19: 1 | CC19: 1 | CD19: 1 | CE19: 0.8333333333 | CF19: 0.8333333333 | CG19: 0.8333333333 | CH19: 1 | CI19: 0.6666666667 | CJ19: 0.6666666667 | CK19: 1 | CL19: 1 | CM19: 1 | CN19: 0
A20: 3024 | B20: 0.5 | C20: =probwin($A20,C$1) -> 0.3333333333 | D20: 0.1666666667 | E20: 0.25 | F20: 0 | G20: 0.125 | H20: 0.1666666667 | I20: 0 | J20: 0.08333333333 | K20: 0.08333333333 | L20: 0.08333333333 | M20: 0 | N20: 0 | O20: 0.04166666667 | P20: 0 | Q20: 0.04166666667 | R20: 0.5 | S20: 0.5 | T20: 0.5 | U20: 0.5 | V20: 0.5 | W20: 0.5 | X20: 0.5 | Y20: 1 | Z20: 1 | AA20: 0.9583333333 | AB20: 1 | AC20: 0.9583333333 | AD20: 0.9583333333 | AE20: 1 | AF20: 1 | AG20: 1 | AH20: 1 | AI20: 0.9583333333 | AJ20: 1 | AK20: 0.9166666667 | AL20: 0.9166666667 | AM20: 0.9166666667 | AN20: 0.9166666667 | AO20: 0.9166666667 | AP20: 1 | AQ20: 1 | AR20: 1 | AS20: 0.9583333333 | AT20: 1 | AU20: 0.9166666667 | AV20: 0.9166666667 | AW20: 0.875 | AX20: 0.8333333333 | AY20: 0.8333333333 | AZ20: 0 | BA20: 0 | BB20: 0 | BC20: 0 | BD20: 0 | BE20: 0 | BF20: 0 | BG20: 0 | BH20: 0 | BI20: 0 | BJ20: 0 | BK20: 0 | BL20: 0 | BM20: 0 | BN20: 0 | BO20: 1 | BP20: 1 | BQ20: 0.8333333333 | BR20: 1 | BS20: 1 | BT20: 0.8333333333 | BU20: 1 | BV20: 1 | BW20: 1 | BX20: 0.8333333333 | BY20: 0.8333333333 | BZ20: 1 | CA20: 0.8333333333 | CB20: 1 | CC20: 1 | CD20: 1 | CE20: 1 | CF20: 0.8333333333 | CG20: 0.8333333333 | CH20: 0.6666666667 | CI20: 1 | CJ20: 0.8333333333 | CK20: 0.8333333333 | CL20: 0.6666666667 | CM20: 1 | CN20: 0
A21: 3033 | B21: 0.5 | C21: 0.3333333333 | D21: 0.1666666667 | E21: 0.3333333333 | F21: 0 | G21: 0.1666666667 | H21: 0.1666666667 | I21: 0 | J21: 0.1666666667 | K21: 0.08333333333 | L21: 0 | M21: 0 | N21: 0 | O21: 0 | P21: 0 | Q21: 0.08333333333 | R21: 0.5 | S21: 0.5 | T21: 0.5 | U21: 0.5 | V21: 0.5 | W21: 0.5 | X21: 0.5 | Y21: 1 | Z21: 1 | AA21: 1 | AB21: 1 | AC21: 0.9166666667 | AD21: 1 | AE21: 0.9166666667 | AF21: 1 | AG21: 1 | AH21: 1 | AI21: 1 | AJ21: 1 | AK21: 0.9166666667 | AL21: 1 | AM21: 0.8333333333 | AN21: 0.8333333333 | AO21: 1 | AP21: 0.9166666667 | AQ21: 1 | AR21: 1 | AS21: 1 | AT21: 1 | AU21: 0.9166666667 | AV21: 1 | AW21: 0.8333333333 | AX21: 0.8333333333 | AY21: 1 | AZ21: 0 | BA21: 0 | BB21: 0 | BC21: 0 | BD21: 0 | BE21: 0 | BF21: 0 | BG21: 0 | BH21: 0 | BI21: 0 | BJ21: 0 | BK21: 0 | BL21: 0 | BM21: 0 | BN21: 0 | BO21: 1 | BP21: 1 | BQ21: 1 | BR21: 0.6666666667 | BS21: 1 | BT21: 1 | BU21: 0.6666666667 | BV21: 1 | BW21: 1 | BX21: 1 | BY21: 0.6666666667 | BZ21: 1 | CA21: 1 | CB21: 0.6666666667 | CC21: 1 | CD21: 1 | CE21: 1 | CF21: 1 | CG21: 0.6666666667 | CH21: 0.6666666667 | CI21: 1 | CJ21: 1 | CK21: 0.6666666667 | CL21: 1 | CM21: 0.6666666667 | CN21: 0
A22: 3114 | B22: 1 | C22: 0.6666666667 | D22: 0.4166666667 | E22: 0.3333333333 | F22: 0.25 | G22: 0.1666666667 | H22: 0.3333333333 | I22: 0.08333333333 | J22: 0 | K22: 0.1666666667 | L22: 0.1666666667 | M22: 0 | N22: 0.08333333333 | O22: 0.08333333333 | P22: 0 | Q22: 0 | R22: 0.5 | S22: 0.5 | T22: 0.5 | U22: 0.5 | V22: 0.5 | W22: 0.5 | X22: 0.5 | Y22: 1 | Z22: 1 | AA22: 1 | AB22: 0.9166666667 | AC22: 1 | AD22: 0.9166666667 | AE22: 1 | AF22: 1 | AG22: 1 | AH22: 1 | AI22: 1 | AJ22: 0.9166666667 | AK22: 1 | AL22: 0.8333333333 | AM22: 1 | AN22: 0.9166666667 | AO22: 0.8333333333 | AP22: 1 | AQ22: 1 | AR22: 1 | AS22: 1 | AT22: 0.9166666667 | AU22: 1 | AV22: 0.8333333333 | AW22: 1 | AX22: 0.8333333333 | AY22: 0.6666666667 | AZ22: 1 | BA22: =Dprobwin($A22,BA$1) -> 0.3333333333 | BB22: 0.3333333333 | BC22: 0 | BD22: 0.3333333333 | BE22: 0 | BF22: 0 | BG22: 0 | BH22: 0 | BI22: 0 | BJ22: 0 | BK22: 0 | BL22: 0 | BM22: 0 | BN22: 0 | BO22: 1 | BP22: 1 | BQ22: 1 | BR22: 1 | BS22: 0.6666666667 | BT22: 0.6666666667 | BU22: 1 | BV22: 1 | BW22: 1 | BX22: 1 | BY22: 1 | BZ22: 0.6666666667 | CA22: 0.6666666667 | CB22: 1 | CC22: 1 | CD22: 1 | CE22: 1 | CF22: 1 | CG22: 1 | CH22: 1 | CI22: 0.6666666667 | CJ22: 0.6666666667 | CK22: 0.6666666667 | CL22: 0.6666666667 | CM22: 1 | CN22: 0.1090669207
A23: 3123 | B23: 1 | C23: 0.8333333333 | D23: 0.6666666667 | E23: 0.5 | F23: 0.5 | G23: 0.375 | H23: 0.1666666667 | I23: 0.25 | J23: 0.1666666667 | K23: 0.125 | L23: 0 | M23: 0.08333333333 | N23: 0.08333333333 | O23: 0 | P23: 0 | Q23: 0.04166666667 | R23: 0.5 | S23: 0.5 | T23: 0.5 | U23: 0.5 | V23: 0.5 | W23: 0.5 | X23: 0.5 | Y23: 1 | Z23: 1 | AA23: 1 | AB23: 1 | AC23: 1 | AD23: 0.9583333333 | AE23: 0.9166666667 | AF23: 0.9166666667 | AG23: 1 | AH23: 1 | AI23: 1 | AJ23: 1 | AK23: 1 | AL23: 0.9583333333 | AM23: 1 | AN23: 0.875 | AO23: 0.8333333333 | AP23: 0.75 | AQ23: 1 | AR23: 1 | AS23: 1 | AT23: 1 | AU23: 1 | AV23: 0.9583333333 | AW23: 1 | AX23: 0.875 | AY23: 0.8333333333 | AZ23: 1 | BA23: 0.6666666667 | BB23: 0.3333333333 | BC23: 0.3333333333 | BD23: 0 | BE23: 0.1666666667 | BF23: 0 | BG23: 0 | BH23: 0 | BI23: 0 | BJ23: 0 | BK23: 0 | BL23: 0 | BM23: 0 | BN23: 0 | BO23: 1 | BP23: 1 | BQ23: 1 | BR23: 1 | BS23: 1 | BT23: 0.8333333333 | BU23: 0.6666666667 | BV23: 1 | BW23: 1 | BX23: 1 | BY23: 1 | BZ23: 1 | CA23: 0.8333333333 | CB23: 0.6666666667 | CC23: 0.6666666667 | CD23: 1 | CE23: 1 | CF23: 1 | CG23: 1 | CH23: 1 | CI23: 1 | CJ23: 0.8333333333 | CK23: 0.6666666667 | CL23: 0.6666666667 | CM23: 0.3333333333 | CN23: 0.05650455378
A24: 3222 | B24: 1 | C24: =probwin($A24,C$1) -> 1 | D24: 1 | E24: 0.5 | F24: 1 | G24: 0.5 | H24: 0 | I24: 0.5 | J24: 0.25 | K24: 0 | L24: 0 | M24: 0.25 | N24: 0 | O24: 0 | P24: 0 | Q24: 0 | R24: 0.5 | S24: 0.5 | T24: 0.5 | U24: 0.5 | V24: 0.5 | W24: 0.5 | X24: 0.5 | Y24: 1 | Z24: 1 | AA24: 1 | AB24: 1 | AC24: 1 | AD24: 1 | AE24: 1 | AF24: 0.75 | AG24: 1 | AH24: 1 | AI24: 1 | AJ24: 1 | AK24: 1 | AL24: 1 | AM24: 1 | AN24: 1 | AO24: 0.75 | AP24: 0.5 | AQ24: 1 | AR24: 1 | AS24: 1 | AT24: 1 | AU24: 1 | AV24: 1 | AW24: 1 | AX24: 1 | AY24: 0.75 | AZ24: 1 | BA24: 1 | BB24: 0 | BC24: 1 | BD24: 0 | BE24: 0 | BF24: 0 | BG24: 0 | BH24: 0 | BI24: 0 | BJ24: 0 | BK24: 0 | BL24: 0 | BM24: 0 | BN24: 0 | BO24: 1 | BP24: 1 | BQ24: 1 | BR24: 1 | BS24: 1 | BT24: 1 | BU24: 1 | BV24: 1 | BW24: 1 | BX24: 1 | BY24: 1 | BZ24: 1 | CA24: 1 | CB24: 1 | CC24: 0 | CD24: 1 | CE24: 1 | CF24: 1 | CG24: 1 | CH24: 1 | CI24: 1 | CJ24: 1 | CK24: 1 | CL24: 0 | CM24: 0 | CN24: 0
A25: 2007 | B25: 0.25 | C25: 0.08333333333 | D25: 0 | E25: 0.08333333333 | F25: 0 | G25: 0 | H25: 0.08333333333 | I25: 0 | J25: 0 | K25: 0 | L25: 0.08333333333 | M25: 0 | N25: 0 | O25: 0 | P25: 0.08333333333 | Q25: 0 | R25: 0.08333333333 | S25: 0 | T25: 0 | U25: 0 | V25: 0 | W25: 0 | X25: 0 | Y25: 0.5 | Z25: 0.5 | AA25: 0.5 | AB25: 0.5 | AC25: 0.5 | AD25: 0.5 | AE25: 0.5 | AF25: 0.5 | AG25: 0.9166666667 | AH25: 0.9166666667 | AI25: 1 | AJ25: 1 | AK25: 1 | AL25: 1 | AM25: 1 | AN25: 1 | AO25: 1 | AP25: 1 | AQ25: 0.9166666667 | AR25: 0.8333333333 | AS25: 0.9166666667 | AT25: 0.8333333333 | AU25: 1 | AV25: 1 | AW25: 1 | AX25: 1 | AY25: 1 | AZ25: 0 | BA25: 0 | BB25: 0 | BC25: 0 | BD25: 0 | BE25: 0 | BF25: 0 | BG25: 0 | BH25: 0 | BI25: 0 | BJ25: 0 | BK25: 0 | BL25: 0 | BM25: 0 | BN25: 0 | BO25: 0 | BP25: 0 | BQ25: 0 | BR25: 0 | BS25: 0 | BT25: 0 | BU25: 0 | BV25: 0.6666666667 | BW25: 1 | BX25: 1 | BY25: 1 | BZ25: 1 | CA25: 1 | CB25: 1 | CC25: 1 | CD25: 0.6666666667 | CE25: 0.6666666667 | CF25: 1 | CG25: 1 | CH25: 1 | CI25: 1 | CJ25: 1 | CK25: 1 | CL25: 1 | CM25: 1 | CN25: 0
A26: 2016 | B26: 0.5 | C26: 0.25 | D26: 0.08333333333 | E26: 0.1666666667 | F26: 0 | G26: 0.04166666667 | H26: 0.1666666667 | I26: 0 | J26: 0 | K26: 0.04166666667 | L26: 0.1666666667 | M26: 0 | N26: 0 | O26: 0.04166666667 | P26: 0.1666666667 | Q26: 0 | R26: 0.08333333333 | S26: 0.04166666667 | T26: 0 | U26: 0 | V26: 0 | W26: 0 | X26: 0 | Y26: 0.5 | Z26: 0.5 | AA26: 0.5 | AB26: 0.5 | AC26: 0.5 | AD26: 0.5 | AE26: 0.5 | AF26: 0.5 | AG26: 1 | AH26: 0.9583333333 | AI26: 0.9583333333 | AJ26: 0.9166666667 | AK26: 1 | AL26: 1 | AM26: 1 | AN26: 1 | AO26: 1 | AP26: 1 | AQ26: 1 | AR26: 0.9583333333 | AS26: 0.9166666667 | AT26: 0.8333333333 | AU26: 0.9583333333 | AV26: 0.875 | AW26: 1 | AX26: 1 | AY26: 1 | AZ26: 0 | BA26: 0 | BB26: 0 | BC26: 0 | BD26: 0 | BE26: 0 | BF26: 0 | BG26: 0 | BH26: 0 | BI26: 0 | BJ26: 0 | BK26: 0 | BL26: 0 | BM26: 0 | BN26: 0 | BO26: 0 | BP26: 0 | BQ26: 0 | BR26: 0 | BS26: 0 | BT26: 0 | BU26: 0 | BV26: 1 | BW26: 0.8333333333 | BX26: 1 | BY26: 1 | BZ26: 1 | CA26: 1 | CB26: 1 | CC26: 1 | CD26: 1 | CE26: 0.8333333333 | CF26: 0.8333333333 | CG26: 1 | CH26: 1 | CI26: 0.6666666667 | CJ26: 1 | CK26: 1 | CL26: 1 | CM26: 1 | CN26: 0
A27: 2025 | B27: 0.5 | C27: 0.3333333333 | D27: 0.1666666667 | E27: 0.25 | F27: 0 | G27: 0.125 | H27: 0.1666666667 | I27: 0 | J27: 0.08333333333 | K27: 0.08333333333 | L27: 0.1666666667 | M27: 0 | N27: 0 | O27: 0.08333333333 | P27: 0.08333333333 | Q27: 0.04166666667 | R27: 0 | S27: 0.04166666667 | T27: 0.04166666667 | U27: 0 | V27: 0 | W27: 0 | X27: 0 | Y27: 0.5 | Z27: 0.5 | AA27: 0.5 | AB27: 0.5 | AC27: 0.5 | AD27: 0.5 | AE27: 0.5 | AF27: 0.5 | AG27: 1 | AH27: 1 | AI27: 0.9583333333 | AJ27: 1 | AK27: 0.9583333333 | AL27: 0.9583333333 | AM27: 1 | AN27: 1 | AO27: 1 | AP27: 1 | AQ27: 1 | AR27: 1 | AS27: 0.9583333333 | AT27: 1 | AU27: 0.9166666667 | AV27: 0.9166666667 | AW27: 0.9583333333 | AX27: 0.9166666667 | AY27: 0.9166666667 | AZ27: 0 | BA27: 0 | BB27: 0 | BC27: 0 | BD27: 0 | BE27: 0 | BF27: 0 | BG27: 0 | BH27: 0 | BI27: 0 | BJ27: 0 | BK27: 0 | BL27: 0 | BM27: 0 | BN27: 0 | BO27: 0 | BP27: 0 | BQ27: 0 | BR27: 0 | BS27: 0 | BT27: 0 | BU27: 0 | BV27: 1 | BW27: 1 | BX27: 0.8333333333 | BY27: 1 | BZ27: 1 | CA27: 1 | CB27: 1 | CC27: 1 | CD27: 1 | CE27: 1 | CF27: 0.8333333333 | CG27: 0.8333333333 | CH27: 1 | CI27: 1 | CJ27: 0.8333333333 | CK27: 1 | CL27: 1 | CM27: 1 | CN27: 0
A28: 2115 | B28: 1 | C28: =probwin($A28,C$1) -> 0.6666666667 | D28: 0.4166666667 | E28: 0.3333333333 | F28: 0.25 | G28: 0.1666666667 | H28: 0.3333333333 | I28: 0.08333333333 | J28: 0 | K28: 0.1666666667 | L28: 0.3333333333 | M28: 0 | N28: 0.08333333333 | O28: 0.1666666667 | P28: 0.1666666667 | Q28: 0 | R28: 0 | S28: 0.08333333333 | T28: 0 | U28: 0 | V28: 0.08333333333 | W28: 0 | X28: 0 | Y28: 0.5 | Z28: 0.5 | AA28: 0.5 | AB28: 0.5 | AC28: 0.5 | AD28: 0.5 | AE28: 0.5 | AF28: 0.5 | AG28: 1 | AH28: 1 | AI28: 1 | AJ28: 0.9166666667 | AK28: 1 | AL28: 0.9166666667 | AM28: 1 | AN28: 1 | AO28: 1 | AP28: 1 | AQ28: 1 | AR28: 1 | AS28: 1 | AT28: 0.9166666667 | AU28: 1 | AV28: 0.8333333333 | AW28: 1 | AX28: 0.9166666667 | AY28: 0.8333333333 | AZ28: 1 | BA28: 0.3333333333 | BB28: 0.3333333333 | BC28: 0 | BD28: 0.3333333333 | BE28: 0 | BF28: 0.3333333333 | BG28: 0 | BH28: 0 | BI28: 0 | BJ28: 0 | BK28: 0 | BL28: 0 | BM28: 0 | BN28: 0 | BO28: 0 | BP28: 0 | BQ28: 0 | BR28: 0 | BS28: 0 | BT28: 0 | BU28: 0 | BV28: =Dprobwin($A28,BV$1) -> 1 | BW28: 1 | BX28: 1 | BY28: 1 | BZ28: 0.6666666667 | CA28: 1 | CB28: 1 | CC28: 1 | CD28: 1 | CE28: 1 | CF28: 1 | CG28: 1 | CH28: 1 | CI28: 0.6666666667 | CJ28: 0.6666666667 | CK28: 1 | CL28: 1 | CM28: 1 | CN28: 0
A29: 2034 | B29: 0.5 | C29: 0.3333333333 | D29: 0.1666666667 | E29: 0.3333333333 | F29: 0 | G29: 0.1666666667 | H29: 0.25 | I29: 0 | J29: 0.1666666667 | K29: 0.125 | L29: 0.08333333333 | M29: 0 | N29: 0 | O29: 0.04166666667 | P29: 0 | Q29: 0.125 | R29: 0 | S29: 0 | T29: 0.04166666667 | U29: 0.08333333333 | V29: 0 | W29: 0 | X29: 0 | Y29: 0.5 | Z29: 0.5 | AA29: 0.5 | AB29: 0.5 | AC29: 0.5 | AD29: 0.5 | AE29: 0.5 | AF29: 0.5 | AG29: 1 | AH29: 1 | AI29: 1 | AJ29: 1 | AK29: 0.9583333333 | AL29: 1 | AM29: 0.9166666667 | AN29: 0.9583333333 | AO29: 1 | AP29: 1 | AQ29: 1 | AR29: 1 | AS29: 1 | AT29: 1 | AU29: 0.9583333333 | AV29: 1 | AW29: 0.875 | AX29: 0.9166666667 | AY29: 1 | AZ29: 0 | BA29: 0 | BB29: 0 | BC29: 0 | BD29: 0 | BE29: 0 | BF29: 0 | BG29: 0 | BH29: 0 | BI29: 0 | BJ29: 0 | BK29: 0 | BL29: 0 | BM29: 0 | BN29: 0 | BO29: 0 | BP29: 0 | BQ29: 0 | BR29: 0 | BS29: 0 | BT29: 0 | BU29: 0 | BV29: 1 | BW29: 1 | BX29: 1 | BY29: 0.8333333333 | BZ29: 1 | CA29: 1 | CB29: 1 | CC29: 1 | CD29: 1 | CE29: 1 | CF29: 1 | CG29: 0.8333333333 | CH29: 0.6666666667 | CI29: 1 | CJ29: 1 | CK29: 0.8333333333 | CL29: 1 | CM29: 1 | CN29: 0
A30: 2124 | B30: 1 | C30: 0.8333333333 | D30: 0.6666666667 | E30: 0.5 | F30: 0.5 | G30: 0.375 | H30: 0.3333333333 | I30: 0.25 | J30: 0.1666666667 | K30: 0.25 | L30: 0.1666666667 | M30: 0.08333333333 | N30: 0.1666666667 | O30: 0.125 | P30: 0 | Q30: 0.08333333333 | R30: 0 | S30: 0 | T30: 0.04166666667 | U30: 0 | V30: 0.08333333333 | W30: 0.04166666667 | X30: 0 | Y30: 0.5 | Z30: 0.5 | AA30: 0.5 | AB30: 0.5 | AC30: 0.5 | AD30: 0.5 | AE30: 0.5 | AF30: 0.5 | AG30: 1 | AH30: 1 | AI30: 1 | AJ30: 1 | AK30: 1 | AL30: 0.9583333333 | AM30: 1 | AN30: 0.9583333333 | AO30: 0.9166666667 | AP30: 1 | AQ30: 1 | AR30: 1 | AS30: 1 | AT30: 1 | AU30: 1 | AV30: 0.9583333333 | AW30: 1 | AX30: 0.9166666667 | AY30: 0.8333333333 | AZ30: 1 | BA30: 0.6666666667 | BB30: 0.3333333333 | BC30: 0.3333333333 | BD30: 0.3333333333 | BE30: 0.1666666667 | BF30: 0 | BG30: 0.1666666667 | BH30: 0 | BI30: 0 | BJ30: 0 | BK30: 0 | BL30: 0 | BM30: 0 | BN30: 0 | BO30: 0 | BP30: 0 | BQ30: 0 | BR30: 0 | BS30: 0 | BT30: 0 | BU30: 0 | BV30: 1 | BW30: 1 | BX30: 1 | BY30: 1 | BZ30: 1 | CA30: 0.8333333333 | CB30: 1 | CC30: 1 | CD30: 1 | CE30: 1 | CF30: 1 | CG30: 1 | CH30: 1 | CI30: 1 | CJ30: 0.8333333333 | CK30: 0.8333333333 | CL30: 0.6666666667 | CM30: 1 | CN30: 0
A31: 2133 | B31: 1 | C31: 0.8333333333 | D31: 0.6666666667 | E31: 0.6666666667 | F31: 0.5 | G31: 0.5 | H31: 0.3333333333 | I31: 0.3333333333 | J31: 0.3333333333 | K31: 0.25 | L31: 0 | M31: 0.1666666667 | N31: 0.1666666667 | O31: 0 | P31: 0 | Q31: 0.1666666667 | R31: 0 | S31: 0 | T31: 0 | U31: 0.08333333333 | V31: 0 | W31: 0.08333333333 | X31: 0 | Y31: 0.5 | Z31: 0.5 | AA31: 0.5 | AB31: 0.5 | AC31: 0.5 | AD31: 0.5 | AE31: 0.5 | AF31: 0.5 | AG31: 1 | AH31: 1 | AI31: 1 | AJ31: 1 | AK31: 1 | AL31: 1 | AM31: 1 | AN31: 0.9166666667 | AO31: 1 | AP31: 0.9166666667 | AQ31: 1 | AR31: 1 | AS31: 1 | AT31: 1 | AU31: 1 | AV31: 1 | AW31: 1 | AX31: 0.9166666667 | AY31: 1 | AZ31: 1 | BA31: 0.6666666667 | BB31: 0.6666666667 | BC31: 0.3333333333 | BD31: 0 | BE31: 0.3333333333 | BF31: 0 | BG31: 0 | BH31: 0.3333333333 | BI31: 0 | BJ31: 0 | BK31: 0 | BL31: 0 | BM31: 0 | BN31: 0 | BO31: 0 | BP31: 0 | BQ31: 0 | BR31: 0 | BS31: 0 | BT31: 0 | BU31: 0 | BV31: 1 | BW31: 1 | BX31: 1 | BY31: 1 | BZ31: 1 | CA31: 1 | CB31: 0.6666666667 | CC31: 1 | CD31: 1 | CE31: 1 | CF31: 1 | CG31: 1 | CH31: 1 | CI31: 1 | CJ31: 1 | CK31: 0.6666666667 | CL31: 1 | CM31: 0.6666666667 | CN31: 0.01445465523
A32: 2223 | B32: 1 | C32: =probwin($A32,C$1) -> 1 | D32: 1 | E32: 0.6666666667 | F32: 1 | G32: 0.6666666667 | H32: 0.1666666667 | I32: 0.6666666667 | J32: 0.4166666667 | K32: 0.1666666667 | L32: 0 | M32: 0.4166666667 | N32: 0.1666666667 | O32: 0 | P32: 0 | Q32: 0.08333333333 | R32: 0 | S32: 0 | T32: 0 | U32: 0 | V32: 0 | W32: 0.08333333333 | X32: 0.25 | Y32: 0.5 | Z32: 0.5 | AA32: 0.5 | AB32: 0.5 | AC32: 0.5 | AD32: 0.5 | AE32: 0.5 | AF32: 0.5 | AG32: 1 | AH32: 1 | AI32: 1 | AJ32: 1 | AK32: 1 | AL32: 1 | AM32: 1 | AN32: 1 | AO32: 0.9166666667 | AP32: 0.8333333333 | AQ32: 1 | AR32: 1 | AS32: 1 | AT32: 1 | AU32: 1 | AV32: 1 | AW32: 1 | AX32: 1 | AY32: 0.9166666667 | AZ32: 1 | BA32: 1 | BB32: 0.3333333333 | BC32: 1 | BD32: 0 | BE32: 0.3333333333 | BF32: 0 | BG32: 0 | BH32: 0 | BI32: 0.3333333333 | BJ32: 0 | BK32: 0 | BL32: 0 | BM32: 0 | BN32: 0 | BO32: 0 | BP32: 0 | BQ32: 0 | BR32: 0 | BS32: 0 | BT32: 0 | BU32: 0 | BV32: 1 | BW32: 1 | BX32: 1 | BY32: 1 | BZ32: 1 | CA32: 1 | CB32: 1 | CC32: 0.6666666667 | CD32: 1 | CE32: 1 | CF32: 1 | CG32: 1 | CH32: 1 | CI32: 1 | CJ32: 1 | CK32: 1 | CL32: 0.6666666667 | CM32: 0.3333333333 | CN32: 0
A33: 1008 | B33: 0.25 | C33: 0.08333333333 | D33: 0 | E33: 0.08333333333 | F33: 0 | G33: 0 | H33: 0.08333333333 | I33: 0 | J33: 0 | K33: 0 | L33: 0.08333333333 | M33: 0 | N33: 0 | O33: 0 | P33: 0.08333333333 | Q33: 0 | R33: 0.08333333333 | S33: 0 | T33: 0 | U33: 0 | V33: 0 | W33: 0 | X33: 0 | Y33: 0.08333333333 | Z33: 0 | AA33: 0 | AB33: 0 | AC33: 0 | AD33: 0 | AE33: 0 | AF33: 0 | AG33: 0.5 | AH33: 0.5 | AI33: 0.5 | AJ33: 0.5 | AK33: 0.5 | AL33: 0.5 | AM33: 0.5 | AN33: 0.5 | AO33: 0.5 | AP33: 0.5 | AQ33: 0.9166666667 | AR33: 0.9166666667 | AS33: 1 | AT33: 1 | AU33: 1 | AV33: 1 | AW33: 1 | AX33: 1 | AY33: 1 | AZ33: 0 | BA33: 0 | BB33: 0 | BC33: 0 | BD33: 0 | BE33: 0 | BF33: 0 | BG33: 0 | BH33: 0 | BI33: 0 | BJ33: 0 | BK33: 0 | BL33: 0 | BM33: 0 | BN33: 0 | BO33: 0 | BP33: 0 | BQ33: 0 | BR33: 0 | BS33: 0 | BT33: 0 | BU33: 0 | BV33: 0 | BW33: 0 | BX33: 0 | BY33: 0 | BZ33: 0 | CA33: 0 | CB33: 0 | CC33: 0 | CD33: 0.6666666667 | CE33: 1 | CF33: 1 | CG33: 1 | CH33: 1 | CI33: 1 | CJ33: 1 | CK33: 1 | CL33: 1 | CM33: 1 | CN33: 0
A34: 1017 | B34: =probwin($A34,B$1) -> 0.5 | C34: 0.25 | D34: 0.08333333333 | E34: 0.1666666667 | F34: 0 | G34: 0.04166666667 | H34: 0.1666666667 | I34: 0 | J34: 0 | K34: 0.04166666667 | L34: 0.1666666667 | M34: 0 | N34: 0 | O34: 0.04166666667 | P34: 0.1666666667 | Q34: 0 | R34: 0.1666666667 | S34: 0.04166666667 | T34: 0 | U34: 0 | V34: 0 | W34: 0 | X34: 0 | Y34: 0.08333333333 | Z34: 0.04166666667 | AA34: 0 | AB34: 0 | AC34: 0 | AD34: 0 | AE34: 0 | AF34: 0 | AG34: 0.5 | AH34: 0.5 | AI34: 0.5 | AJ34: 0.5 | AK34: 0.5 | AL34: 0.5 | AM34: 0.5 | AN34: 0.5 | AO34: 0.5 | AP34: 0.5 | AQ34: 1 | AR34: 0.9583333333 | AS34: 0.9583333333 | AT34: 0.9166666667 | AU34: 1 | AV34: 1 | AW34: 1 | AX34: 1 | AY34: 1 | AZ34: =Dprobwin($A34,AZ$1) -> 0 | BA34: 0 | BB34: 0 | BC34: 0 | BD34: 0 | BE34: 0 | BF34: 0 | BG34: 0 | BH34: 0 | BI34: 0 | BJ34: 0 | BK34: 0 | BL34: 0 | BM34: 0 | BN34: 0 | BO34: 0 | BP34: 0 | BQ34: 0 | BR34: 0 | BS34: 0 | BT34: 0 | BU34: 0 | BV34: 0 | BW34: 0 | BX34: 0 | BY34: 0 | BZ34: 0 | CA34: 0 | CB34: 0 | CC34: 0 | CD34: 1 | CE34: 0.8333333333 | CF34: 1 | CG34: 1 | CH34: 1 | CI34: 1 | CJ34: 1 | CK34: 1 | CL34: 1 | CM34: 1 | CN34: 0
A35: 1026 | B35: 0.5 | C35: 0.3333333333 | D35: 0.1666666667 | E35: 0.25 | F35: 0 | G35: 0.125 | H35: 0.1666666667 | I35: 0 | J35: 0.08333333333 | K35: 0.08333333333 | L35: 0.1666666667 | M35: 0 | N35: 0 | O35: 0.08333333333 | P35: 0.1666666667 | Q35: 0.04166666667 | R35: 0.08333333333 | S35: 0.08333333333 | T35: 0.04166666667 | U35: 0 | V35: 0 | W35: 0 | X35: 0 | Y35: 0 | Z35: 0.04166666667 | AA35: 0.04166666667 | AB35: 0 | AC35: 0 | AD35: 0 | AE35: 0 | AF35: 0 | AG35: 0.5 | AH35: 0.5 | AI35: 0.5 | AJ35: 0.5 | AK35: 0.5 | AL35: 0.5 | AM35: 0.5 | AN35: 0.5 | AO35: 0.5 | AP35: 0.5 | AQ35: 1 | AR35: 1 | AS35: 0.9583333333 | AT35: 1 | AU35: 0.9583333333 | AV35: 0.9583333333 | AW35: 1 | AX35: 1 | AY35: 1 | AZ35: 0 | BA35: 0 | BB35: 0 | BC35: 0 | BD35: =Dprobwin($A35,BD$1) -> 0 | BE35: 0 | BF35: 0 | BG35: 0 | BH35: 0 | BI35: 0 | BJ35: 0 | BK35: 0 | BL35: 0 | BM35: 0 | BN35: 0 | BO35: 0 | BP35: 0 | BQ35: 0 | BR35: 0 | BS35: 0 | BT35: 0 | BU35: 0 | BV35: 0 | BW35: 0 | BX35: 0 | BY35: 0 | BZ35: 0 | CA35: 0 | CB35: 0 | CC35: 0 | CD35: 1 | CE35: 1 | CF35: 0.8333333333 | CG35: 1 | CH35: 1 | CI35: 1 | CJ35: 1 | CK35: 1 | CL35: 1 | CM35: 1 | CN35: 0
A36: 1116 | B36: 1 | C36: =probwin($A36,C$1) -> 0.6666666667 | D36: 0.4166666667 | E36: 0.3333333333 | F36: 0.25 | G36: 0.1666666667 | H36: 0.3333333333 | I36: 0.08333333333 | J36: 0 | K36: 0.1666666667 | L36: 0.3333333333 | M36: 0 | N36: 0.08333333333 | O36: 0.1666666667 | P36: 0.3333333333 | Q36: 0 | R36: 0.1666666667 | S36: 0.1666666667 | T36: 0 | U36: 0 | V36: 0.08333333333 | W36: 0 | X36: 0 | Y36: 0 | Z36: 0.08333333333 | AA36: 0 | AB36: 0.08333333333 | AC36: 0 | AD36: 0 | AE36: 0 | AF36: 0 | AG36: 0.5 | AH36: 0.5 | AI36: 0.5 | AJ36: 0.5 | AK36: 0.5 | AL36: 0.5 | AM36: 0.5 | AN36: 0.5 | AO36: 0.5 | AP36: 0.5 | AQ36: 1 | AR36: 1 | AS36: 1 | AT36: 0.9166666667 | AU36: 1 | AV36: 0.9166666667 | AW36: 1 | AX36: 1 | AY36: 1 | AZ36: 1 | BA36: 0.3333333333 | BB36: 0.3333333333 | BC36: 0 | BD36: 0.3333333333 | BE36: 0 | BF36: 0.3333333333 | BG36: 0 | BH36: 0 | BI36: 0 | BJ36: 0.3333333333 | BK36: 0 | BL36: 0 | BM36: 0 | BN36: 0 | BO36: 0 | BP36: 0 | BQ36: 0 | BR36: 0 | BS36: 0 | BT36: 0 | BU36: 0 | BV36: 0 | BW36: 0 | BX36: 0 | BY36: 0 | BZ36: 0 | CA36: 0 | CB36: 0 | CC36: 0 | CD36: 1 | CE36: 1 | CF36: 1 | CG36: 1 | CH36: 1 | CI36: 0.6666666667 | CJ36: 1 | CK36: 1 | CL36: 1 | CM36: 1 | CN36: 0
A37: 1035 | B37: 0.5 | C37: 0.3333333333 | D37: 0.1666666667 | E37: 0.3333333333 | F37: 0 | G37: 0.1666666667 | H37: 0.25 | I37: 0 | J37: 0.1666666667 | K37: 0.125 | L37: 0.1666666667 | M37: 0 | N37: 0 | O37: 0.08333333333 | P37: 0.08333333333 | Q37: 0.125 | R37: 0 | S37: 0.04166666667 | T37: 0.08333333333 | U37: 0.08333333333 | V37: 0 | W37: 0 | X37: 0 | Y37: 0 | Z37: 0 | AA37: 0.04166666667 | AB37: 0 | AC37: 0.04166666667 | AD37: 0 | AE37: 0 | AF37: 0 | AG37: 0.5 | AH37: 0.5 | AI37: 0.5 | AJ37: 0.5 | AK37: 0.5 | AL37: 0.5 | AM37: 0.5 | AN37: 0.5 | AO37: 0.5 | AP37: 0.5 | AQ37: 1 | AR37: 1 | AS37: 1 | AT37: 1 | AU37: 0.9583333333 | AV37: 1 | AW37: 0.9583333333 | AX37: 0.9583333333 | AY37: 1 | AZ37: 0 | BA37: 0 | BB37: 0 | BC37: 0 | BD37: 0 | BE37: 0 | BF37: 0 | BG37: 0 | BH37: 0 | BI37: 0 | BJ37: 0 | BK37: 0 | BL37: 0 | BM37: 0 | BN37: 0 | BO37: 0 | BP37: 0 | BQ37: 0 | BR37: 0 | BS37: 0 | BT37: 0 | BU37: 0 | BV37: 0 | BW37: 0 | BX37: 0 | BY37: 0 | BZ37: 0 | CA37: 0 | CB37: 0 | CC37: 0 | CD37: 1 | CE37: 1 | CF37: 1 | CG37: 0.8333333333 | CH37: 1 | CI37: 1 | CJ37: 1 | CK37: 1 | CL37: 1 | CM37: 1 | CN37: 0
A38: 1125 | B38: 1 | C38: 0.8333333333 | D38: 0.6666666667 | E38: 0.5 | F38: 0.5 | G38: 0.375 | H38: 0.3333333333 | I38: 0.25 | J38: 0.1666666667 | K38: 0.25 | L38: 0.3333333333 | M38: 0.08333333333 | N38: 0.1666666667 | O38: 0.25 | P38: 0.1666666667 | Q38: 0.08333333333 | R38: 0 | S38: 0.125 | T38: 0.08333333333 | U38: 0 | V38: 0.1666666667 | W38: 0.04166666667 | X38: 0 | Y38: 0 | Z38: 0 | AA38: 0.04166666667 | AB38: 0.08333333333 | AC38: 0 | AD38: 0.04166666667 | AE38: 0 | AF38: 0 | AG38: 0.5 | AH38: 0.5 | AI38: 0.5 | AJ38: 0.5 | AK38: 0.5 | AL38: 0.5 | AM38: 0.5 | AN38: 0.5 | AO38: 0.5 | AP38: 0.5 | AQ38: 1 | AR38: 1 | AS38: 1 | AT38: 1 | AU38: 1 | AV38: 0.9583333333 | AW38: 1 | AX38: 0.9583333333 | AY38: 0.9166666667 | AZ38: 1 | BA38: 0.6666666667 | BB38: 0.3333333333 | BC38: 0.3333333333 | BD38: 0.3333333333 | BE38: 0.1666666667 | BF38: 0.3333333333 | BG38: 0.1666666667 | BH38: 0 | BI38: 0 | BJ38: 0 | BK38: 0.1666666667 | BL38: 0 | BM38: 0 | BN38: 0 | BO38: 0 | BP38: 0 | BQ38: 0 | BR38: 0 | BS38: 0 | BT38: 0 | BU38: 0 | BV38: 0 | BW38: 0 | BX38: 0 | BY38: 0 | BZ38: 0 | CA38: 0 | CB38: 0 | CC38: 0 | CD38: 1 | CE38: 1 | CF38: 1 | CG38: 1 | CH38: 1 | CI38: 1 | CJ38: 0.8333333333 | CK38: 1 | CL38: 1 | CM38: 1 | CN38: 0
A39: 1044 | B39: 0.5 | C39: 0.3333333333 | D39: 0.1666666667 | E39: 0.3333333333 | F39: 0 | G39: 0.1666666667 | H39: 0.3333333333 | I39: 0 | J39: 0.1666666667 | K39: 0.1666666667 | L39: 0.1666666667 | M39: 0 | N39: 0 | O39: 0.08333333333 | P39: 0 | Q39: 0.1666666667 | R39: 0 | S39: 0 | T39: 0.08333333333 | U39: 0.1666666667 | V39: 0 | W39: 0 | X39: 0 | Y39: 0 | Z39: 0 | AA39: 0 | AB39: 0 | AC39: 0.08333333333 | AD39: 0 | AE39: 0 | AF39: 0 | AG39: 0.5 | AH39: 0.5 | AI39: 0.5 | AJ39: 0.5 | AK39: 0.5 | AL39: 0.5 | AM39: 0.5 | AN39: 0.5 | AO39: 0.5 | AP39: 0.5 | AQ39: 1 | AR39: 1 | AS39: 1 | AT39: 1 | AU39: 1 | AV39: 1 | AW39: 0.9166666667 | AX39: 1 | AY39: 1 | AZ39: 0 | BA39: 0 | BB39: 0 | BC39: 0 | BD39: 0 | BE39: 0 | BF39: 0 | BG39: 0 | BH39: 0 | BI39: 0 | BJ39: 0 | BK39: 0 | BL39: 0 | BM39: 0 | BN39: 0 | BO39: 0 | BP39: 0 | BQ39: 0 | BR39: 0 | BS39: 0 | BT39: 0 | BU39: 0 | BV39: 0 | BW39: 0 | BX39: 0 | BY39: 0 | BZ39: 0 | CA39: 0 | CB39: 0 | CC39: 0 | CD39: 1 | CE39: 1 | CF39: 1 | CG39: 1 | CH39: 0.6666666667 | CI39: 1 | CJ39: 1 | CK39: 1 | CL39: 1 | CM39: 1 | CN39: 0
A40: 1134 | B40: 1 | C40: =probwin($A40,C$1) -> 0.8333333333 | D40: 0.6666666667 | E40: 0.6666666667 | F40: 0.5 | G40: 0.5 | H40: 0.5 | I40: 0.3333333333 | J40: 0.3333333333 | K40: 0.375 | L40: 0.1666666667 | M40: 0.1666666667 | N40: 0.25 | O40: 0.125 | P40: 0 | Q40: 0.25 | R40: 0 | S40: 0 | T40: 0.08333333333 | U40: 0.1666666667 | V40: 0.08333333333 | W40: 0.125 | X40: 0 | Y40: 0 | Z40: 0 | AA40: 0 | AB40: 0 | AC40: 0.04166666667 | AD40: 0.04166666667 | AE40: 0.08333333333 | AF40: 0 | AG40: 0.5 | AH40: 0.5 | AI40: 0.5 | AJ40: 0.5 | AK40: 0.5 | AL40: 0.5 | AM40: 0.5 | AN40: 0.5 | AO40: 0.5 | AP40: 0.5 | AQ40: 1 | AR40: 1 | AS40: 1 | AT40: 1 | AU40: 1 | AV40: 1 | AW40: 1 | AX40: 0.9583333333 | AY40: 1 | AZ40: 1 | BA40: 0.6666666667 | BB40: 0.6666666667 | BC40: 0.3333333333 | BD40: 0.3333333333 | BE40: 0.3333333333 | BF40: 0 | BG40: 0.1666666667 | BH40: 0.3333333333 | BI40: 0 | BJ40: 0 | BK40: 0 | BL40: 0.1666666667 | BM40: 0 | BN40: 0 | BO40: 0 | BP40: 0 | BQ40: 0 | BR40: 0 | BS40: 0 | BT40: 0 | BU40: 0 | BV40: 0 | BW40: 0 | BX40: 0 | BY40: 0 | BZ40: 0 | CA40: 0 | CB40: 0 | CC40: 0 | CD40: 1 | CE40: 1 | CF40: 1 | CG40: 1 | CH40: 1 | CI40: 1 | CJ40: 1 | CK40: 0.8333333333 | CL40: 1 | CM40: 1 | CN40: 0
A41: 1224 | B41: 1 | C41: 1 | D41: 1 | E41: 0.6666666667 | F41: 1 | G41: 0.6666666667 | H41: 0.3333333333 | I41: 0.6666666667 | J41: 0.4166666667 | K41: 0.3333333333 | L41: 0.1666666667 | M41: 0.4166666667 | N41: 0.3333333333 | O41: 0.1666666667 | P41: 0 | Q41: 0.1666666667 | R41: 0 | S41: 0 | T41: 0.08333333333 | U41: 0 | V41: 0.1666666667 | W41: 0.1666666667 | X41: 0.25 | Y41: 0 | Z41: 0 | AA41: 0 | AB41: 0 | AC41: 0 | AD41: 0.08333333333 | AE41: 0 | AF41: 0.08333333333 | AG41: 0.5 | AH41: 0.5 | AI41: 0.5 | AJ41: 0.5 | AK41: 0.5 | AL41: 0.5 | AM41: 0.5 | AN41: 0.5 | AO41: 0.5 | AP41: 0.5 | AQ41: 1 | AR41: 1 | AS41: 1 | AT41: 1 | AU41: 1 | AV41: 1 | AW41: 1 | AX41: 1 | AY41: 0.9166666667 | AZ41: 1 | BA41: 1 | BB41: 0.3333333333 | BC41: 1 | BD41: 0.3333333333 | BE41: 0.3333333333 | BF41: 0 | BG41: 0.3333333333 | BH41: 0 | BI41: 0.3333333333 | BJ41: 0 | BK41: 0 | BL41: 0 | BM41: 0.3333333333 | BN41: 0 | BO41: 0 | BP41: 0 | BQ41: 0 | BR41: 0 | BS41: 0 | BT41: 0 | BU41: 0 | BV41: 0 | BW41: 0 | BX41: 0 | BY41: =Dprobwin($A41,BY$1) -> 0 | BZ41: 0 | CA41: 0 | CB41: 0 | CC41: 0 | CD41: 1 | CE41: 1 | CF41: 1 | CG41: 1 | CH41: 1 | CI41: 1 | CJ41: 1 | CK41: 1 | CL41: 0.6666666667 | CM41: 1 | CN41: 0.06044672561
A42: 1233 | B42: 1 | C42: 1 | D42: 1 | E42: 0.8333333333 | F42: 1 | G42: 0.8333333333 | H42: 0.3333333333 | I42: 0.8333333333 | J42: 0.6666666667 | K42: 0.3333333333 | L42: 0 | M42: 0.6666666667 | N42: 0.3333333333 | O42: 0 | P42: 0 | Q42: 0.25 | R42: 0 | S42: 0 | T42: 0 | U42: 0.08333333333 | V42: 0 | W42: 0.25 | X42: 0.5 | Y42: 0 | Z42: 0 | AA42: 0 | AB42: 0 | AC42: 0 | AD42: 0 | AE42: 0.08333333333 | AF42: 0.1666666667 | AG42: 0.5 | AH42: 0.5 | AI42: 0.5 | AJ42: 0.5 | AK42: 0.5 | AL42: 0.5 | AM42: 0.5 | AN42: 0.5 | AO42: 0.5 | AP42: 0.5 | AQ42: 1 | AR42: 1 | AS42: 1 | AT42: 1 | AU42: 1 | AV42: 1 | AW42: 1 | AX42: 1 | AY42: 1 | AZ42: 1 | BA42: 1 | BB42: 0.6666666667 | BC42: 1 | BD42: 0 | BE42: 0.6666666667 | BF42: 0 | BG42: 0 | BH42: 0.3333333333 | BI42: 0.6666666667 | BJ42: 0 | BK42: 0 | BL42: 0 | BM42: 0 | BN42: 0.3333333333 | BO42: 0 | BP42: 0 | BQ42: 0 | BR42: 0 | BS42: 0 | BT42: 0 | BU42: 0 | BV42: 0 | BW42: 0 | BX42: 0 | BY42: 0 | BZ42: 0 | CA42: 0 | CB42: 0 | CC42: 0 | CD42: 1 | CE42: 1 | CF42: 1 | CG42: 1 | CH42: 1 | CI42: 1 | CJ42: 1 | CK42: 1 | CL42: 1 | CM42: 0.6666666667 | CN42: 0.06833108303
A43: 9 | B43: 0.25 | C43: 0.08333333333 | D43: 0 | E43: 0.08333333333 | F43: 0 | G43: 0 | H43: 0.08333333333 | I43: 0 | J43: 0 | K43: 0 | L43: 0.08333333333 | M43: 0 | N43: 0 | O43: 0 | P43: 0.08333333333 | Q43: 0 | R43: 0.08333333333 | S43: 0 | T43: 0 | U43: 0 | V43: 0 | W43: 0 | X43: 0 | Y43: 0.08333333333 | Z43: 0 | AA43: 0 | AB43: 0 | AC43: 0 | AD43: 0 | AE43: 0 | AF43: 0 | AG43: 0.08333333333 | AH43: 0 | AI43: 0 | AJ43: 0 | AK43: 0 | AL43: 0 | AM43: 0 | AN43: 0 | AO43: 0 | AP43: 0 | AQ43: 0.5 | AR43: 0.5 | AS43: 0.5 | AT43: 0.5 | AU43: 0.5 | AV43: 0.5 | AW43: 0.5 | AX43: 0.5 | AY43: 0.5 | AZ43: 0 | BA43: 0 | BB43: 0 | BC43: 0 | BD43: 0 | BE43: 0 | BF43: 0 | BG43: 0 | BH43: 0 | BI43: 0 | BJ43: 0 | BK43: 0 | BL43: 0 | BM43: 0 | BN43: 0 | BO43: 0 | BP43: 0 | BQ43: 0 | BR43: 0 | BS43: 0 | BT43: 0 | BU43: 0 | BV43: 0 | BW43: 0 | BX43: 0 | BY43: 0 | BZ43: 0 | CA43: 0 | CB43: 0 | CC43: 0 | CD43: 0 | CE43: 0 | CF43: 0 | CG43: 0 | CH43: 0 | CI43: 0 | CJ43: 0 | CK43: 0 | CL43: 0 | CM43: 0 | CN43: 0
A44: 18 | B44: 0.5 | C44: =probwin($A44,C$1) -> 0.25 | D44: 0.08333333333 | E44: 0.1666666667 | F44: 0 | G44: 0.04166666667 | H44: 0.1666666667 | I44: 0 | J44: 0 | K44: 0.04166666667 | L44: 0.1666666667 | M44: 0 | N44: 0 | O44: 0.04166666667 | P44: 0.1666666667 | Q44: 0 | R44: 0.1666666667 | S44: 0.04166666667 | T44: 0 | U44: 0 | V44: 0 | W44: 0 | X44: 0 | Y44: 0.1666666667 | Z44: 0.04166666667 | AA44: 0 | AB44: 0 | AC44: 0 | AD44: 0 | AE44: 0 | AF44: 0 | AG44: 0.08333333333 | AH44: 0.04166666667 | AI44: 0 | AJ44: 0 | AK44: 0 | AL44: 0 | AM44: 0 | AN44: 0 | AO44: 0 | AP44: 0 | AQ44: 0.5 | AR44: 0.5 | AS44: 0.5 | AT44: 0.5 | AU44: 0.5 | AV44: 0.5 | AW44: 0.5 | AX44: 0.5 | AY44: 0.5 | AZ44: 0 | BA44: 0 | BB44: 0 | BC44: 0 | BD44: 0 | BE44: 0 | BF44: 0 | BG44: 0 | BH44: 0 | BI44: 0 | BJ44: 0 | BK44: 0 | BL44: 0 | BM44: 0 | BN44: 0 | BO44: 0 | BP44: 0 | BQ44: 0 | BR44: 0 | BS44: 0 | BT44: 0 | BU44: 0 | BV44: 0 | BW44: 0 | BX44: 0 | BY44: 0 | BZ44: 0 | CA44: 0 | CB44: 0 | CC44: 0 | CD44: 0 | CE44: 0 | CF44: 0 | CG44: 0 | CH44: 0 | CI44: 0 | CJ44: 0 | CK44: 0 | CL44: 0 | CM44: 0 | CN44: 0
A45: 27 | B45: 0.5 | C45: 0.3333333333 | D45: 0.1666666667 | E45: 0.25 | F45: 0 | G45: 0.125 | H45: 0.1666666667 | I45: 0 | J45: 0.08333333333 | K45: 0.08333333333 | L45: 0.1666666667 | M45: 0 | N45: 0 | O45: 0.08333333333 | P45: 0.1666666667 | Q45: 0.04166666667 | R45: 0.1666666667 | S45: 0.08333333333 | T45: 0.04166666667 | U45: 0 | V45: 0 | W45: 0 | X45: 0 | Y45: 0.08333333333 | Z45: 0.08333333333 | AA45: 0.04166666667 | AB45: 0 | AC45: 0 | AD45: 0 | AE45: 0 | AF45: 0 | AG45: 0 | AH45: 0.04166666667 | AI45: 0.04166666667 | AJ45: 0 | AK45: 0 | AL45: 0 | AM45: 0 | AN45: 0 | AO45: 0 | AP45: 0 | AQ45: 0.5 | AR45: 0.5 | AS45: 0.5 | AT45: 0.5 | AU45: 0.5 | AV45: 0.5 | AW45: 0.5 | AX45: 0.5 | AY45: 0.5 | AZ45: 0 | BA45: 0 | BB45: 0 | BC45: 0 | BD45: 0 | BE45: 0 | BF45: 0 | BG45: 0 | BH45: 0 | BI45: 0 | BJ45: 0 | BK45: 0 | BL45: 0 | BM45: 0 | BN45: 0 | BO45: 0 | BP45: 0 | BQ45: 0 | BR45: 0 | BS45: 0 | BT45: 0 | BU45: 0 | BV45: 0 | BW45: 0 | BX45: 0 | BY45: 0 | BZ45: 0 | CA45: 0 | CB45: 0 | CC45: 0 | CD45: 0 | CE45: 0 | CF45: 0 | CG45: 0 | CH45: 0 | CI45: 0 | CJ45: 0 | CK45: 0 | CL45: 0 | CM45: 0 | CN45: 0
A46: 117 | B46: 1 | C46: 0.6666666667 | D46: 0.4166666667 | E46: 0.3333333333 | F46: 0.25 | G46: 0.1666666667 | H46: 0.3333333333 | I46: 0.08333333333 | J46: 0 | K46: 0.1666666667 | L46: 0.3333333333 | M46: 0 | N46: 0.08333333333 | O46: 0.1666666667 | P46: 0.3333333333 | Q46: 0 | R46: 0.3333333333 | S46: 0.1666666667 | T46: 0 | U46: 0 | V46: 0.08333333333 | W46: 0 | X46: 0 | Y46: 0.1666666667 | Z46: 0.1666666667 | AA46: 0 | AB46: 0.08333333333 | AC46: 0 | AD46: 0 | AE46: 0 | AF46: 0 | AG46: 0 | AH46: 0.08333333333 | AI46: 0 | AJ46: 0.08333333333 | AK46: 0 | AL46: 0 | AM46: 0 | AN46: 0 | AO46: 0 | AP46: 0 | AQ46: 0.5 | AR46: 0.5 | AS46: 0.5 | AT46: 0.5 | AU46: 0.5 | AV46: 0.5 | AW46: 0.5 | AX46: 0.5 | AY46: 0.5 | AZ46: 1 | BA46: 0.3333333333 | BB46: 0.3333333333 | BC46: 0 | BD46: 0.3333333333 | BE46: 0 | BF46: 0.3333333333 | BG46: 0 | BH46: 0 | BI46: 0 | BJ46: 0.3333333333 | BK46: 0 | BL46: 0 | BM46: 0 | BN46: 0 | BO46: 0.3333333333 | BP46: 0 | BQ46: 0 | BR46: 0 | BS46: 0 | BT46: 0 | BU46: 0 | BV46: 0 | BW46: 0 | BX46: 0 | BY46: 0 | BZ46: 0 | CA46: 0 | CB46: 0 | CC46: 0 | CD46: 0 | CE46: 0 | CF46: 0 | CG46: 0 | CH46: 0 | CI46: 0 | CJ46: 0 | CK46: 0 | CL46: 0 | CM46: 0 | CN46: 0
A47: 36 | B47: 0.5 | C47: 0.3333333333 | D47: 0.1666666667 | E47: 0.3333333333 | F47: 0 | G47: 0.1666666667 | H47: 0.25 | I47: 0 | J47: 0.1666666667 | K47: 0.125 | L47: 0.1666666667 | M47: 0 | N47: 0 | O47: 0.08333333333 | P47: 0.1666666667 | Q47: 0.125 | R47: 0.08333333333 | S47: 0.08333333333 | T47: 0.08333333333 | U47: 0.08333333333 | V47: 0 | W47: 0 | X47: 0 | Y47: 0 | Z47: 0.04166666667 | AA47: 0.08333333333 | AB47: 0 | AC47: 0.04166666667 | AD47: 0 | AE47: 0 | AF47: 0 | AG47: 0 | AH47: 0 | AI47: 0.04166666667 | AJ47: 0 | AK47: 0.04166666667 | AL47: 0 | AM47: 0 | AN47: 0 | AO47: 0 | AP47: 0 | AQ47: 0.5 | AR47: 0.5 | AS47: 0.5 | AT47: 0.5 | AU47: 0.5 | AV47: 0.5 | AW47: 0.5 | AX47: 0.5 | AY47: 0.5 | AZ47: 0 | BA47: 0 | BB47: 0 | BC47: 0 | BD47: 0 | BE47: 0 | BF47: 0 | BG47: 0 | BH47: 0 | BI47: 0 | BJ47: 0 | BK47: 0 | BL47: 0 | BM47: 0 | BN47: 0 | BO47: 0 | BP47: 0 | BQ47: 0 | BR47: 0 | BS47: 0 | BT47: 0 | BU47: 0 | BV47: 0 | BW47: 0 | BX47: 0 | BY47: 0 | BZ47: 0 | CA47: 0 | CB47: 0 | CC47: 0 | CD47: 0 | CE47: 0 | CF47: 0 | CG47: 0 | CH47: 0 | CI47: 0 | CJ47: 0 | CK47: 0 | CL47: 0 | CM47: 0 | CN47: 0
A48: 126 | B48: 1 | C48: =probwin($A48,C$1) -> 0.8333333333 | D48: 0.6666666667 | E48: 0.5 | F48: 0.5 | G48: 0.375 | H48: 0.3333333333 | I48: 0.25 | J48: 0.1666666667 | K48: 0.25 | L48: 0.3333333333 | M48: 0.08333333333 | N48: 0.1666666667 | O48: 0.25 | P48: 0.3333333333 | Q48: 0.08333333333 | R48: 0.1666666667 | S48: 0.25 | T48: 0.08333333333 | U48: 0 | V48: 0.1666666667 | W48: 0.04166666667 | X48: 0 | Y48: 0 | Z48: 0.125 | AA48: 0.08333333333 | AB48: 0.1666666667 | AC48: 0 | AD48: 0.04166666667 | AE48: 0 | AF48: 0 | AG48: 0 | AH48: 0 | AI48: 0.04166666667 | AJ48: 0.08333333333 | AK48: 0 | AL48: 0.04166666667 | AM48: 0 | AN48: 0 | AO48: 0 | AP48: 0 | AQ48: 0.5 | AR48: 0.5 | AS48: 0.5 | AT48: 0.5 | AU48: 0.5 | AV48: 0.5 | AW48: 0.5 | AX48: 0.5 | AY48: 0.5 | AZ48: 1 | BA48: 0.6666666667 | BB48: 0.3333333333 | BC48: 0.3333333333 | BD48: 0.3333333333 | BE48: 0.1666666667 | BF48: 0.3333333333 | BG48: =Dprobwin($A48,BG$1) -> 0.1666666667 | BH48: 0 | BI48: 0 | BJ48: 0.3333333333 | BK48: 0.1666666667 | BL48: 0 | BM48: 0 | BN48: 0 | BO48: 0 | BP48: 0.1666666667 | BQ48: 0 | BR48: 0 | BS48: 0 | BT48: 0 | BU48: 0 | BV48: 0 | BW48: 0 | BX48: 0 | BY48: 0 | BZ48: 0 | CA48: 0 | CB48: 0 | CC48: 0 | CD48: 0 | CE48: 0 | CF48: 0 | CG48: 0 | CH48: 0 | CI48: 0 | CJ48: 0 | CK48: 0 | CL48: 0 | CM48: 0 | CN48: 0
A49: 45 | B49: 0.5 | C49: 0.3333333333 | D49: 0.1666666667 | E49: 0.3333333333 | F49: 0 | G49: 0.1666666667 | H49: 0.3333333333 | I49: 0 | J49: 0.1666666667 | K49: 0.1666666667 | L49: 0.25 | M49: 0 | N49: 0 | O49: 0.125 | P49: 0.08333333333 | Q49: 0.1666666667 | R49: 0 | S49: 0.04166666667 | T49: 0.125 | U49: 0.1666666667 | V49: 0 | W49: 0 | X49: 0 | Y49: 0 | Z49: 0 | AA49: 0.04166666667 | AB49: 0 | AC49: 0.125 | AD49: 0 | AE49: 0 | AF49: 0 | AG49: 0 | AH49: 0 | AI49: 0 | AJ49: 0 | AK49: 0.04166666667 | AL49: 0 | AM49: 0.08333333333 | AN49: 0 | AO49: 0 | AP49: 0 | AQ49: 0.5 | AR49: 0.5 | AS49: 0.5 | AT49: 0.5 | AU49: 0.5 | AV49: 0.5 | AW49: 0.5 | AX49: 0.5 | AY49: 0.5 | AZ49: 0 | BA49: 0 | BB49: 0 | BC49: 0 | BD49: 0 | BE49: 0 | BF49: 0 | BG49: 0 | BH49: 0 | BI49: 0 | BJ49: 0 | BK49: 0 | BL49: 0 | BM49: 0 | BN49: 0 | BO49: 0 | BP49: 0 | BQ49: 0 | BR49: 0 | BS49: 0 | BT49: 0 | BU49: 0 | BV49: 0 | BW49: 0 | BX49: 0 | BY49: 0 | BZ49: 0 | CA49: 0 | CB49: 0 | CC49: 0 | CD49: 0 | CE49: 0 | CF49: 0 | CG49: 0 | CH49: 0 | CI49: 0 | CJ49: 0 | CK49: 0 | CL49: 0 | CM49: 0 | CN49: 0
A50: 135 | B50: 1 | C50: 0.8333333333 | D50: 0.6666666667 | E50: 0.6666666667 | F50: 0.5 | G50: 0.5 | H50: 0.5 | I50: 0.3333333333 | J50: 0.3333333333 | K50: 0.375 | L50: 0.3333333333 | M50: 0.1666666667 | N50: 0.25 | O50: 0.25 | P50: 0.1666666667 | Q50: 0.25 | R50: 0 | S50: 0.125 | T50: 0.1666666667 | U50: 0.1666666667 | V50: 0.1666666667 | W50: 0.125 | X50: 0 | Y50: 0 | Z50: 0 | AA50: 0.08333333333 | AB50: 0.08333333333 | AC50: 0.08333333333 | AD50: 0.08333333333 | AE50: 0.08333333333 | AF50: 0 | AG50: 0 | AH50: 0 | AI50: 0 | AJ50: 0 | AK50: 0.04166666667 | AL50: 0.04166666667 | AM50: 0 | AN50: 0.04166666667 | AO50: 0 | AP50: 0 | AQ50: 0.5 | AR50: 0.5 | AS50: 0.5 | AT50: 0.5 | AU50: 0.5 | AV50: 0.5 | AW50: 0.5 | AX50: 0.5 | AY50: 0.5 | AZ50: 1 | BA50: 0.6666666667 | BB50: 0.6666666667 | BC50: 0.3333333333 | BD50: 0.3333333333 | BE50: 0.3333333333 | BF50: 0.3333333333 | BG50: 0.1666666667 | BH50: 0.3333333333 | BI50: 0 | BJ50: 0 | BK50: 0.1666666667 | BL50: 0.1666666667 | BM50: 0 | BN50: 0 | BO50: 0 | BP50: 0 | BQ50: 0.1666666667 | BR50: 0 | BS50: 0 | BT50: 0 | BU50: 0 | BV50: 0 | BW50: 0 | BX50: 0 | BY50: 0 | BZ50: 0 | CA50: 0 | CB50: 0 | CC50: 0 | CD50: 0 | CE50: 0 | CF50: 0 | CG50: 0 | CH50: 0 | CI50: 0 | CJ50: 0 | CK50: 0 | CL50: 0 | CM50: 0 | CN50: 0
A51: 225 | B51: 1 | C51: 1 | D51: 1 | E51: 0.6666666667 | F51: 1 | G51: 0.6666666667 | H51: 0.3333333333 | I51: 0.6666666667 | J51: 0.4166666667 | K51: 0.3333333333 | L51: 0.3333333333 | M51: 0.4166666667 | N51: 0.3333333333 | O51: 0.3333333333 | P51: 0.1666666667 | Q51: 0.1666666667 | R51: 0 | S51: 0.1666666667 | T51: 0.1666666667 | U51: 0 | V51: 0.3333333333 | W51: 0.1666666667 | X51: 0.25 | Y51: 0 | Z51: 0 | AA51: 0.08333333333 | AB51: 0.1666666667 | AC51: 0 | AD51: 0.1666666667 | AE51: 0 | AF51: 0.08333333333 | AG51: 0 | AH51: 0 | AI51: 0 | AJ51: 0 | AK51: 0 | AL51: 0.08333333333 | AM51: 0 | AN51: 0 | AO51: 0.08333333333 | AP51: 0 | AQ51: 0.5 | AR51: 0.5 | AS51: 0.5 | AT51: 0.5 | AU51: 0.5 | AV51: 0.5 | AW51: 0.5 | AX51: 0.5 | AY51: 0.5 | AZ51: 1 | BA51: 1 | BB51: 0.3333333333 | BC51: 1 | BD51: 0.3333333333 | BE51: 0.3333333333 | BF51: 0.3333333333 | BG51: 0.3333333333 | BH51: 0 | BI51: 0.3333333333 | BJ51: 0 | BK51: 0.3333333333 | BL51: 0 | BM51: 0.3333333333 | BN51: 0 | BO51: 0 | BP51: 0 | BQ51: 0 | BR51: 0 | BS51: 0 | BT51: 0 | BU51: 0 | BV51: 0 | BW51: 0 | BX51: 0 | BY51: 0 | BZ51: 0 | CA51: 0 | CB51: 0 | CC51: 0 | CD51: 0 | CE51: 0 | CF51: 0 | CG51: 0 | CH51: 0 | CI51: 0 | CJ51: 0 | CK51: 0 | CL51: 0 | CM51: 0 | CN51: 0
B52: =SUMPRODUCT(B2:B51,$CN$2:$CN$51) -> 0.545663133 | C52: 0.4599207621 | D52: 0.5170823421 | E52: 0.4883372946 | F52: 0.5512478841 | G52: 0.5289088761 | H52: 0.5128664013 | I52: 0.524638183 | J52: 0.5459916478 | K52: 0.5398593705 | L52: 0.5397498657 | M52: 0.5016421458 | N52: 0.4946338298 | O52: 0.5582562023 | P52: 0.5980064976 | Q52: 0.560720064 | R52: 0.7234991637 | S52: 0.6558251086 | T52: 0.6392351094 | U52: 0.6366617436 | V52: 0.5267187798 | W52: 0.5214625422 | X52: 0.5289088769 | Y52: 0.8135122285 | Z52: 0.7458381735 | AA52: 0.7154505517 | AB52: 0.5800476894 | AC52: 0.6996818397 | AD52: 0.532358286 | AE52: 0.5279233353 | AF52: 0.5180678892 | AG52: 0.8851284605 | AH52: =SUMPRODUCT(AH2:AH51,$CN$2:$CN$51) -> 0.8174544054 | AI52: 0.7870667836 | AJ52: 0.6516639213 | AK52: 0.7625376762 | AL52: 0.5723275898 | AM52: 0.7512039145 | AN52: 0.5368479871 | AO52: 0.5018611575 | AP52: 0.4963859085 | AQ52: 0.9495173648 | AR52: 0.8818433097 | AS52: 0.8514556879 | AT52: 0.7160528256 | AU52: 0.8269265805 | AV52: 0.6367164941 | AW52: 0.8068324233 | AX52: 0.5746271904 | AY52: 0.5255142236 | AZ52: =SUMPRODUCT(AZ2:AZ51,$CN$2:$CN$51) -> 0.3942177961 | BA52: 0.390275618 | BB52: 0.3902756174 | BC52: 0.391370666 | BD52: 0.3902756167 | BE52: 0.3902756183 | BF52: 0.4038542318 | BG52: 0.3902756178 | BH52: 0.3902756194 | BI52: 0.4123956155 | BJ52: 0.4892680896 | BK52: 0.4204989851 | BL52: 0.4027591843 | BM52: 0.3902756202 | BN52: 0.3902756193 | BO52: 0.654839564 | BP52: 0.5860704596 | BQ52: 0.5332890768 | BR52: 0.5229956119 | BS52: 0.464300964 | BT52: 0.3902756206 | BU52: 0.3902756194 | BV52: 0.6692942192 | BW52: 0.6005251148 | BX52: 0.5477437321 | BY52: 0.5024086852 | BZ52: 0.4787556192 | CA52: 0.4047302758 | CB52: 0.3999120562 | CC52: 0.3902756196 | CD52: 0.7980720279 | CE52: 0.7293029234 | CF52: 0.6765215407 | CG52: 0.6311864939 | CH52: 0.596144912 | CI52: 0.6075334279 | CJ52: 0.5335080845 | CK52: 0.4572926427 | CL52: 0.4275072975 | CM52: 0.4106435331 | CN52: =SUM(CN2:CN51) -> 0.9999991438 | CO52: 0.3902756194
CN53: 1
